{"text_format":"1","workbook":"xlsx","n_sheets":5,"sheets":["Introduction","ouv","calculs","dates","arbres"],"not_rendered":{"charts":0,"images":0,"macros":1,"external_links":0,"defined_names":2,"comments":0,"pivot_tables":0},"unopened":[],"bounds":{"document_bytes":16777216,"sheet_cells":100000,"rows_first":2000,"rows_last":500,"rows_between":2000,"halvings":0,"cell_chars":16384,"cell_head_chars":4096},"cells_cut":0,"cells_raw":0,"read":"whole","date_system":"1900"}

{"sheet":"Introduction","index":0,"n_rows":37,"n_cols":4,"rows_kept":37,"cut":false,"hidden":false,"merged":[]}
["Calculer précisément l'âge de quelqu'un est un tâche très ardue"]
["Fonction DATEDIF"]
["La fonction DATEDIF permet de calculer la différence entre deux dates."]
["PRINCIPE DE LA FONCTION DATEDIF"]
["Prenons l’exemple de l’écart en jour entre la date du 28/07/2009 et celle du 05/08/2009."]
["Entre ces 2 dates, il n’y a que 9 jours d’écart et pas un mois complet. Mais il y a eu un basculement d’un mois calendaire."]
["Donc, si nous utilisons la formule suivante, le résultat sera 1 ce qui est complètement faux."]
["2014-07-28","2014-08-05",{"$f":"MONTH(B8)-MONTH(A8)","v":1},"=MOIS(B8)-MOIS(A8)"]
[]
["Comme l’exemple l’a démontré, une différence entre 2 dates n’est pas un calcul facile."]
["Mais bien un calcul qui est très compliqué."]
["Et tout d’abord quel type de différence voulons-nous calculer ?  Une différence sur les mois, sur les jours, sur les années ou à partir d’une année pleine ?"]
["Pour réaliser ces calculs, Excel possède une fonction incroyable pour réaliser les différences entre les dates mais cette fonction est cachée et n'est plus documentée depuis des années"]
["Pour vous en rendre compte, il vous suffit d’afficher l’aide en ligne sur cette fonction et vous verrez que rien (absolument rien) ne s’affiche à propos de la fonction DATEDIF"]
["Et pourtant elle fonctionne  parfaitement."]
["LA FONCTION"]
["Cette fonction a besoin de 3 paramètres pour fonctionner"]
["Une date, une seconde date (nécessairement supérieure à la première date) et un paramètre pour retourner l’écart."]
[]
["Date de naissance",null,"1966-03-24"]
["Date atuelle",null,{"$f":"TODAY()","v":"2017-04-06"}]
[]
["Valeur du 3ème paramètre","Résultat","Formule"]
["d",{"$f":"DATEDIF(C$20,C$21,\"d\")","v":18641},"=DATEDIF(C$20;C$21;\"d\")","Nombre de jours entre 2 dates"]
["m",{"$f":"DATEDIF(C$20,C$21,\"m\")","v":612},"=DATEDIF(C$20;C$21;\"m\")","Nombre de mois entre 2 dates"]
["y",{"$f":"DATEDIF(C$20,C$21,\"y\")","v":51},"=DATEDIF(C$20;C$21;\"y\")","Nombre d'années entre 2 dates"]
["ym",{"$f":"DATEDIF(C$20,C$21,\"ym\")","v":0},"=DATEDIF(C$20;C$21;\"ym\")","Nombre de mois dans la partie congrue de l'année"]
["md",{"$f":"DATEDIF(C$20,C$21,\"md\")","v":13},"=DATEDIF(C$20;C$21;\"md\")","Nombre de jours dans la partie congrue du mois"]
["yd",{"$f":"DATEDIF(C$20,C$21,\"yd\")","v":13},"=DATEDIF(C$20;C$21;\"yd\")","Nombre de jours dans la partie congrue de l'année"]
[]
["Une très belle réalisation se trouve derrière ce bouton"]
[]
[]
[]
["Remerciements et sources"]
["http://www.excel-exercice.com/fonction/fonctions-dates/datedif/"]
["http://www.excel-downloads.com/forum/18771-calculer-lage-dune-personne.html"]

{"sheet":"ouv","index":1,"n_rows":22,"n_cols":6,"rows_kept":22,"cut":false,"hidden":false,"merged":[[21,4,25,7],[1,1,3,5],[5,1,7,4],[7,5,7,6],[14,1,19,8],[9,1,12,6],[6,5,6,6]]}
[]
[null,"Chacun sait que tout être humain descend de l'arbre, mais duquel exactement ?"]
[]
[]
[]
[null,"Si vous souhaitez le savoir, entrez votre date de naissance :…………………………."]
[null,null,null,null,null,"jj-mm-aaaa"]
[null,null,null,null,null,"1966-03-24"]
[]
[null,{"$f":"calculs!C5","v":"Né(e) sous le signe du Bélier il y a 51 ans 0 mois 13 jours vous descendez du Noisetier "}]
[]
[]
[]
[]
[null,{"$f":"calculs!C8","v":"NOISETIER (l'extraordinaire) - Charmant, peu exigeant, très compréhensif, sait comment faire bonne impression, ardent défenseur des causes sociales, populaire, d'humeur changeante, est un amant capricieux, honnête, un partenaire tolérant, possède un sens précis du jugement"}]
[]
[]
[]
[]
[]
[]
[null,null,null,null,{"$f":"calculs!C11","v":"Alors, si nous voulons que le cycle continue, protégeons nos arbres."}]

{"sheet":"calculs","index":2,"n_rows":30,"n_cols":5,"rows_kept":30,"cut":false,"hidden":false,"merged":[]}
[null,null,{"$f":"DAY(ouv!F8)","v":24}]
[null,null,{"$f":"MONTH(ouv!F8)","v":3}]
[null,null,{"$f":"C1&C2","v":"243"}]
[]
[null,null,{"$f":"IF(ouv!F8=0,\"\",IF(ISNUMBER(ouv!F8),\"Né(e) sous le signe \"&VLOOKUP(C3,dates!C1:G365,5)&\" il y a \"&C14&\" vous descendez \"&VLOOKUP(C3,dates!C1:F365,3),\"La date doit être égale ou supérieure au            1 er janvier 1900\"))","v":"Né(e) sous le signe du Bélier il y a 51 ans 0 mois 13 jours vous descendez du Noisetier "}]
[]
[]
[null,null,{"$f":"IF(ISNUMBER(ouv!F8),VLOOKUP(C3,dates!C1:F365,4),\"\")","v":"NOISETIER (l'extraordinaire) - Charmant, peu exigeant, très compréhensif, sait comment faire bonne impression, ardent défenseur des causes sociales, populaire, d'humeur changeante, est un amant capricieux, honnête, un partenaire tolérant, possède un sens précis du jugement"}]
[]
[]
[null,null,{"$f":"IF(ISNUMBER(ouv!F8),\"Alors, si nous voulons que le cycle continue, protégeons nos arbres.\",\"\")","v":"Alors, si nous voulons que le cycle continue, protégeons nos arbres."}]
[]
[]
[null,null,{"$f":"DATEDIF(ouv!F8,TODAY(),\"y\")&\" ans \"&DATEDIF(ouv!F8,TODAY(),\"ym\")&\" mois \"&DATEDIF(ouv!F8,TODAY(),\"md\")&\" jours\"","v":"51 ans 0 mois 13 jours"}]
[]
[]
[]
[]
[]
[]
[null,null,"Date de naissance",null,"1966-03-24"]
[null,null,"Date atuelle",null,{"$f":"TODAY()","v":"2017-04-06"}]
[]
[null,null,"Valeur du 3ème paramètre","Résultat"]
[null,null,"d",{"$f":"DATEDIF(E$21,E$22,\"d\")","v":18641},"Nombre de jours entre 2 dates"]
[null,null,"m",{"$f":"DATEDIF(E$21,E$22,\"m\")","v":612},"Nombre de mois entre 2 dates"]
[null,null,"y",{"$f":"DATEDIF(E$21,E$22,\"y\")","v":51},"Nombre d'années entre 2 dates"]
[null,null,"ym",{"$f":"DATEDIF(E$21,E$22,\"ym\")","v":0},"Nombre de mois dans la partie congrue de l'année"]
[null,null,"md",{"$f":"DATEDIF(E$21,E$22,\"md\")","v":13},"Nombre de jours dans la partie congrue du mois"]
[null,null,"yd",{"$f":"DATEDIF(E$21,E$22,\"yd\")","v":13},"Nombre de jours dans la partie congrue de l'année"]

{"sheet":"dates","index":3,"n_rows":365,"n_cols":8,"rows_kept":365,"cut":false,"hidden":false,"merged":[]}
[{"$f":"DAY(D1)","v":10},{"$f":"MONTH(D1)","v":1},{"$f":"A1&B1","v":"101"},"2003-01-10","du Sapin ",{"$f":"VLOOKUP(H1,arbres!$A$1:$B$21,2)","v":"SAPIN (le mystérieux) - Fait preuve d'un goût extraordinaire, est digne, sophistique, adore tout ce qui est beau, est d'humeur changeante, entêté, a une tendance à l'égoïsme, mais est attentif aux personnes qui sont proches de lui, est plutôt modeste, très ambitieux, talentueux, travailleur, un amant insatisfait, a plusieurs amis, plusieurs ennemis, on peut compter sur lui"},"du Capricorne","Sapin"]
[{"$f":"DAY(D2)","v":10},{"$f":"MONTH(D2)","v":10},{"$f":"A2&B2","v":"1010"},"2003-10-10","du Cormier ",{"$f":"VLOOKUP(H2,arbres!$A$1:$B$21,2)","v":"CORMIER (la délicatesse) - Plein de charme, enjoué, talentueux sans être égoïste aime attirer l'attention, adore la vie, le mouvement, l'agitation et même les complications, est à la fois dépendant et indépendant, fait preuve de bon goût, est artistique, passionné, émotif, est de bonne compagnie, mais ne pardonne pas"},"de la Balance","Cormier"]
[10,11,"1011","2003-11-10","du Noyer ",{"$f":"VLOOKUP(H3,arbres!$A$1:$B$21,2)","v":"NOYER (la passion) - Implacable, surprenant et plein de contrastes, souvent narcissique, peut démontrer de l'agressivité, est généreux, de vastes horizons s'ouvrent à lui, peut avoir des réactions inattendues, est spontané, fait preuve d'une ambition sans limite, aucune flexibilité, est un partenaire difficile et peu commun, n'est pas toujours aimé mais est souvent admire, stratège hors pair, très jaloux et passionné, ne fait aucun compromis"},"du Scorpion","Noyer"]
[10,12,"1012","2003-12-10","du Charme de la Caroline ",{"$f":"VLOOKUP(H4,arbres!$A$1:$B$21,2)","v":"CHARME DE LA CAROLINE (le bon goût) - D'une beauté affranchissante, fait attention à son apparence et à sa condition physique, fait preuve de bon goût, n'est pas égoïste, fait en sorte que sa vie soit aussi confortable que possible, mène une vie raisonnable et disciplinée, recherche la gentillesse et la reconnaissance chez un partenaire de vie, rêve d'amants exceptionnels, est quelquefois heureux de ses sentiments, a peu confiance dans la plupart des gens, n'est jamais certain de ses décisions, est très consciencieux."},"du Sagitaire","Charme de la Caroline"]
[10,2,"102","2003-02-10","du Cèdre ",{"$f":"VLOOKUP(H5,arbres!$A$1:$B$21,2)","v":"CEDRE (la confiance) - D'une rare beauté, sait s'adapter, aime le luxe, jouit d'une bonne santé, loin d'être timide, a tendance à regarder les autres de haut, est sur de lui, déterminé, impatient, aime impressionner les autres, a de nombreux talents, travailleur, d'un optimisme sain, attendra son seul vrai amour, et est capable de prendre des décisions rapidement."},"du Verseau","Cèdre"]
[10,3,"103","2003-03-10","du Saule pleureur ",{"$f":"VLOOKUP(H6,arbres!$A$1:$B$21,2)","v":"SAULE PLEUREUR (la mélancolie) - Beau mais plein de mélancolie, séduisant, très emphatique, aime tout ce qui est beau et de bon goût, aime voyager, est rêveur, agité, capricieux, honnête, peut être influencé mais il n'est pas facile à vivre, exigeant, bonne intuition, souffre en amour mais trouve quelquefois un partenaire qui lui sert de point d'ancrage"},"des Poissons","Saule pleureur"]
[10,4,"104","2003-04-10","du Cormier ",{"$f":"VLOOKUP(H7,arbres!$A$1:$B$21,2)","v":"CORMIER (la délicatesse) - Plein de charme, enjoué, talentueux sans être égoïste aime attirer l'attention, adore la vie, le mouvement, l'agitation et même les complications, est à la fois dépendant et indépendant, fait preuve de bon goût, est artistique, passionné, émotif, est de bonne compagnie, mais ne pardonne pas"},"du Bélier","Cormier"]
[10,5,"105","2003-05-10","du Peuplier ",{"$f":"VLOOKUP(H8,arbres!$A$1:$B$21,2)","v":"PEUPLIER (l'incertitude) - Très décoratif, n'a pas beaucoup confiance en lui, courageux seulement lorsque nécessaire, a besoin d'être entouré de personnes plaisantes et de bonne volonté, très sélectif, souvent solitaire, peut éprouver une grande animosité, possède une nature artistique, est un organisateur, a un penchant pour la philosophie, fiable dans toutes les situations, le couple est très important pour lui"},"du Taureau","Peuplier "]
[10,6,"106","2003-06-10","du Charme de la Caroline ",{"$f":"VLOOKUP(H9,arbres!$A$1:$B$21,2)","v":"CHARME DE LA CAROLINE (le bon goût) - D'une beauté affranchissante, fait attention à son apparence et à sa condition physique, fait preuve de bon goût, n'est pas égoïste, fait en sorte que sa vie soit aussi confortable que possible, mène une vie raisonnable et disciplinée, recherche la gentillesse et la reconnaissance chez un partenaire de vie, rêve d'amants exceptionnels, est quelquefois heureux de ses sentiments, a peu confiance dans la plupart des gens, n'est jamais certain de ses décisions, est très consciencieux."},"des Gémeaux","Charme de la Caroline"]
[10,7,"107","2003-07-10","du du Sapin ",{"$f":"VLOOKUP(H10,arbres!$A$1:$B$21,2)","v":"SAPIN (le mystérieux) - Fait preuve d'un goût extraordinaire, est digne, sophistique, adore tout ce qui est beau, est d'humeur changeante, entêté, a une tendance à l'égoïsme, mais est attentif aux personnes qui sont proches de lui, est plutôt modeste, très ambitieux, talentueux, travailleur, un amant insatisfait, a plusieurs amis, plusieurs ennemis, on peut compter sur lui"},"du Cancer","Sapin"]
[10,8,"108","2003-08-10","du Peuplier ",{"$f":"VLOOKUP(H11,arbres!$A$1:$B$21,2)","v":"PEUPLIER (l'incertitude) - Très décoratif, n'a pas beaucoup confiance en lui, courageux seulement lorsque nécessaire, a besoin d'être entouré de personnes plaisantes et de bonne volonté, très sélectif, souvent solitaire, peut éprouver une grande animosité, possède une nature artistique, est un organisateur, a un penchant pour la philosophie, fiable dans toutes les situations, le couple est très important pour lui"},"du Lion","Peuplier "]
[10,9,"109","2003-09-10","du Saule pleureur ",{"$f":"VLOOKUP(H12,arbres!$A$1:$B$21,2)","v":"SAULE PLEUREUR (la mélancolie) - Beau mais plein de mélancolie, séduisant, très emphatique, aime tout ce qui est beau et de bon goût, aime voyager, est rêveur, agité, capricieux, honnête, peut être influencé mais il n'est pas facile à vivre, exigeant, bonne intuition, souffre en amour mais trouve quelquefois un partenaire qui lui sert de point d'ancrage"},"de la Vierge","Saule pleureur"]
[{"$f":"DAY(D13)","v":1},{"$f":"MONTH(D13)","v":1},{"$f":"A13&B13","v":"11"},"2003-01-01","du Pommier ",{"$f":"VLOOKUP(H13,arbres!$A$1:$B$21,2)","v":"POMMIER (l'amour) - Frêle possède beaucoup de charme, a un bon pouvoir de séduction et d'attraction, a une aura plaisante, aime flirter, est aventureux, sensible, toujours en amour, veut aimer et être aimé, partenaire tendre et fidèle, est très généreux, a des talents scientifiques, ne vit que pour aujourd'hui, est un philosophe insouciant et imaginatif"},"du Capricorne","Pommier "]
[1,10,"110","2003-10-01","du Noisetier ",{"$f":"VLOOKUP(H14,arbres!$A$1:$B$21,2)","v":"NOISETIER (l'extraordinaire) - Charmant, peu exigeant, très compréhensif, sait comment faire bonne impression, ardent défenseur des causes sociales, populaire, d'humeur changeante, est un amant capricieux, honnête, un partenaire tolérant, possède un sens précis du jugement"},"de la Balance","Noisetier"]
[11,1,"111","2003-01-11","du Sapin ",{"$f":"VLOOKUP(H15,arbres!$A$1:$B$21,2)","v":"SAPIN (le mystérieux) - Fait preuve d'un goût extraordinaire, est digne, sophistique, adore tout ce qui est beau, est d'humeur changeante, entêté, a une tendance à l'égoïsme, mais est attentif aux personnes qui sont proches de lui, est plutôt modeste, très ambitieux, talentueux, travailleur, un amant insatisfait, a plusieurs amis, plusieurs ennemis, on peut compter sur lui"},"du Capricorne","Sapin"]
[1,11,"111","2003-11-01","du Noyer ",{"$f":"VLOOKUP(H16,arbres!$A$1:$B$21,2)","v":"NOYER (la passion) - Implacable, surprenant et plein de contrastes, souvent narcissique, peut démontrer de l'agressivité, est généreux, de vastes horizons s'ouvrent à lui, peut avoir des réactions inattendues, est spontané, fait preuve d'une ambition sans limite, aucune flexibilité, est un partenaire difficile et peu commun, n'est pas toujours aimé mais est souvent admire, stratège hors pair, très jaloux et passionné, ne fait aucun compromis"},"du Scorpion","Noyer"]
[11,10,"1110","2003-10-11","du Cormier ",{"$f":"VLOOKUP(H17,arbres!$A$1:$B$21,2)","v":"CORMIER (la délicatesse) - Plein de charme, enjoué, talentueux sans être égoïste aime attirer l'attention, adore la vie, le mouvement, l'agitation et même les complications, est à la fois dépendant et indépendant, fait preuve de bon goût, est artistique, passionné, émotif, est de bonne compagnie, mais ne pardonne pas"},"de la Balance","Cormier"]
[11,11,"1111","2003-11-11","du Noyer ",{"$f":"VLOOKUP(H18,arbres!$A$1:$B$21,2)","v":"NOYER (la passion) - Implacable, surprenant et plein de contrastes, souvent narcissique, peut démontrer de l'agressivité, est généreux, de vastes horizons s'ouvrent à lui, peut avoir des réactions inattendues, est spontané, fait preuve d'une ambition sans limite, aucune flexibilité, est un partenaire difficile et peu commun, n'est pas toujours aimé mais est souvent admire, stratège hors pair, très jaloux et passionné, ne fait aucun compromis"},"du Scorpion","Noyer"]
[11,12,"1112","2003-12-11","du Charme de la Caroline ",{"$f":"VLOOKUP(H19,arbres!$A$1:$B$21,2)","v":"CHARME DE LA CAROLINE (le bon goût) - D'une beauté affranchissante, fait attention à son apparence et à sa condition physique, fait preuve de bon goût, n'est pas égoïste, fait en sorte que sa vie soit aussi confortable que possible, mène une vie raisonnable et disciplinée, recherche la gentillesse et la reconnaissance chez un partenaire de vie, rêve d'amants exceptionnels, est quelquefois heureux de ses sentiments, a peu confiance dans la plupart des gens, n'est jamais certain de ses décisions, est très consciencieux."},"du Sagitaire","Charme de la Caroline"]
[11,2,"112","2003-02-11","du Cèdre ",{"$f":"VLOOKUP(H20,arbres!$A$1:$B$21,2)","v":"CEDRE (la confiance) - D'une rare beauté, sait s'adapter, aime le luxe, jouit d'une bonne santé, loin d'être timide, a tendance à regarder les autres de haut, est sur de lui, déterminé, impatient, aime impressionner les autres, a de nombreux talents, travailleur, d'un optimisme sain, attendra son seul vrai amour, et est capable de prendre des décisions rapidement."},"du Verseau","Cèdre"]
[1,12,"112","2003-12-01","du Frêne ",{"$f":"VLOOKUP(H21,arbres!$A$1:$B$21,2)","v":"FRENE (l'ambition) - Très séduisant, vif, impulsif, exigeant, ne se préoccupe pas des critiques, ambitieux, intelligent, talentueux, aime jouer avec le destin, peut être narcissique, très fiable et digne de confiance, amant fidèle et prudent, laisse quelquefois sa tête avoir le pas sur son cœur, mais prend le couple très au sérieux."},"du Sagitaire","Frêne"]
[11,3,"113","2003-03-11","du Tilleul ",{"$f":"VLOOKUP(H22,arbres!$A$1:$B$21,2)","v":"TILLEUL (le doute) - Accepte calmement les leçons parfois difficiles que lui impose la vie, déteste la bagarre, le stress et le travail, n'aime pas la paresse et  l'inaction, est doux et se laisse fléchir facilement, fait des sacrifices pour ses amis, a plusieurs talents mais n'a pas la ténacité nécessaire pour les développer, se plaint et gémit souvent, est très jaloux mais est aussi loyal"},"des Poissons","Tilleul"]
[11,4,"114","2003-04-11","de l' Érable ",{"$f":"VLOOKUP(H23,arbres!$A$1:$B$21,2)","v":"ÉRABLE (l'indépendance d'esprit) - Sort de l'ordinaire, débordant d'imagination et d'originalité, timide et réservé, ambitieux, fier, sûr de lui, désire ardemment vivre de nouvelles expériences, est quelquefois nerveux, possède plusieurs complexités, a une bonne mémoire, apprend facilement, a une vie amoureuse compliquée, désire impressionner."},"du Bélier","Érable"]
[11,5,"115","2003-05-11","du Peuplier ",{"$f":"VLOOKUP(H24,arbres!$A$1:$B$21,2)","v":"PEUPLIER (l'incertitude) - Très décoratif, n'a pas beaucoup confiance en lui, courageux seulement lorsque nécessaire, a besoin d'être entouré de personnes plaisantes et de bonne volonté, très sélectif, souvent solitaire, peut éprouver une grande animosité, possède une nature artistique, est un organisateur, a un penchant pour la philosophie, fiable dans toutes les situations, le couple est très important pour lui"},"du Taureau","Peuplier "]
[11,6,"116","2003-06-11","du Charme de la Caroline ",{"$f":"VLOOKUP(H25,arbres!$A$1:$B$21,2)","v":"CHARME DE LA CAROLINE (le bon goût) - D'une beauté affranchissante, fait attention à son apparence et à sa condition physique, fait preuve de bon goût, n'est pas égoïste, fait en sorte que sa vie soit aussi confortable que possible, mène une vie raisonnable et disciplinée, recherche la gentillesse et la reconnaissance chez un partenaire de vie, rêve d'amants exceptionnels, est quelquefois heureux de ses sentiments, a peu confiance dans la plupart des gens, n'est jamais certain de ses décisions, est très consciencieux."},"des Gémeaux","Charme de la Caroline"]
[11,7,"117","2003-07-11","du Sapin ",{"$f":"VLOOKUP(H26,arbres!$A$1:$B$21,2)","v":"SAPIN (le mystérieux) - Fait preuve d'un goût extraordinaire, est digne, sophistique, adore tout ce qui est beau, est d'humeur changeante, entêté, a une tendance à l'égoïsme, mais est attentif aux personnes qui sont proches de lui, est plutôt modeste, très ambitieux, talentueux, travailleur, un amant insatisfait, a plusieurs amis, plusieurs ennemis, on peut compter sur lui"},"du Cancer","Sapin"]
[11,8,"118","2003-08-11","du Peuplier ",{"$f":"VLOOKUP(H27,arbres!$A$1:$B$21,2)","v":"PEUPLIER (l'incertitude) - Très décoratif, n'a pas beaucoup confiance en lui, courageux seulement lorsque nécessaire, a besoin d'être entouré de personnes plaisantes et de bonne volonté, très sélectif, souvent solitaire, peut éprouver une grande animosité, possède une nature artistique, est un organisateur, a un penchant pour la philosophie, fiable dans toutes les situations, le couple est très important pour lui"},"du Lion","Peuplier "]
[11,9,"119","2003-09-11","du Saule pleureur ",{"$f":"VLOOKUP(H28,arbres!$A$1:$B$21,2)","v":"SAULE PLEUREUR (la mélancolie) - Beau mais plein de mélancolie, séduisant, très emphatique, aime tout ce qui est beau et de bon goût, aime voyager, est rêveur, agité, capricieux, honnête, peut être influencé mais il n'est pas facile à vivre, exigeant, bonne intuition, souffre en amour mais trouve quelquefois un partenaire qui lui sert de point d'ancrage"},"de la Vierge","Saule pleureur"]
[1,2,"12","2003-02-01","du Cyprès ",{"$f":"VLOOKUP(H29,arbres!$A$1:$B$21,2)","v":"CYPRES (la fidélité) - Fort, musclé, adaptable, prend ce que la vie a à offrir, content, optimiste, a soif d'argent et de reconnaissance, déteste la solitude, amant passionné qui ne peut être satisfait, est fidèle, s'emporte facilement, est indiscipliné, pendant et négligent."},"du Verseau","Cyprès "]
[12,1,"121","2003-01-12","de l' Orme ",{"$f":"VLOOKUP(H30,arbres!$A$1:$B$21,2)","v":"ORME (la générosité) - De forme plaisante, porte des vêtements élégants, a des exigences modestes, a tendance à ne pas pardonner les erreurs, enjoué, aime mener mais n'aime pas obéir, partenaire fidèle, aime prendre des décisions pour les autres, généreux, a un bon sens de l'humour, est pratique"},"du Capricorne","Orme "]
[12,10,"1210","2003-10-12","du Cormier ",{"$f":"VLOOKUP(H31,arbres!$A$1:$B$21,2)","v":"CORMIER (la délicatesse) - Plein de charme, enjoué, talentueux sans être égoïste aime attirer l'attention, adore la vie, le mouvement, l'agitation et même les complications, est à la fois dépendant et indépendant, fait preuve de bon goût, est artistique, passionné, émotif, est de bonne compagnie, mais ne pardonne pas"},"de la Balance","Cormier"]
[12,11,"1211","2003-11-12","du Châtaignier ",{"$f":"VLOOKUP(H32,arbres!$A$1:$B$21,2)","v":"CHATAIGNIER (l'honnêteté) - D'une beauté peu commune, ne veut pas impressionner, a un sens de la justice très développé, peu diplomate, s'irrite facilement et est souvent blessé en société en raison de son manque d'estime de lui, quelquefois donne l'impression d'être supérieur, a l'impression de ne pas être compris, n'aime qu'une fois, peut avoir des difficultés à trouver un partenaire. "},"du Scorpion","Châtaignier"]
[12,12,"1212","2003-12-12","du Figuier ",{"$f":"VLOOKUP(H33,arbres!$A$1:$B$21,2)","v":"FIGUIER (la sensibilité) - Très fort, un peu entêté, indépendant, ne tolère pas les contradictions ou les controverses, adore la vie, sa famille, les enfants et  les animaux, un peu volage en société, a un bon sens de l'humour, aime l'oisiveté et la paresse, possède des talents et une intelligence pratiques."},"du Sagitaire","Figuier"]
[12,2,"122","2003-02-12","du Cèdre ",{"$f":"VLOOKUP(H34,arbres!$A$1:$B$21,2)","v":"CEDRE (la confiance) - D'une rare beauté, sait s'adapter, aime le luxe, jouit d'une bonne santé, loin d'être timide, a tendance à regarder les autres de haut, est sur de lui, déterminé, impatient, aime impressionner les autres, a de nombreux talents, travailleur, d'un optimisme sain, attendra son seul vrai amour, et est capable de prendre des décisions rapidement."},"du Verseau","Cèdre"]
[12,3,"123","2003-03-12","du Tilleul ",{"$f":"VLOOKUP(H35,arbres!$A$1:$B$21,2)","v":"TILLEUL (le doute) - Accepte calmement les leçons parfois difficiles que lui impose la vie, déteste la bagarre, le stress et le travail, n'aime pas la paresse et  l'inaction, est doux et se laisse fléchir facilement, fait des sacrifices pour ses amis, a plusieurs talents mais n'a pas la ténacité nécessaire pour les développer, se plaint et gémit souvent, est très jaloux mais est aussi loyal"},"des Poissons","Tilleul"]
[12,4,"124","2003-04-12","de l' Érable ",{"$f":"VLOOKUP(H36,arbres!$A$1:$B$21,2)","v":"ÉRABLE (l'indépendance d'esprit) - Sort de l'ordinaire, débordant d'imagination et d'originalité, timide et réservé, ambitieux, fier, sûr de lui, désire ardemment vivre de nouvelles expériences, est quelquefois nerveux, possède plusieurs complexités, a une bonne mémoire, apprend facilement, a une vie amoureuse compliquée, désire impressionner."},"du Bélier","Érable"]
[12,5,"125","2003-05-12","du Peuplier ",{"$f":"VLOOKUP(H37,arbres!$A$1:$B$21,2)","v":"PEUPLIER (l'incertitude) - Très décoratif, n'a pas beaucoup confiance en lui, courageux seulement lorsque nécessaire, a besoin d'être entouré de personnes plaisantes et de bonne volonté, très sélectif, souvent solitaire, peut éprouver une grande animosité, possède une nature artistique, est un organisateur, a un penchant pour la philosophie, fiable dans toutes les situations, le couple est très important pour lui"},"du Taureau","Peuplier "]
[12,6,"126","2003-06-12","du Charme de la Caroline ",{"$f":"VLOOKUP(H38,arbres!$A$1:$B$21,2)","v":"CHARME DE LA CAROLINE (le bon goût) - D'une beauté affranchissante, fait attention à son apparence et à sa condition physique, fait preuve de bon goût, n'est pas égoïste, fait en sorte que sa vie soit aussi confortable que possible, mène une vie raisonnable et disciplinée, recherche la gentillesse et la reconnaissance chez un partenaire de vie, rêve d'amants exceptionnels, est quelquefois heureux de ses sentiments, a peu confiance dans la plupart des gens, n'est jamais certain de ses décisions, est très consciencieux."},"des Gémeaux","Charme de la Caroline"]
[12,7,"127","2003-07-12","du Sapin ",{"$f":"VLOOKUP(H39,arbres!$A$1:$B$21,2)","v":"SAPIN (le mystérieux) - Fait preuve d'un goût extraordinaire, est digne, sophistique, adore tout ce qui est beau, est d'humeur changeante, entêté, a une tendance à l'égoïsme, mais est attentif aux personnes qui sont proches de lui, est plutôt modeste, très ambitieux, talentueux, travailleur, un amant insatisfait, a plusieurs amis, plusieurs ennemis, on peut compter sur lui"},"du Cancer","Sapin"]
[12,8,"128","2003-08-12","du Peuplier ",{"$f":"VLOOKUP(H40,arbres!$A$1:$B$21,2)","v":"PEUPLIER (l'incertitude) - Très décoratif, n'a pas beaucoup confiance en lui, courageux seulement lorsque nécessaire, a besoin d'être entouré de personnes plaisantes et de bonne volonté, très sélectif, souvent solitaire, peut éprouver une grande animosité, possède une nature artistique, est un organisateur, a un penchant pour la philosophie, fiable dans toutes les situations, le couple est très important pour lui"},"du Lion","Peuplier "]
[12,9,"129","2003-09-12","du Saule pleureur ",{"$f":"VLOOKUP(H41,arbres!$A$1:$B$21,2)","v":"SAULE PLEUREUR (la mélancolie) - Beau mais plein de mélancolie, séduisant, très emphatique, aime tout ce qui est beau et de bon goût, aime voyager, est rêveur, agité, capricieux, honnête, peut être influencé mais il n'est pas facile à vivre, exigeant, bonne intuition, souffre en amour mais trouve quelquefois un partenaire qui lui sert de point d'ancrage"},"de la Vierge","Saule pleureur"]
[1,3,"13","2003-03-01","du Saule pleureur ",{"$f":"VLOOKUP(H42,arbres!$A$1:$B$21,2)","v":"SAULE PLEUREUR (la mélancolie) - Beau mais plein de mélancolie, séduisant, très emphatique, aime tout ce qui est beau et de bon goût, aime voyager, est rêveur, agité, capricieux, honnête, peut être influencé mais il n'est pas facile à vivre, exigeant, bonne intuition, souffre en amour mais trouve quelquefois un partenaire qui lui sert de point d'ancrage"},"des Poissons","Saule pleureur"]
[13,1,"131","2003-01-13","de l' Orme ",{"$f":"VLOOKUP(H43,arbres!$A$1:$B$21,2)","v":"ORME (la générosité) - De forme plaisante, porte des vêtements élégants, a des exigences modestes, a tendance à ne pas pardonner les erreurs, enjoué, aime mener mais n'aime pas obéir, partenaire fidèle, aime prendre des décisions pour les autres, généreux, a un bon sens de l'humour, est pratique"},"du Capricorne","Orme "]
[13,10,"1310","2003-10-13","du Cormier ",{"$f":"VLOOKUP(H44,arbres!$A$1:$B$21,2)","v":"CORMIER (la délicatesse) - Plein de charme, enjoué, talentueux sans être égoïste aime attirer l'attention, adore la vie, le mouvement, l'agitation et même les complications, est à la fois dépendant et indépendant, fait preuve de bon goût, est artistique, passionné, émotif, est de bonne compagnie, mais ne pardonne pas"},"de la Balance","Cormier"]
[13,11,"1311","2003-11-13","du Châtaignier ",{"$f":"VLOOKUP(H45,arbres!$A$1:$B$21,2)","v":"CHATAIGNIER (l'honnêteté) - D'une beauté peu commune, ne veut pas impressionner, a un sens de la justice très développé, peu diplomate, s'irrite facilement et est souvent blessé en société en raison de son manque d'estime de lui, quelquefois donne l'impression d'être supérieur, a l'impression de ne pas être compris, n'aime qu'une fois, peut avoir des difficultés à trouver un partenaire. "},"du Scorpion","Châtaignier"]
[13,12,"1312","2003-12-13","du Figuier ",{"$f":"VLOOKUP(H46,arbres!$A$1:$B$21,2)","v":"FIGUIER (la sensibilité) - Très fort, un peu entêté, indépendant, ne tolère pas les contradictions ou les controverses, adore la vie, sa famille, les enfants et  les animaux, un peu volage en société, a un bon sens de l'humour, aime l'oisiveté et la paresse, possède des talents et une intelligence pratiques."},"du Sagitaire","Figuier"]
[13,2,"132","2003-02-13","du Cèdre ",{"$f":"VLOOKUP(H47,arbres!$A$1:$B$21,2)","v":"CEDRE (la confiance) - D'une rare beauté, sait s'adapter, aime le luxe, jouit d'une bonne santé, loin d'être timide, a tendance à regarder les autres de haut, est sur de lui, déterminé, impatient, aime impressionner les autres, a de nombreux talents, travailleur, d'un optimisme sain, attendra son seul vrai amour, et est capable de prendre des décisions rapidement."},"du Verseau","Cèdre"]
[13,3,"133","2003-03-13","du Tilleul ",{"$f":"VLOOKUP(H48,arbres!$A$1:$B$21,2)","v":"TILLEUL (le doute) - Accepte calmement les leçons parfois difficiles que lui impose la vie, déteste la bagarre, le stress et le travail, n'aime pas la paresse et  l'inaction, est doux et se laisse fléchir facilement, fait des sacrifices pour ses amis, a plusieurs talents mais n'a pas la ténacité nécessaire pour les développer, se plaint et gémit souvent, est très jaloux mais est aussi loyal"},"des Poissons","Tilleul"]
[13,4,"134","2003-04-13","de l' Érable ",{"$f":"VLOOKUP(H49,arbres!$A$1:$B$21,2)","v":"ÉRABLE (l'indépendance d'esprit) - Sort de l'ordinaire, débordant d'imagination et d'originalité, timide et réservé, ambitieux, fier, sûr de lui, désire ardemment vivre de nouvelles expériences, est quelquefois nerveux, possède plusieurs complexités, a une bonne mémoire, apprend facilement, a une vie amoureuse compliquée, désire impressionner."},"du Bélier","Érable"]
[13,5,"135","2003-05-13","du Peuplier ",{"$f":"VLOOKUP(H50,arbres!$A$1:$B$21,2)","v":"PEUPLIER (l'incertitude) - Très décoratif, n'a pas beaucoup confiance en lui, courageux seulement lorsque nécessaire, a besoin d'être entouré de personnes plaisantes et de bonne volonté, très sélectif, souvent solitaire, peut éprouver une grande animosité, possède une nature artistique, est un organisateur, a un penchant pour la philosophie, fiable dans toutes les situations, le couple est très important pour lui"},"du Taureau","Peuplier "]
[13,6,"136","2003-06-13","du Charme de la Caroline ",{"$f":"VLOOKUP(H51,arbres!$A$1:$B$21,2)","v":"CHARME DE LA CAROLINE (le bon goût) - D'une beauté affranchissante, fait attention à son apparence et à sa condition physique, fait preuve de bon goût, n'est pas égoïste, fait en sorte que sa vie soit aussi confortable que possible, mène une vie raisonnable et disciplinée, recherche la gentillesse et la reconnaissance chez un partenaire de vie, rêve d'amants exceptionnels, est quelquefois heureux de ses sentiments, a peu confiance dans la plupart des gens, n'est jamais certain de ses décisions, est très consciencieux."},"des Gémeaux","Charme de la Caroline"]
[13,7,"137","2003-07-13","du Sapin ",{"$f":"VLOOKUP(H52,arbres!$A$1:$B$21,2)","v":"SAPIN (le mystérieux) - Fait preuve d'un goût extraordinaire, est digne, sophistique, adore tout ce qui est beau, est d'humeur changeante, entêté, a une tendance à l'égoïsme, mais est attentif aux personnes qui sont proches de lui, est plutôt modeste, très ambitieux, talentueux, travailleur, un amant insatisfait, a plusieurs amis, plusieurs ennemis, on peut compter sur lui"},"du Cancer","Sapin"]
[13,8,"138","2003-08-13","du Peuplier ",{"$f":"VLOOKUP(H53,arbres!$A$1:$B$21,2)","v":"PEUPLIER (l'incertitude) - Très décoratif, n'a pas beaucoup confiance en lui, courageux seulement lorsque nécessaire, a besoin d'être entouré de personnes plaisantes et de bonne volonté, très sélectif, souvent solitaire, peut éprouver une grande animosité, possède une nature artistique, est un organisateur, a un penchant pour la philosophie, fiable dans toutes les situations, le couple est très important pour lui"},"du Lion","Peuplier "]
[13,9,"139","2003-09-13","du Tilleul ",{"$f":"VLOOKUP(H54,arbres!$A$1:$B$21,2)","v":"TILLEUL (le doute) - Accepte calmement les leçons parfois difficiles que lui impose la vie, déteste la bagarre, le stress et le travail, n'aime pas la paresse et  l'inaction, est doux et se laisse fléchir facilement, fait des sacrifices pour ses amis, a plusieurs talents mais n'a pas la ténacité nécessaire pour les développer, se plaint et gémit souvent, est très jaloux mais est aussi loyal"},"de la Vierge","Tilleul"]
[1,4,"14","2003-04-01","du Cormier ",{"$f":"VLOOKUP(H55,arbres!$A$1:$B$21,2)","v":"CORMIER (la délicatesse) - Plein de charme, enjoué, talentueux sans être égoïste aime attirer l'attention, adore la vie, le mouvement, l'agitation et même les complications, est à la fois dépendant et indépendant, fait preuve de bon goût, est artistique, passionné, émotif, est de bonne compagnie, mais ne pardonne pas"},"du Bélier","Cormier"]
[14,1,"141","2003-01-14","de l' Orme ",{"$f":"VLOOKUP(H56,arbres!$A$1:$B$21,2)","v":"ORME (la générosité) - De forme plaisante, porte des vêtements élégants, a des exigences modestes, a tendance à ne pas pardonner les erreurs, enjoué, aime mener mais n'aime pas obéir, partenaire fidèle, aime prendre des décisions pour les autres, généreux, a un bon sens de l'humour, est pratique"},"du Capricorne","Orme "]
[14,10,"1410","2003-10-14","de l' Érable ",{"$f":"VLOOKUP(H57,arbres!$A$1:$B$21,2)","v":"ÉRABLE (l'indépendance d'esprit) - Sort de l'ordinaire, débordant d'imagination et d'originalité, timide et réservé, ambitieux, fier, sûr de lui, désire ardemment vivre de nouvelles expériences, est quelquefois nerveux, possède plusieurs complexités, a une bonne mémoire, apprend facilement, a une vie amoureuse compliquée, désire impressionner."},"de la Balance","Érable"]
[14,11,"1411","2003-11-14","du Châtaignier ",{"$f":"VLOOKUP(H58,arbres!$A$1:$B$21,2)","v":"CHATAIGNIER (l'honnêteté) - D'une beauté peu commune, ne veut pas impressionner, a un sens de la justice très développé, peu diplomate, s'irrite facilement et est souvent blessé en société en raison de son manque d'estime de lui, quelquefois donne l'impression d'être supérieur, a l'impression de ne pas être compris, n'aime qu'une fois, peut avoir des difficultés à trouver un partenaire. "},"du Scorpion","Châtaignier"]
[14,12,"1412","2003-12-14","du Figuier ",{"$f":"VLOOKUP(H59,arbres!$A$1:$B$21,2)","v":"FIGUIER (la sensibilité) - Très fort, un peu entêté, indépendant, ne tolère pas les contradictions ou les controverses, adore la vie, sa famille, les enfants et  les animaux, un peu volage en société, a un bon sens de l'humour, aime l'oisiveté et la paresse, possède des talents et une intelligence pratiques."},"du Sagitaire","Figuier"]
[14,2,"142","2003-02-14","du Cèdre ",{"$f":"VLOOKUP(H60,arbres!$A$1:$B$21,2)","v":"CEDRE (la confiance) - D'une rare beauté, sait s'adapter, aime le luxe, jouit d'une bonne santé, loin d'être timide, a tendance à regarder les autres de haut, est sur de lui, déterminé, impatient, aime impressionner les autres, a de nombreux talents, travailleur, d'un optimisme sain, attendra son seul vrai amour, et est capable de prendre des décisions rapidement."},"du Verseau","Cèdre"]
[14,3,"143","2003-03-14","du Tilleul ",{"$f":"VLOOKUP(H61,arbres!$A$1:$B$21,2)","v":"TILLEUL (le doute) - Accepte calmement les leçons parfois difficiles que lui impose la vie, déteste la bagarre, le stress et le travail, n'aime pas la paresse et  l'inaction, est doux et se laisse fléchir facilement, fait des sacrifices pour ses amis, a plusieurs talents mais n'a pas la ténacité nécessaire pour les développer, se plaint et gémit souvent, est très jaloux mais est aussi loyal"},"des Poissons","Tilleul"]
[14,4,"144","2003-04-14","de l' Érable ",{"$f":"VLOOKUP(H62,arbres!$A$1:$B$21,2)","v":"ÉRABLE (l'indépendance d'esprit) - Sort de l'ordinaire, débordant d'imagination et d'originalité, timide et réservé, ambitieux, fier, sûr de lui, désire ardemment vivre de nouvelles expériences, est quelquefois nerveux, possède plusieurs complexités, a une bonne mémoire, apprend facilement, a une vie amoureuse compliquée, désire impressionner."},"du Bélier","Érable"]
[14,5,"145","2003-05-14","du Peuplier ",{"$f":"VLOOKUP(H63,arbres!$A$1:$B$21,2)","v":"PEUPLIER (l'incertitude) - Très décoratif, n'a pas beaucoup confiance en lui, courageux seulement lorsque nécessaire, a besoin d'être entouré de personnes plaisantes et de bonne volonté, très sélectif, souvent solitaire, peut éprouver une grande animosité, possède une nature artistique, est un organisateur, a un penchant pour la philosophie, fiable dans toutes les situations, le couple est très important pour lui"},"du Taureau","Peuplier "]
[14,6,"146","2003-06-14","du Figuier ",{"$f":"VLOOKUP(H64,arbres!$A$1:$B$21,2)","v":"FIGUIER (la sensibilité) - Très fort, un peu entêté, indépendant, ne tolère pas les contradictions ou les controverses, adore la vie, sa famille, les enfants et  les animaux, un peu volage en société, a un bon sens de l'humour, aime l'oisiveté et la paresse, possède des talents et une intelligence pratiques."},"des Gémeaux","Figuier"]
[14,7,"147","2003-07-14","du Sapin ",{"$f":"VLOOKUP(H65,arbres!$A$1:$B$21,2)","v":"SAPIN (le mystérieux) - Fait preuve d'un goût extraordinaire, est digne, sophistique, adore tout ce qui est beau, est d'humeur changeante, entêté, a une tendance à l'égoïsme, mais est attentif aux personnes qui sont proches de lui, est plutôt modeste, très ambitieux, talentueux, travailleur, un amant insatisfait, a plusieurs amis, plusieurs ennemis, on peut compter sur lui"},"du Cancer","Sapin"]
[14,8,"148","2003-08-14","du Cèdre ",{"$f":"VLOOKUP(H66,arbres!$A$1:$B$21,2)","v":"CEDRE (la confiance) - D'une rare beauté, sait s'adapter, aime le luxe, jouit d'une bonne santé, loin d'être timide, a tendance à regarder les autres de haut, est sur de lui, déterminé, impatient, aime impressionner les autres, a de nombreux talents, travailleur, d'un optimisme sain, attendra son seul vrai amour, et est capable de prendre des décisions rapidement."},"du Lion","Cèdre"]
[14,9,"149","2003-09-14","du Tilleul ",{"$f":"VLOOKUP(H67,arbres!$A$1:$B$21,2)","v":"TILLEUL (le doute) - Accepte calmement les leçons parfois difficiles que lui impose la vie, déteste la bagarre, le stress et le travail, n'aime pas la paresse et  l'inaction, est doux et se laisse fléchir facilement, fait des sacrifices pour ses amis, a plusieurs talents mais n'a pas la ténacité nécessaire pour les développer, se plaint et gémit souvent, est très jaloux mais est aussi loyal"},"de la Vierge","Tilleul"]
[1,5,"15","2003-05-01","du Peuplier ",{"$f":"VLOOKUP(H68,arbres!$A$1:$B$21,2)","v":"PEUPLIER (l'incertitude) - Très décoratif, n'a pas beaucoup confiance en lui, courageux seulement lorsque nécessaire, a besoin d'être entouré de personnes plaisantes et de bonne volonté, très sélectif, souvent solitaire, peut éprouver une grande animosité, possède une nature artistique, est un organisateur, a un penchant pour la philosophie, fiable dans toutes les situations, le couple est très important pour lui"},"du Taureau","Peuplier "]
[15,1,"151","2003-01-15","de l' Orme ",{"$f":"VLOOKUP(H69,arbres!$A$1:$B$21,2)","v":"ORME (la générosité) - De forme plaisante, porte des vêtements élégants, a des exigences modestes, a tendance à ne pas pardonner les erreurs, enjoué, aime mener mais n'aime pas obéir, partenaire fidèle, aime prendre des décisions pour les autres, généreux, a un bon sens de l'humour, est pratique"},"du Capricorne","Orme "]
[15,10,"1510","2003-10-15","de l' Érable ",{"$f":"VLOOKUP(H70,arbres!$A$1:$B$21,2)","v":"ÉRABLE (l'indépendance d'esprit) - Sort de l'ordinaire, débordant d'imagination et d'originalité, timide et réservé, ambitieux, fier, sûr de lui, désire ardemment vivre de nouvelles expériences, est quelquefois nerveux, possède plusieurs complexités, a une bonne mémoire, apprend facilement, a une vie amoureuse compliquée, désire impressionner."},"de la Balance","Érable"]
[15,11,"1511","2003-11-15","du Châtaignier ",{"$f":"VLOOKUP(H71,arbres!$A$1:$B$21,2)","v":"CHATAIGNIER (l'honnêteté) - D'une beauté peu commune, ne veut pas impressionner, a un sens de la justice très développé, peu diplomate, s'irrite facilement et est souvent blessé en société en raison de son manque d'estime de lui, quelquefois donne l'impression d'être supérieur, a l'impression de ne pas être compris, n'aime qu'une fois, peut avoir des difficultés à trouver un partenaire. "},"du Scorpion","Châtaignier"]
[15,12,"1512","2003-12-15","du Figuier ",{"$f":"VLOOKUP(H72,arbres!$A$1:$B$21,2)","v":"FIGUIER (la sensibilité) - Très fort, un peu entêté, indépendant, ne tolère pas les contradictions ou les controverses, adore la vie, sa famille, les enfants et  les animaux, un peu volage en société, a un bon sens de l'humour, aime l'oisiveté et la paresse, possède des talents et une intelligence pratiques."},"du Sagitaire","Figuier"]
[{"$f":"DAY(D73)","v":15},{"$f":"MONTH(D73)","v":2},{"$f":"A73&B73","v":"152"},"2003-02-15","du Cèdre ",{"$f":"VLOOKUP(H73,arbres!$A$1:$B$21,2)","v":"CEDRE (la confiance) - D'une rare beauté, sait s'adapter, aime le luxe, jouit d'une bonne santé, loin d'être timide, a tendance à regarder les autres de haut, est sur de lui, déterminé, impatient, aime impressionner les autres, a de nombreux talents, travailleur, d'un optimisme sain, attendra son seul vrai amour, et est capable de prendre des décisions rapidement."},"du Verseau","Cèdre"]
[15,3,"153","2003-03-15","du Tilleul ",{"$f":"VLOOKUP(H74,arbres!$A$1:$B$21,2)","v":"TILLEUL (le doute) - Accepte calmement les leçons parfois difficiles que lui impose la vie, déteste la bagarre, le stress et le travail, n'aime pas la paresse et  l'inaction, est doux et se laisse fléchir facilement, fait des sacrifices pour ses amis, a plusieurs talents mais n'a pas la ténacité nécessaire pour les développer, se plaint et gémit souvent, est très jaloux mais est aussi loyal"},"des Poissons","Tilleul"]
[15,4,"154","2003-04-15","de l' Érable ",{"$f":"VLOOKUP(H75,arbres!$A$1:$B$21,2)","v":"ÉRABLE (l'indépendance d'esprit) - Sort de l'ordinaire, débordant d'imagination et d'originalité, timide et réservé, ambitieux, fier, sûr de lui, désire ardemment vivre de nouvelles expériences, est quelquefois nerveux, possède plusieurs complexités, a une bonne mémoire, apprend facilement, a une vie amoureuse compliquée, désire impressionner."},"du Bélier","Érable"]
[15,5,"155","2003-05-15","du Châtaignier ",{"$f":"VLOOKUP(H76,arbres!$A$1:$B$21,2)","v":"CHATAIGNIER (l'honnêteté) - D'une beauté peu commune, ne veut pas impressionner, a un sens de la justice très développé, peu diplomate, s'irrite facilement et est souvent blessé en société en raison de son manque d'estime de lui, quelquefois donne l'impression d'être supérieur, a l'impression de ne pas être compris, n'aime qu'une fois, peut avoir des difficultés à trouver un partenaire. "},"du Taureau","Châtaignier"]
[15,6,"156","2003-06-15","du Figuier ",{"$f":"VLOOKUP(H77,arbres!$A$1:$B$21,2)","v":"FIGUIER (la sensibilité) - Très fort, un peu entêté, indépendant, ne tolère pas les contradictions ou les controverses, adore la vie, sa famille, les enfants et  les animaux, un peu volage en société, a un bon sens de l'humour, aime l'oisiveté et la paresse, possède des talents et une intelligence pratiques."},"des Gémeaux","Figuier"]
[15,7,"157","2003-07-15","de l' Orme ",{"$f":"VLOOKUP(H78,arbres!$A$1:$B$21,2)","v":"ORME (la générosité) - De forme plaisante, porte des vêtements élégants, a des exigences modestes, a tendance à ne pas pardonner les erreurs, enjoué, aime mener mais n'aime pas obéir, partenaire fidèle, aime prendre des décisions pour les autres, généreux, a un bon sens de l'humour, est pratique"},"du Cancer","Orme "]
[15,8,"158","2003-08-15","du Cèdre ",{"$f":"VLOOKUP(H79,arbres!$A$1:$B$21,2)","v":"CEDRE (la confiance) - D'une rare beauté, sait s'adapter, aime le luxe, jouit d'une bonne santé, loin d'être timide, a tendance à regarder les autres de haut, est sur de lui, déterminé, impatient, aime impressionner les autres, a de nombreux talents, travailleur, d'un optimisme sain, attendra son seul vrai amour, et est capable de prendre des décisions rapidement."},"du Lion","Cèdre"]
[15,9,"159","2003-09-15","du Tilleul ",{"$f":"VLOOKUP(H80,arbres!$A$1:$B$21,2)","v":"TILLEUL (le doute) - Accepte calmement les leçons parfois difficiles que lui impose la vie, déteste la bagarre, le stress et le travail, n'aime pas la paresse et  l'inaction, est doux et se laisse fléchir facilement, fait des sacrifices pour ses amis, a plusieurs talents mais n'a pas la ténacité nécessaire pour les développer, se plaint et gémit souvent, est très jaloux mais est aussi loyal"},"de la Vierge","Tilleul"]
[1,6,"16","2003-06-01","du Frêne ",{"$f":"VLOOKUP(H81,arbres!$A$1:$B$21,2)","v":"FRENE (l'ambition) - Très séduisant, vif, impulsif, exigeant, ne se préoccupe pas des critiques, ambitieux, intelligent, talentueux, aime jouer avec le destin, peut être narcissique, très fiable et digne de confiance, amant fidèle et prudent, laisse quelquefois sa tête avoir le pas sur son cœur, mais prend le couple très au sérieux."},"des Gémeaux","Frêne"]
[16,1,"161","2003-01-16","de l' Orme ",{"$f":"VLOOKUP(H82,arbres!$A$1:$B$21,2)","v":"ORME (la générosité) - De forme plaisante, porte des vêtements élégants, a des exigences modestes, a tendance à ne pas pardonner les erreurs, enjoué, aime mener mais n'aime pas obéir, partenaire fidèle, aime prendre des décisions pour les autres, généreux, a un bon sens de l'humour, est pratique"},"du Capricorne","Orme "]
[16,10,"1610","2003-10-16","de l' Érable ",{"$f":"VLOOKUP(H83,arbres!$A$1:$B$21,2)","v":"ÉRABLE (l'indépendance d'esprit) - Sort de l'ordinaire, débordant d'imagination et d'originalité, timide et réservé, ambitieux, fier, sûr de lui, désire ardemment vivre de nouvelles expériences, est quelquefois nerveux, possède plusieurs complexités, a une bonne mémoire, apprend facilement, a une vie amoureuse compliquée, désire impressionner."},"de la Balance","Érable"]
[16,11,"1611","2003-11-16","du Châtaignier ",{"$f":"VLOOKUP(H84,arbres!$A$1:$B$21,2)","v":"CHATAIGNIER (l'honnêteté) - D'une beauté peu commune, ne veut pas impressionner, a un sens de la justice très développé, peu diplomate, s'irrite facilement et est souvent blessé en société en raison de son manque d'estime de lui, quelquefois donne l'impression d'être supérieur, a l'impression de ne pas être compris, n'aime qu'une fois, peut avoir des difficultés à trouver un partenaire. "},"du Scorpion","Châtaignier"]
[16,12,"1612","2003-12-16","du Figuier ",{"$f":"VLOOKUP(H85,arbres!$A$1:$B$21,2)","v":"FIGUIER (la sensibilité) - Très fort, un peu entêté, indépendant, ne tolère pas les contradictions ou les controverses, adore la vie, sa famille, les enfants et  les animaux, un peu volage en société, a un bon sens de l'humour, aime l'oisiveté et la paresse, possède des talents et une intelligence pratiques."},"du Sagitaire","Figuier"]
[16,2,"162","2003-02-16","du Cèdre ",{"$f":"VLOOKUP(H86,arbres!$A$1:$B$21,2)","v":"CEDRE (la confiance) - D'une rare beauté, sait s'adapter, aime le luxe, jouit d'une bonne santé, loin d'être timide, a tendance à regarder les autres de haut, est sur de lui, déterminé, impatient, aime impressionner les autres, a de nombreux talents, travailleur, d'un optimisme sain, attendra son seul vrai amour, et est capable de prendre des décisions rapidement."},"du Verseau","Cèdre"]
[16,3,"163","2003-03-16","du Tilleul ",{"$f":"VLOOKUP(H87,arbres!$A$1:$B$21,2)","v":"TILLEUL (le doute) - Accepte calmement les leçons parfois difficiles que lui impose la vie, déteste la bagarre, le stress et le travail, n'aime pas la paresse et  l'inaction, est doux et se laisse fléchir facilement, fait des sacrifices pour ses amis, a plusieurs talents mais n'a pas la ténacité nécessaire pour les développer, se plaint et gémit souvent, est très jaloux mais est aussi loyal"},"des Poissons","Tilleul"]
[16,4,"164","2003-04-16","de l' Érable ",{"$f":"VLOOKUP(H88,arbres!$A$1:$B$21,2)","v":"ÉRABLE (l'indépendance d'esprit) - Sort de l'ordinaire, débordant d'imagination et d'originalité, timide et réservé, ambitieux, fier, sûr de lui, désire ardemment vivre de nouvelles expériences, est quelquefois nerveux, possède plusieurs complexités, a une bonne mémoire, apprend facilement, a une vie amoureuse compliquée, désire impressionner."},"du Bélier","Érable"]
[16,5,"165","2003-05-16","du Châtaignier ",{"$f":"VLOOKUP(H89,arbres!$A$1:$B$21,2)","v":"CHATAIGNIER (l'honnêteté) - D'une beauté peu commune, ne veut pas impressionner, a un sens de la justice très développé, peu diplomate, s'irrite facilement et est souvent blessé en société en raison de son manque d'estime de lui, quelquefois donne l'impression d'être supérieur, a l'impression de ne pas être compris, n'aime qu'une fois, peut avoir des difficultés à trouver un partenaire. "},"du Taureau","Châtaignier"]
[16,6,"166","2003-06-16","du Figuier ",{"$f":"VLOOKUP(H90,arbres!$A$1:$B$21,2)","v":"FIGUIER (la sensibilité) - Très fort, un peu entêté, indépendant, ne tolère pas les contradictions ou les controverses, adore la vie, sa famille, les enfants et  les animaux, un peu volage en société, a un bon sens de l'humour, aime l'oisiveté et la paresse, possède des talents et une intelligence pratiques."},"des Gémeaux","Figuier"]
[16,7,"167","2003-07-16","de l' Orme ",{"$f":"VLOOKUP(H91,arbres!$A$1:$B$21,2)","v":"ORME (la générosité) - De forme plaisante, porte des vêtements élégants, a des exigences modestes, a tendance à ne pas pardonner les erreurs, enjoué, aime mener mais n'aime pas obéir, partenaire fidèle, aime prendre des décisions pour les autres, généreux, a un bon sens de l'humour, est pratique"},"du Cancer","Orme "]
[16,8,"168","2003-08-16","du Cèdre ",{"$f":"VLOOKUP(H92,arbres!$A$1:$B$21,2)","v":"CEDRE (la confiance) - D'une rare beauté, sait s'adapter, aime le luxe, jouit d'une bonne santé, loin d'être timide, a tendance à regarder les autres de haut, est sur de lui, déterminé, impatient, aime impressionner les autres, a de nombreux talents, travailleur, d'un optimisme sain, attendra son seul vrai amour, et est capable de prendre des décisions rapidement."},"du Lion","Cèdre"]
[16,9,"169","2003-09-16","du Tilleul ",{"$f":"VLOOKUP(H93,arbres!$A$1:$B$21,2)","v":"TILLEUL (le doute) - Accepte calmement les leçons parfois difficiles que lui impose la vie, déteste la bagarre, le stress et le travail, n'aime pas la paresse et  l'inaction, est doux et se laisse fléchir facilement, fait des sacrifices pour ses amis, a plusieurs talents mais n'a pas la ténacité nécessaire pour les développer, se plaint et gémit souvent, est très jaloux mais est aussi loyal"},"de la Vierge","Tilleul"]
[1,7,"17","2003-07-01","du Pommier ",{"$f":"VLOOKUP(H94,arbres!$A$1:$B$21,2)","v":"POMMIER (l'amour) - Frêle possède beaucoup de charme, a un bon pouvoir de séduction et d'attraction, a une aura plaisante, aime flirter, est aventureux, sensible, toujours en amour, veut aimer et être aimé, partenaire tendre et fidèle, est très généreux, a des talents scientifiques, ne vit que pour aujourd'hui, est un philosophe insouciant et imaginatif"},"du Cancer","Pommier "]
[17,1,"171","2003-01-17","de l' Orme ",{"$f":"VLOOKUP(H95,arbres!$A$1:$B$21,2)","v":"ORME (la générosité) - De forme plaisante, porte des vêtements élégants, a des exigences modestes, a tendance à ne pas pardonner les erreurs, enjoué, aime mener mais n'aime pas obéir, partenaire fidèle, aime prendre des décisions pour les autres, généreux, a un bon sens de l'humour, est pratique"},"du Capricorne","Orme "]
[17,10,"1710","2003-10-17","de l' Érable ",{"$f":"VLOOKUP(H96,arbres!$A$1:$B$21,2)","v":"ÉRABLE (l'indépendance d'esprit) - Sort de l'ordinaire, débordant d'imagination et d'originalité, timide et réservé, ambitieux, fier, sûr de lui, désire ardemment vivre de nouvelles expériences, est quelquefois nerveux, possède plusieurs complexités, a une bonne mémoire, apprend facilement, a une vie amoureuse compliquée, désire impressionner."},"de la Balance","Érable"]
[17,11,"1711","2003-11-17","du Châtaignier ",{"$f":"VLOOKUP(H97,arbres!$A$1:$B$21,2)","v":"CHATAIGNIER (l'honnêteté) - D'une beauté peu commune, ne veut pas impressionner, a un sens de la justice très développé, peu diplomate, s'irrite facilement et est souvent blessé en société en raison de son manque d'estime de lui, quelquefois donne l'impression d'être supérieur, a l'impression de ne pas être compris, n'aime qu'une fois, peut avoir des difficultés à trouver un partenaire. "},"du Scorpion","Châtaignier"]
[17,12,"1712","2003-12-17","du Figuier ",{"$f":"VLOOKUP(H98,arbres!$A$1:$B$21,2)","v":"FIGUIER (la sensibilité) - Très fort, un peu entêté, indépendant, ne tolère pas les contradictions ou les controverses, adore la vie, sa famille, les enfants et  les animaux, un peu volage en société, a un bon sens de l'humour, aime l'oisiveté et la paresse, possède des talents et une intelligence pratiques."},"du Sagitaire","Figuier"]
[17,2,"172","2003-02-17","du Cèdre ",{"$f":"VLOOKUP(H99,arbres!$A$1:$B$21,2)","v":"CEDRE (la confiance) - D'une rare beauté, sait s'adapter, aime le luxe, jouit d'une bonne santé, loin d'être timide, a tendance à regarder les autres de haut, est sur de lui, déterminé, impatient, aime impressionner les autres, a de nombreux talents, travailleur, d'un optimisme sain, attendra son seul vrai amour, et est capable de prendre des décisions rapidement."},"du Verseau","Cèdre"]
[17,3,"173","2003-03-17","du Tilleul ",{"$f":"VLOOKUP(H100,arbres!$A$1:$B$21,2)","v":"TILLEUL (le doute) - Accepte calmement les leçons parfois difficiles que lui impose la vie, déteste la bagarre, le stress et le travail, n'aime pas la paresse et  l'inaction, est doux et se laisse fléchir facilement, fait des sacrifices pour ses amis, a plusieurs talents mais n'a pas la ténacité nécessaire pour les développer, se plaint et gémit souvent, est très jaloux mais est aussi loyal"},"des Poissons","Tilleul"]
[17,4,"174","2003-04-17","de l' Érable ",{"$f":"VLOOKUP(H101,arbres!$A$1:$B$21,2)","v":"ÉRABLE (l'indépendance d'esprit) - Sort de l'ordinaire, débordant d'imagination et d'originalité, timide et réservé, ambitieux, fier, sûr de lui, désire ardemment vivre de nouvelles expériences, est quelquefois nerveux, possède plusieurs complexités, a une bonne mémoire, apprend facilement, a une vie amoureuse compliquée, désire impressionner."},"du Bélier","Érable"]
[17,5,"175","2003-05-17","du Châtaignier ",{"$f":"VLOOKUP(H102,arbres!$A$1:$B$21,2)","v":"CHATAIGNIER (l'honnêteté) - D'une beauté peu commune, ne veut pas impressionner, a un sens de la justice très développé, peu diplomate, s'irrite facilement et est souvent blessé en société en raison de son manque d'estime de lui, quelquefois donne l'impression d'être supérieur, a l'impression de ne pas être compris, n'aime qu'une fois, peut avoir des difficultés à trouver un partenaire. "},"du Taureau","Châtaignier"]
[17,6,"176","2003-06-17","du Figuier ",{"$f":"VLOOKUP(H103,arbres!$A$1:$B$21,2)","v":"FIGUIER (la sensibilité) - Très fort, un peu entêté, indépendant, ne tolère pas les contradictions ou les controverses, adore la vie, sa famille, les enfants et  les animaux, un peu volage en société, a un bon sens de l'humour, aime l'oisiveté et la paresse, possède des talents et une intelligence pratiques."},"des Gémeaux","Figuier"]
[17,7,"177","2003-07-17","de l' Orme ",{"$f":"VLOOKUP(H104,arbres!$A$1:$B$21,2)","v":"ORME (la générosité) - De forme plaisante, porte des vêtements élégants, a des exigences modestes, a tendance à ne pas pardonner les erreurs, enjoué, aime mener mais n'aime pas obéir, partenaire fidèle, aime prendre des décisions pour les autres, généreux, a un bon sens de l'humour, est pratique"},"du Cancer","Orme "]
[17,8,"178","2003-08-17","du Cèdre ",{"$f":"VLOOKUP(H105,arbres!$A$1:$B$21,2)","v":"CEDRE (la confiance) - D'une rare beauté, sait s'adapter, aime le luxe, jouit d'une bonne santé, loin d'être timide, a tendance à regarder les autres de haut, est sur de lui, déterminé, impatient, aime impressionner les autres, a de nombreux talents, travailleur, d'un optimisme sain, attendra son seul vrai amour, et est capable de prendre des décisions rapidement."},"du Lion","Cèdre"]
[17,9,"179","2003-09-17","du Tilleul ",{"$f":"VLOOKUP(H106,arbres!$A$1:$B$21,2)","v":"TILLEUL (le doute) - Accepte calmement les leçons parfois difficiles que lui impose la vie, déteste la bagarre, le stress et le travail, n'aime pas la paresse et  l'inaction, est doux et se laisse fléchir facilement, fait des sacrifices pour ses amis, a plusieurs talents mais n'a pas la ténacité nécessaire pour les développer, se plaint et gémit souvent, est très jaloux mais est aussi loyal"},"de la Vierge","Tilleul"]
[1,8,"18","2003-08-01","du Cyprès ",{"$f":"VLOOKUP(H107,arbres!$A$1:$B$21,2)","v":"CYPRES (la fidélité) - Fort, musclé, adaptable, prend ce que la vie a à offrir, content, optimiste, a soif d'argent et de reconnaissance, déteste la solitude, amant passionné qui ne peut être satisfait, est fidèle, s'emporte facilement, est indiscipliné, pendant et négligent."},"du Lion","Cyprès "]
[18,1,"181","2003-01-18","de l' Orme ",{"$f":"VLOOKUP(H108,arbres!$A$1:$B$21,2)","v":"ORME (la générosité) - De forme plaisante, porte des vêtements élégants, a des exigences modestes, a tendance à ne pas pardonner les erreurs, enjoué, aime mener mais n'aime pas obéir, partenaire fidèle, aime prendre des décisions pour les autres, généreux, a un bon sens de l'humour, est pratique"},"du Capricorne","Orme "]
[18,10,"1810","2003-10-18","de l' Érable ",{"$f":"VLOOKUP(H109,arbres!$A$1:$B$21,2)","v":"ÉRABLE (l'indépendance d'esprit) - Sort de l'ordinaire, débordant d'imagination et d'originalité, timide et réservé, ambitieux, fier, sûr de lui, désire ardemment vivre de nouvelles expériences, est quelquefois nerveux, possède plusieurs complexités, a une bonne mémoire, apprend facilement, a une vie amoureuse compliquée, désire impressionner."},"de la Balance","Érable"]
[18,11,"1811","2003-11-18","du Châtaignier ",{"$f":"VLOOKUP(H110,arbres!$A$1:$B$21,2)","v":"CHATAIGNIER (l'honnêteté) - D'une beauté peu commune, ne veut pas impressionner, a un sens de la justice très développé, peu diplomate, s'irrite facilement et est souvent blessé en société en raison de son manque d'estime de lui, quelquefois donne l'impression d'être supérieur, a l'impression de ne pas être compris, n'aime qu'une fois, peut avoir des difficultés à trouver un partenaire. "},"du Scorpion","Châtaignier"]
[18,12,"1812","2003-12-18","du Figuier ",{"$f":"VLOOKUP(H111,arbres!$A$1:$B$21,2)","v":"FIGUIER (la sensibilité) - Très fort, un peu entêté, indépendant, ne tolère pas les contradictions ou les controverses, adore la vie, sa famille, les enfants et  les animaux, un peu volage en société, a un bon sens de l'humour, aime l'oisiveté et la paresse, possède des talents et une intelligence pratiques."},"du Sagitaire","Figuier"]
[18,2,"182","2003-02-18","du Cèdre ",{"$f":"VLOOKUP(H112,arbres!$A$1:$B$21,2)","v":"CEDRE (la confiance) - D'une rare beauté, sait s'adapter, aime le luxe, jouit d'une bonne santé, loin d'être timide, a tendance à regarder les autres de haut, est sur de lui, déterminé, impatient, aime impressionner les autres, a de nombreux talents, travailleur, d'un optimisme sain, attendra son seul vrai amour, et est capable de prendre des décisions rapidement."},"du Verseau","Cèdre"]
[18,3,"183","2003-03-18","du Tilleul ",{"$f":"VLOOKUP(H113,arbres!$A$1:$B$21,2)","v":"TILLEUL (le doute) - Accepte calmement les leçons parfois difficiles que lui impose la vie, déteste la bagarre, le stress et le travail, n'aime pas la paresse et  l'inaction, est doux et se laisse fléchir facilement, fait des sacrifices pour ses amis, a plusieurs talents mais n'a pas la ténacité nécessaire pour les développer, se plaint et gémit souvent, est très jaloux mais est aussi loyal"},"des Poissons","Tilleul"]
[18,4,"184","2003-04-18","de l' Érable ",{"$f":"VLOOKUP(H114,arbres!$A$1:$B$21,2)","v":"ÉRABLE (l'indépendance d'esprit) - Sort de l'ordinaire, débordant d'imagination et d'originalité, timide et réservé, ambitieux, fier, sûr de lui, désire ardemment vivre de nouvelles expériences, est quelquefois nerveux, possède plusieurs complexités, a une bonne mémoire, apprend facilement, a une vie amoureuse compliquée, désire impressionner."},"du Bélier","Érable"]
[18,5,"185","2003-05-18","du Châtaignier ",{"$f":"VLOOKUP(H115,arbres!$A$1:$B$21,2)","v":"CHATAIGNIER (l'honnêteté) - D'une beauté peu commune, ne veut pas impressionner, a un sens de la justice très développé, peu diplomate, s'irrite facilement et est souvent blessé en société en raison de son manque d'estime de lui, quelquefois donne l'impression d'être supérieur, a l'impression de ne pas être compris, n'aime qu'une fois, peut avoir des difficultés à trouver un partenaire. "},"du Taureau","Châtaignier"]
[18,6,"186","2003-06-18","du Figuier ",{"$f":"VLOOKUP(H116,arbres!$A$1:$B$21,2)","v":"FIGUIER (la sensibilité) - Très fort, un peu entêté, indépendant, ne tolère pas les contradictions ou les controverses, adore la vie, sa famille, les enfants et  les animaux, un peu volage en société, a un bon sens de l'humour, aime l'oisiveté et la paresse, possède des talents et une intelligence pratiques."},"des Gémeaux","Figuier"]
[18,7,"187","2003-07-18","de l' Orme ",{"$f":"VLOOKUP(H117,arbres!$A$1:$B$21,2)","v":"ORME (la générosité) - De forme plaisante, porte des vêtements élégants, a des exigences modestes, a tendance à ne pas pardonner les erreurs, enjoué, aime mener mais n'aime pas obéir, partenaire fidèle, aime prendre des décisions pour les autres, généreux, a un bon sens de l'humour, est pratique"},"du Cancer","Orme "]
[18,8,"188","2003-08-18","du Cèdre ",{"$f":"VLOOKUP(H118,arbres!$A$1:$B$21,2)","v":"CEDRE (la confiance) - D'une rare beauté, sait s'adapter, aime le luxe, jouit d'une bonne santé, loin d'être timide, a tendance à regarder les autres de haut, est sur de lui, déterminé, impatient, aime impressionner les autres, a de nombreux talents, travailleur, d'un optimisme sain, attendra son seul vrai amour, et est capable de prendre des décisions rapidement."},"du Lion","Cèdre"]
[18,9,"189","2003-09-18","du Tilleul ",{"$f":"VLOOKUP(H119,arbres!$A$1:$B$21,2)","v":"TILLEUL (le doute) - Accepte calmement les leçons parfois difficiles que lui impose la vie, déteste la bagarre, le stress et le travail, n'aime pas la paresse et  l'inaction, est doux et se laisse fléchir facilement, fait des sacrifices pour ses amis, a plusieurs talents mais n'a pas la ténacité nécessaire pour les développer, se plaint et gémit souvent, est très jaloux mais est aussi loyal"},"de la Vierge","Tilleul"]
[1,9,"19","2003-09-01","du Pin ",{"$f":"VLOOKUP(H120,arbres!$A$1:$B$21,2)","v":"PIN (le particulier) - Adore être entouré de gens agréables, très robuste, sait comment rendre la vie confortable, est très actif, naturel, un bon compagnon, rarement amical, devient facilement amoureux, mais sa passion s'éteint vite, renonce facilement, tout est matière aux déceptions jusqu'à ce qu'il rencontre son idéal, est digne de confiance et pratique"},"de la Vierge","Pin"]
[19,1,"191","2003-01-19","de l' Orme ",{"$f":"VLOOKUP(H121,arbres!$A$1:$B$21,2)","v":"ORME (la générosité) - De forme plaisante, porte des vêtements élégants, a des exigences modestes, a tendance à ne pas pardonner les erreurs, enjoué, aime mener mais n'aime pas obéir, partenaire fidèle, aime prendre des décisions pour les autres, généreux, a un bon sens de l'humour, est pratique"},"du Capricorne","Orme "]
[19,10,"1910","2003-10-19","de l' Érable ",{"$f":"VLOOKUP(H122,arbres!$A$1:$B$21,2)","v":"ÉRABLE (l'indépendance d'esprit) - Sort de l'ordinaire, débordant d'imagination et d'originalité, timide et réservé, ambitieux, fier, sûr de lui, désire ardemment vivre de nouvelles expériences, est quelquefois nerveux, possède plusieurs complexités, a une bonne mémoire, apprend facilement, a une vie amoureuse compliquée, désire impressionner."},"de la Balance","Érable"]
[19,11,"1911","2003-11-19","du Châtaignier ",{"$f":"VLOOKUP(H123,arbres!$A$1:$B$21,2)","v":"CHATAIGNIER (l'honnêteté) - D'une beauté peu commune, ne veut pas impressionner, a un sens de la justice très développé, peu diplomate, s'irrite facilement et est souvent blessé en société en raison de son manque d'estime de lui, quelquefois donne l'impression d'être supérieur, a l'impression de ne pas être compris, n'aime qu'une fois, peut avoir des difficultés à trouver un partenaire. "},"du Scorpion","Châtaignier"]
[19,12,"1912","2003-12-19","du Figuier ",{"$f":"VLOOKUP(H124,arbres!$A$1:$B$21,2)","v":"FIGUIER (la sensibilité) - Très fort, un peu entêté, indépendant, ne tolère pas les contradictions ou les controverses, adore la vie, sa famille, les enfants et  les animaux, un peu volage en société, a un bon sens de l'humour, aime l'oisiveté et la paresse, possède des talents et une intelligence pratiques."},"du Sagitaire","Figuier"]
[19,2,"192","2003-02-19","du Pin ",{"$f":"VLOOKUP(H125,arbres!$A$1:$B$21,2)","v":"PIN (le particulier) - Adore être entouré de gens agréables, très robuste, sait comment rendre la vie confortable, est très actif, naturel, un bon compagnon, rarement amical, devient facilement amoureux, mais sa passion s'éteint vite, renonce facilement, tout est matière aux déceptions jusqu'à ce qu'il rencontre son idéal, est digne de confiance et pratique"},"du Verseau","Pin"]
[19,3,"193","2003-03-19","du Tilleul ",{"$f":"VLOOKUP(H126,arbres!$A$1:$B$21,2)","v":"TILLEUL (le doute) - Accepte calmement les leçons parfois difficiles que lui impose la vie, déteste la bagarre, le stress et le travail, n'aime pas la paresse et  l'inaction, est doux et se laisse fléchir facilement, fait des sacrifices pour ses amis, a plusieurs talents mais n'a pas la ténacité nécessaire pour les développer, se plaint et gémit souvent, est très jaloux mais est aussi loyal"},"des Poissons","Tilleul"]
[19,4,"194","2003-04-19","de l' Érable ",{"$f":"VLOOKUP(H127,arbres!$A$1:$B$21,2)","v":"ÉRABLE (l'indépendance d'esprit) - Sort de l'ordinaire, débordant d'imagination et d'originalité, timide et réservé, ambitieux, fier, sûr de lui, désire ardemment vivre de nouvelles expériences, est quelquefois nerveux, possède plusieurs complexités, a une bonne mémoire, apprend facilement, a une vie amoureuse compliquée, désire impressionner."},"du Bélier","Érable"]
[19,5,"195","2003-05-19","du Châtaignier ",{"$f":"VLOOKUP(H128,arbres!$A$1:$B$21,2)","v":"CHATAIGNIER (l'honnêteté) - D'une beauté peu commune, ne veut pas impressionner, a un sens de la justice très développé, peu diplomate, s'irrite facilement et est souvent blessé en société en raison de son manque d'estime de lui, quelquefois donne l'impression d'être supérieur, a l'impression de ne pas être compris, n'aime qu'une fois, peut avoir des difficultés à trouver un partenaire. "},"du Taureau","Châtaignier"]
[19,6,"196","2003-06-19","du Figuier ",{"$f":"VLOOKUP(H129,arbres!$A$1:$B$21,2)","v":"FIGUIER (la sensibilité) - Très fort, un peu entêté, indépendant, ne tolère pas les contradictions ou les controverses, adore la vie, sa famille, les enfants et  les animaux, un peu volage en société, a un bon sens de l'humour, aime l'oisiveté et la paresse, possède des talents et une intelligence pratiques."},"des Gémeaux","Figuier"]
[19,7,"197","2003-07-19","de l' Orme ",{"$f":"VLOOKUP(H130,arbres!$A$1:$B$21,2)","v":"ORME (la générosité) - De forme plaisante, porte des vêtements élégants, a des exigences modestes, a tendance à ne pas pardonner les erreurs, enjoué, aime mener mais n'aime pas obéir, partenaire fidèle, aime prendre des décisions pour les autres, généreux, a un bon sens de l'humour, est pratique"},"du Cancer","Orme "]
[19,8,"198","2003-08-19","du Cèdre ",{"$f":"VLOOKUP(H131,arbres!$A$1:$B$21,2)","v":"CEDRE (la confiance) - D'une rare beauté, sait s'adapter, aime le luxe, jouit d'une bonne santé, loin d'être timide, a tendance à regarder les autres de haut, est sur de lui, déterminé, impatient, aime impressionner les autres, a de nombreux talents, travailleur, d'un optimisme sain, attendra son seul vrai amour, et est capable de prendre des décisions rapidement."},"du Lion","Cèdre"]
[19,9,"199","2003-09-19","du Tilleul ",{"$f":"VLOOKUP(H132,arbres!$A$1:$B$21,2)","v":"TILLEUL (le doute) - Accepte calmement les leçons parfois difficiles que lui impose la vie, déteste la bagarre, le stress et le travail, n'aime pas la paresse et  l'inaction, est doux et se laisse fléchir facilement, fait des sacrifices pour ses amis, a plusieurs talents mais n'a pas la ténacité nécessaire pour les développer, se plaint et gémit souvent, est très jaloux mais est aussi loyal"},"de la Vierge","Tilleul"]
[20,1,"201","2003-01-20","de l' Orme ",{"$f":"VLOOKUP(H133,arbres!$A$1:$B$21,2)","v":"ORME (la générosité) - De forme plaisante, porte des vêtements élégants, a des exigences modestes, a tendance à ne pas pardonner les erreurs, enjoué, aime mener mais n'aime pas obéir, partenaire fidèle, aime prendre des décisions pour les autres, généreux, a un bon sens de l'humour, est pratique"},"du Capricorne","Orme "]
[20,10,"2010","2003-10-20","de l' Érable ",{"$f":"VLOOKUP(H134,arbres!$A$1:$B$21,2)","v":"ÉRABLE (l'indépendance d'esprit) - Sort de l'ordinaire, débordant d'imagination et d'originalité, timide et réservé, ambitieux, fier, sûr de lui, désire ardemment vivre de nouvelles expériences, est quelquefois nerveux, possède plusieurs complexités, a une bonne mémoire, apprend facilement, a une vie amoureuse compliquée, désire impressionner."},"de la Balance","Érable"]
[20,11,"2011","2003-11-20","du Châtaignier ",{"$f":"VLOOKUP(H135,arbres!$A$1:$B$21,2)","v":"CHATAIGNIER (l'honnêteté) - D'une beauté peu commune, ne veut pas impressionner, a un sens de la justice très développé, peu diplomate, s'irrite facilement et est souvent blessé en société en raison de son manque d'estime de lui, quelquefois donne l'impression d'être supérieur, a l'impression de ne pas être compris, n'aime qu'une fois, peut avoir des difficultés à trouver un partenaire. "},"du Scorpion","Châtaignier"]
[20,12,"2012","2003-12-20","du Figuier ",{"$f":"VLOOKUP(H136,arbres!$A$1:$B$21,2)","v":"FIGUIER (la sensibilité) - Très fort, un peu entêté, indépendant, ne tolère pas les contradictions ou les controverses, adore la vie, sa famille, les enfants et  les animaux, un peu volage en société, a un bon sens de l'humour, aime l'oisiveté et la paresse, possède des talents et une intelligence pratiques."},"du Sagitaire","Figuier"]
[{"$f":"DAY(D137)","v":20},{"$f":"MONTH(D137)","v":2},{"$f":"A137&B137","v":"202"},"2003-02-20","du Pin ",{"$f":"VLOOKUP(H137,arbres!$A$1:$B$21,2)","v":"PIN (le particulier) - Adore être entouré de gens agréables, très robuste, sait comment rendre la vie confortable, est très actif, naturel, un bon compagnon, rarement amical, devient facilement amoureux, mais sa passion s'éteint vite, renonce facilement, tout est matière aux déceptions jusqu'à ce qu'il rencontre son idéal, est digne de confiance et pratique"},"des Poissons","Pin"]
[20,3,"203","2003-03-20","du Tilleul ",{"$f":"VLOOKUP(H138,arbres!$A$1:$B$21,2)","v":"TILLEUL (le doute) - Accepte calmement les leçons parfois difficiles que lui impose la vie, déteste la bagarre, le stress et le travail, n'aime pas la paresse et  l'inaction, est doux et se laisse fléchir facilement, fait des sacrifices pour ses amis, a plusieurs talents mais n'a pas la ténacité nécessaire pour les développer, se plaint et gémit souvent, est très jaloux mais est aussi loyal"},"des Poissons","Tilleul"]
[20,4,"204","2003-04-20","de l' Érable ",{"$f":"VLOOKUP(H139,arbres!$A$1:$B$21,2)","v":"ÉRABLE (l'indépendance d'esprit) - Sort de l'ordinaire, débordant d'imagination et d'originalité, timide et réservé, ambitieux, fier, sûr de lui, désire ardemment vivre de nouvelles expériences, est quelquefois nerveux, possède plusieurs complexités, a une bonne mémoire, apprend facilement, a une vie amoureuse compliquée, désire impressionner."},"du Bélier","Érable"]
[20,5,"205","2003-05-20","du Châtaignier ",{"$f":"VLOOKUP(H140,arbres!$A$1:$B$21,2)","v":"CHATAIGNIER (l'honnêteté) - D'une beauté peu commune, ne veut pas impressionner, a un sens de la justice très développé, peu diplomate, s'irrite facilement et est souvent blessé en société en raison de son manque d'estime de lui, quelquefois donne l'impression d'être supérieur, a l'impression de ne pas être compris, n'aime qu'une fois, peut avoir des difficultés à trouver un partenaire. "},"du Taureau","Châtaignier"]
[20,6,"206","2003-06-20","du Figuier ",{"$f":"VLOOKUP(H141,arbres!$A$1:$B$21,2)","v":"FIGUIER (la sensibilité) - Très fort, un peu entêté, indépendant, ne tolère pas les contradictions ou les controverses, adore la vie, sa famille, les enfants et  les animaux, un peu volage en société, a un bon sens de l'humour, aime l'oisiveté et la paresse, possède des talents et une intelligence pratiques."},"des Gémeaux","Figuier"]
[20,7,"207","2003-07-20","de l' Orme ",{"$f":"VLOOKUP(H142,arbres!$A$1:$B$21,2)","v":"ORME (la générosité) - De forme plaisante, porte des vêtements élégants, a des exigences modestes, a tendance à ne pas pardonner les erreurs, enjoué, aime mener mais n'aime pas obéir, partenaire fidèle, aime prendre des décisions pour les autres, généreux, a un bon sens de l'humour, est pratique"},"du Cancer","Orme "]
[20,8,"208","2003-08-20","du Cèdre ",{"$f":"VLOOKUP(H143,arbres!$A$1:$B$21,2)","v":"CEDRE (la confiance) - D'une rare beauté, sait s'adapter, aime le luxe, jouit d'une bonne santé, loin d'être timide, a tendance à regarder les autres de haut, est sur de lui, déterminé, impatient, aime impressionner les autres, a de nombreux talents, travailleur, d'un optimisme sain, attendra son seul vrai amour, et est capable de prendre des décisions rapidement."},"du Lion","Cèdre"]
[20,9,"209","2003-09-20","du Tilleul ",{"$f":"VLOOKUP(H144,arbres!$A$1:$B$21,2)","v":"TILLEUL (le doute) - Accepte calmement les leçons parfois difficiles que lui impose la vie, déteste la bagarre, le stress et le travail, n'aime pas la paresse et  l'inaction, est doux et se laisse fléchir facilement, fait des sacrifices pour ses amis, a plusieurs talents mais n'a pas la ténacité nécessaire pour les développer, se plaint et gémit souvent, est très jaloux mais est aussi loyal"},"de la Vierge","Tilleul"]
[2,1,"21","2003-01-02","du Sapin ",{"$f":"VLOOKUP(H145,arbres!$A$1:$B$21,2)","v":"SAPIN (le mystérieux) - Fait preuve d'un goût extraordinaire, est digne, sophistique, adore tout ce qui est beau, est d'humeur changeante, entêté, a une tendance à l'égoïsme, mais est attentif aux personnes qui sont proches de lui, est plutôt modeste, très ambitieux, talentueux, travailleur, un amant insatisfait, a plusieurs amis, plusieurs ennemis, on peut compter sur lui"},"du Capricorne","Sapin"]
[2,10,"210","2003-10-02","du Noisetier ",{"$f":"VLOOKUP(H146,arbres!$A$1:$B$21,2)","v":"NOISETIER (l'extraordinaire) - Charmant, peu exigeant, très compréhensif, sait comment faire bonne impression, ardent défenseur des causes sociales, populaire, d'humeur changeante, est un amant capricieux, honnête, un partenaire tolérant, possède un sens précis du jugement"},"de la Balance","Noisetier"]
[21,1,"211","2003-01-21","de l' Orme ",{"$f":"VLOOKUP(H147,arbres!$A$1:$B$21,2)","v":"ORME (la générosité) - De forme plaisante, porte des vêtements élégants, a des exigences modestes, a tendance à ne pas pardonner les erreurs, enjoué, aime mener mais n'aime pas obéir, partenaire fidèle, aime prendre des décisions pour les autres, généreux, a un bon sens de l'humour, est pratique"},"du Verseau","Orme "]
[2,11,"211","2003-11-02","du Noyer ",{"$f":"VLOOKUP(H148,arbres!$A$1:$B$21,2)","v":"NOYER (la passion) - Implacable, surprenant et plein de contrastes, souvent narcissique, peut démontrer de l'agressivité, est généreux, de vastes horizons s'ouvrent à lui, peut avoir des réactions inattendues, est spontané, fait preuve d'une ambition sans limite, aucune flexibilité, est un partenaire difficile et peu commun, n'est pas toujours aimé mais est souvent admire, stratège hors pair, très jaloux et passionné, ne fait aucun compromis"},"du Scorpion","Noyer"]
[21,10,"2110","2003-10-21","de l' Érable ",{"$f":"VLOOKUP(H149,arbres!$A$1:$B$21,2)","v":"ÉRABLE (l'indépendance d'esprit) - Sort de l'ordinaire, débordant d'imagination et d'originalité, timide et réservé, ambitieux, fier, sûr de lui, désire ardemment vivre de nouvelles expériences, est quelquefois nerveux, possède plusieurs complexités, a une bonne mémoire, apprend facilement, a une vie amoureuse compliquée, désire impressionner."},"de la Balance","Érable"]
[21,11,"2111","2003-11-21","du Châtaignier ",{"$f":"VLOOKUP(H150,arbres!$A$1:$B$21,2)","v":"CHATAIGNIER (l'honnêteté) - D'une beauté peu commune, ne veut pas impressionner, a un sens de la justice très développé, peu diplomate, s'irrite facilement et est souvent blessé en société en raison de son manque d'estime de lui, quelquefois donne l'impression d'être supérieur, a l'impression de ne pas être compris, n'aime qu'une fois, peut avoir des difficultés à trouver un partenaire. "},"du Scorpion","Châtaignier"]
[21,12,"2112","2003-12-21","du Figuier ",{"$f":"VLOOKUP(H151,arbres!$A$1:$B$21,2)","v":"FIGUIER (la sensibilité) - Très fort, un peu entêté, indépendant, ne tolère pas les contradictions ou les controverses, adore la vie, sa famille, les enfants et  les animaux, un peu volage en société, a un bon sens de l'humour, aime l'oisiveté et la paresse, possède des talents et une intelligence pratiques."},"du Sagitaire","Figuier"]
[21,2,"212","2003-02-21","du Pin ",{"$f":"VLOOKUP(H152,arbres!$A$1:$B$21,2)","v":"PIN (le particulier) - Adore être entouré de gens agréables, très robuste, sait comment rendre la vie confortable, est très actif, naturel, un bon compagnon, rarement amical, devient facilement amoureux, mais sa passion s'éteint vite, renonce facilement, tout est matière aux déceptions jusqu'à ce qu'il rencontre son idéal, est digne de confiance et pratique"},"des Poissons","Pin"]
[2,12,"212","2003-12-02","du Charme de la Caroline ",{"$f":"VLOOKUP(H153,arbres!$A$1:$B$21,2)","v":"CHARME DE LA CAROLINE (le bon goût) - D'une beauté affranchissante, fait attention à son apparence et à sa condition physique, fait preuve de bon goût, n'est pas égoïste, fait en sorte que sa vie soit aussi confortable que possible, mène une vie raisonnable et disciplinée, recherche la gentillesse et la reconnaissance chez un partenaire de vie, rêve d'amants exceptionnels, est quelquefois heureux de ses sentiments, a peu confiance dans la plupart des gens, n'est jamais certain de ses décisions, est très consciencieux."},"du Sagitaire","Charme de la Caroline"]
[21,3,"213","2003-03-21","Chêne ",{"$f":"VLOOKUP(H154,arbres!$A$1:$B$21,2)","v":"CHENE (le brave) - De nature robuste, courageux, fort, implacable, indépendant, raisonnable, n'aime pas le changement, aime garder les pieds sur terre, est une personne d'action"},"du Bélier","Chêne "]
[21,4,"214","2003-04-21","du Noyer ",{"$f":"VLOOKUP(H155,arbres!$A$1:$B$21,2)","v":"NOYER (la passion) - Implacable, surprenant et plein de contrastes, souvent narcissique, peut démontrer de l'agressivité, est généreux, de vastes horizons s'ouvrent à lui, peut avoir des réactions inattendues, est spontané, fait preuve d'une ambition sans limite, aucune flexibilité, est un partenaire difficile et peu commun, n'est pas toujours aimé mais est souvent admire, stratège hors pair, très jaloux et passionné, ne fait aucun compromis"},"du Bélier","Noyer"]
[21,5,"215","2003-05-21","du Châtaignier ",{"$f":"VLOOKUP(H156,arbres!$A$1:$B$21,2)","v":"CHATAIGNIER (l'honnêteté) - D'une beauté peu commune, ne veut pas impressionner, a un sens de la justice très développé, peu diplomate, s'irrite facilement et est souvent blessé en société en raison de son manque d'estime de lui, quelquefois donne l'impression d'être supérieur, a l'impression de ne pas être compris, n'aime qu'une fois, peut avoir des difficultés à trouver un partenaire. "},"du Taureau","Châtaignier"]
[21,6,"216","2003-06-21","du Figuier ",{"$f":"VLOOKUP(H157,arbres!$A$1:$B$21,2)","v":"FIGUIER (la sensibilité) - Très fort, un peu entêté, indépendant, ne tolère pas les contradictions ou les controverses, adore la vie, sa famille, les enfants et  les animaux, un peu volage en société, a un bon sens de l'humour, aime l'oisiveté et la paresse, possède des talents et une intelligence pratiques."},"des Gémeaux","Figuier"]
[21,7,"217","2003-07-21","de l' Orme ",{"$f":"VLOOKUP(H158,arbres!$A$1:$B$21,2)","v":"ORME (la générosité) - De forme plaisante, porte des vêtements élégants, a des exigences modestes, a tendance à ne pas pardonner les erreurs, enjoué, aime mener mais n'aime pas obéir, partenaire fidèle, aime prendre des décisions pour les autres, généreux, a un bon sens de l'humour, est pratique"},"du Cancer","Orme "]
[21,8,"218","2003-08-21","du Cèdre ",{"$f":"VLOOKUP(H159,arbres!$A$1:$B$21,2)","v":"CEDRE (la confiance) - D'une rare beauté, sait s'adapter, aime le luxe, jouit d'une bonne santé, loin d'être timide, a tendance à regarder les autres de haut, est sur de lui, déterminé, impatient, aime impressionner les autres, a de nombreux talents, travailleur, d'un optimisme sain, attendra son seul vrai amour, et est capable de prendre des décisions rapidement."},"du Lion","Cèdre"]
[21,9,"219","2003-09-21","du Tilleul ",{"$f":"VLOOKUP(H160,arbres!$A$1:$B$21,2)","v":"TILLEUL (le doute) - Accepte calmement les leçons parfois difficiles que lui impose la vie, déteste la bagarre, le stress et le travail, n'aime pas la paresse et  l'inaction, est doux et se laisse fléchir facilement, fait des sacrifices pour ses amis, a plusieurs talents mais n'a pas la ténacité nécessaire pour les développer, se plaint et gémit souvent, est très jaloux mais est aussi loyal"},"de la Vierge","Tilleul"]
[2,2,"22","2003-02-02","du Cyprès ",{"$f":"VLOOKUP(H161,arbres!$A$1:$B$21,2)","v":"CYPRES (la fidélité) - Fort, musclé, adaptable, prend ce que la vie a à offrir, content, optimiste, a soif d'argent et de reconnaissance, déteste la solitude, amant passionné qui ne peut être satisfait, est fidèle, s'emporte facilement, est indiscipliné, pendant et négligent."},"du Verseau","Cyprès "]
[22,1,"221","2003-01-22","de l' Orme ",{"$f":"VLOOKUP(H162,arbres!$A$1:$B$21,2)","v":"ORME (la générosité) - De forme plaisante, porte des vêtements élégants, a des exigences modestes, a tendance à ne pas pardonner les erreurs, enjoué, aime mener mais n'aime pas obéir, partenaire fidèle, aime prendre des décisions pour les autres, généreux, a un bon sens de l'humour, est pratique"},"du Verseau","Orme "]
[22,10,"2210","2003-10-22","de l' Érable ",{"$f":"VLOOKUP(H163,arbres!$A$1:$B$21,2)","v":"ÉRABLE (l'indépendance d'esprit) - Sort de l'ordinaire, débordant d'imagination et d'originalité, timide et réservé, ambitieux, fier, sûr de lui, désire ardemment vivre de nouvelles expériences, est quelquefois nerveux, possède plusieurs complexités, a une bonne mémoire, apprend facilement, a une vie amoureuse compliquée, désire impressionner."},"de la Balance","Érable"]
[22,11,"2211","2003-11-22","du Frêne ",{"$f":"VLOOKUP(H164,arbres!$A$1:$B$21,2)","v":"FRENE (l'ambition) - Très séduisant, vif, impulsif, exigeant, ne se préoccupe pas des critiques, ambitieux, intelligent, talentueux, aime jouer avec le destin, peut être narcissique, très fiable et digne de confiance, amant fidèle et prudent, laisse quelquefois sa tête avoir le pas sur son cœur, mais prend le couple très au sérieux."},"du Scorpion","Frêne"]
[22,12,"2212","2003-12-22","Hêtre ",{"$f":"VLOOKUP(H165,arbres!$A$1:$B$21,2)","v":"HETRE (le créatif) - Fait preuve de bon goût, s'inquiète de son apparence, matérialiste, démontre un bon sens de l'organisation en ce qui concerne sa vie et sa carrière, est économe, bon dirigeant, raisonnable, ne prend pas de risques inutiles, excellent compagnon de vie, se passionne pour tout ce qui permet de garder la forme (diètes, sports, etc...)."},"du Capricorne","Hêtre "]
[22,2,"222","2003-02-22","du Pin ",{"$f":"VLOOKUP(H166,arbres!$A$1:$B$21,2)","v":"PIN (le particulier) - Adore être entouré de gens agréables, très robuste, sait comment rendre la vie confortable, est très actif, naturel, un bon compagnon, rarement amical, devient facilement amoureux, mais sa passion s'éteint vite, renonce facilement, tout est matière aux déceptions jusqu'à ce qu'il rencontre son idéal, est digne de confiance et pratique"},"des Poissons","Pin"]
[22,3,"223","2003-03-22","du Noisetier ",{"$f":"VLOOKUP(H167,arbres!$A$1:$B$21,2)","v":"NOISETIER (l'extraordinaire) - Charmant, peu exigeant, très compréhensif, sait comment faire bonne impression, ardent défenseur des causes sociales, populaire, d'humeur changeante, est un amant capricieux, honnête, un partenaire tolérant, possède un sens précis du jugement"},"du Bélier","Noisetier"]
[22,4,"224","2003-04-22","du Noyer ",{"$f":"VLOOKUP(H168,arbres!$A$1:$B$21,2)","v":"NOYER (la passion) - Implacable, surprenant et plein de contrastes, souvent narcissique, peut démontrer de l'agressivité, est généreux, de vastes horizons s'ouvrent à lui, peut avoir des réactions inattendues, est spontané, fait preuve d'une ambition sans limite, aucune flexibilité, est un partenaire difficile et peu commun, n'est pas toujours aimé mais est souvent admire, stratège hors pair, très jaloux et passionné, ne fait aucun compromis"},"du Taureau","Noyer"]
[22,5,"225","2003-05-22","du Châtaignier ",{"$f":"VLOOKUP(H169,arbres!$A$1:$B$21,2)","v":"CHATAIGNIER (l'honnêteté) - D'une beauté peu commune, ne veut pas impressionner, a un sens de la justice très développé, peu diplomate, s'irrite facilement et est souvent blessé en société en raison de son manque d'estime de lui, quelquefois donne l'impression d'être supérieur, a l'impression de ne pas être compris, n'aime qu'une fois, peut avoir des difficultés à trouver un partenaire. "},"des Gémeaux","Châtaignier"]
[22,6,"226","2003-06-22","du Figuier ",{"$f":"VLOOKUP(H170,arbres!$A$1:$B$21,2)","v":"FIGUIER (la sensibilité) - Très fort, un peu entêté, indépendant, ne tolère pas les contradictions ou les controverses, adore la vie, sa famille, les enfants et  les animaux, un peu volage en société, a un bon sens de l'humour, aime l'oisiveté et la paresse, possède des talents et une intelligence pratiques."},"du Cancer","Figuier"]
[22,7,"227","2003-07-22","de l' Orme ",{"$f":"VLOOKUP(H171,arbres!$A$1:$B$21,2)","v":"ORME (la générosité) - De forme plaisante, porte des vêtements élégants, a des exigences modestes, a tendance à ne pas pardonner les erreurs, enjoué, aime mener mais n'aime pas obéir, partenaire fidèle, aime prendre des décisions pour les autres, généreux, a un bon sens de l'humour, est pratique"},"du Cancer","Orme "]
[22,8,"228","2003-08-22","du Cèdre ",{"$f":"VLOOKUP(H172,arbres!$A$1:$B$21,2)","v":"CEDRE (la confiance) - D'une rare beauté, sait s'adapter, aime le luxe, jouit d'une bonne santé, loin d'être timide, a tendance à regarder les autres de haut, est sur de lui, déterminé, impatient, aime impressionner les autres, a de nombreux talents, travailleur, d'un optimisme sain, attendra son seul vrai amour, et est capable de prendre des décisions rapidement."},"du Lion","Cèdre"]
[22,9,"229","2003-09-22","du Tilleul ",{"$f":"VLOOKUP(H173,arbres!$A$1:$B$21,2)","v":"TILLEUL (le doute) - Accepte calmement les leçons parfois difficiles que lui impose la vie, déteste la bagarre, le stress et le travail, n'aime pas la paresse et  l'inaction, est doux et se laisse fléchir facilement, fait des sacrifices pour ses amis, a plusieurs talents mais n'a pas la ténacité nécessaire pour les développer, se plaint et gémit souvent, est très jaloux mais est aussi loyal"},"de la Vierge","Tilleul"]
[2,3,"23","2003-03-02","du Saule pleureur ",{"$f":"VLOOKUP(H174,arbres!$A$1:$B$21,2)","v":"SAULE PLEUREUR (la mélancolie) - Beau mais plein de mélancolie, séduisant, très emphatique, aime tout ce qui est beau et de bon goût, aime voyager, est rêveur, agité, capricieux, honnête, peut être influencé mais il n'est pas facile à vivre, exigeant, bonne intuition, souffre en amour mais trouve quelquefois un partenaire qui lui sert de point d'ancrage"},"des Poissons","Saule pleureur"]
[23,1,"231","2003-01-23","de l' Orme ",{"$f":"VLOOKUP(H175,arbres!$A$1:$B$21,2)","v":"ORME (la générosité) - De forme plaisante, porte des vêtements élégants, a des exigences modestes, a tendance à ne pas pardonner les erreurs, enjoué, aime mener mais n'aime pas obéir, partenaire fidèle, aime prendre des décisions pour les autres, généreux, a un bon sens de l'humour, est pratique"},"du Verseau","Orme "]
[23,10,"2310","2003-10-23","de l' Érable ",{"$f":"VLOOKUP(H176,arbres!$A$1:$B$21,2)","v":"ÉRABLE (l'indépendance d'esprit) - Sort de l'ordinaire, débordant d'imagination et d'originalité, timide et réservé, ambitieux, fier, sûr de lui, désire ardemment vivre de nouvelles expériences, est quelquefois nerveux, possède plusieurs complexités, a une bonne mémoire, apprend facilement, a une vie amoureuse compliquée, désire impressionner."},"du Scorpion","Érable"]
[23,11,"2311","2003-11-23","du Frêne ",{"$f":"VLOOKUP(H177,arbres!$A$1:$B$21,2)","v":"FRENE (l'ambition) - Très séduisant, vif, impulsif, exigeant, ne se préoccupe pas des critiques, ambitieux, intelligent, talentueux, aime jouer avec le destin, peut être narcissique, très fiable et digne de confiance, amant fidèle et prudent, laisse quelquefois sa tête avoir le pas sur son cœur, mais prend le couple très au sérieux."},"du Sagitaire","Frêne"]
[23,12,"2312","2003-12-23","du Pommier ",{"$f":"VLOOKUP(H178,arbres!$A$1:$B$21,2)","v":"POMMIER (l'amour) - Frêle possède beaucoup de charme, a un bon pouvoir de séduction et d'attraction, a une aura plaisante, aime flirter, est aventureux, sensible, toujours en amour, veut aimer et être aimé, partenaire tendre et fidèle, est très généreux, a des talents scientifiques, ne vit que pour aujourd'hui, est un philosophe insouciant et imaginatif"},"du Capricorne","Pommier "]
[23,2,"232","2003-02-23","du Pin ",{"$f":"VLOOKUP(H179,arbres!$A$1:$B$21,2)","v":"PIN (le particulier) - Adore être entouré de gens agréables, très robuste, sait comment rendre la vie confortable, est très actif, naturel, un bon compagnon, rarement amical, devient facilement amoureux, mais sa passion s'éteint vite, renonce facilement, tout est matière aux déceptions jusqu'à ce qu'il rencontre son idéal, est digne de confiance et pratique"},"des Poissons","Pin"]
[23,3,"233","2003-03-23","du Noisetier ",{"$f":"VLOOKUP(H180,arbres!$A$1:$B$21,2)","v":"NOISETIER (l'extraordinaire) - Charmant, peu exigeant, très compréhensif, sait comment faire bonne impression, ardent défenseur des causes sociales, populaire, d'humeur changeante, est un amant capricieux, honnête, un partenaire tolérant, possède un sens précis du jugement"},"du Bélier","Noisetier"]
[23,4,"234","2003-04-23","du Noyer ",{"$f":"VLOOKUP(H181,arbres!$A$1:$B$21,2)","v":"NOYER (la passion) - Implacable, surprenant et plein de contrastes, souvent narcissique, peut démontrer de l'agressivité, est généreux, de vastes horizons s'ouvrent à lui, peut avoir des réactions inattendues, est spontané, fait preuve d'une ambition sans limite, aucune flexibilité, est un partenaire difficile et peu commun, n'est pas toujours aimé mais est souvent admire, stratège hors pair, très jaloux et passionné, ne fait aucun compromis"},"du Taureau","Noyer"]
[23,5,"235","2003-05-23","du Châtaignier ",{"$f":"VLOOKUP(H182,arbres!$A$1:$B$21,2)","v":"CHATAIGNIER (l'honnêteté) - D'une beauté peu commune, ne veut pas impressionner, a un sens de la justice très développé, peu diplomate, s'irrite facilement et est souvent blessé en société en raison de son manque d'estime de lui, quelquefois donne l'impression d'être supérieur, a l'impression de ne pas être compris, n'aime qu'une fois, peut avoir des difficultés à trouver un partenaire. "},"des Gémeaux","Châtaignier"]
[23,6,"236","2003-06-23","du Figuier ",{"$f":"VLOOKUP(H183,arbres!$A$1:$B$21,2)","v":"FIGUIER (la sensibilité) - Très fort, un peu entêté, indépendant, ne tolère pas les contradictions ou les controverses, adore la vie, sa famille, les enfants et  les animaux, un peu volage en société, a un bon sens de l'humour, aime l'oisiveté et la paresse, possède des talents et une intelligence pratiques."},"du Cancer","Figuier"]
[23,7,"237","2003-07-23","de l' Orme ",{"$f":"VLOOKUP(H184,arbres!$A$1:$B$21,2)","v":"ORME (la générosité) - De forme plaisante, porte des vêtements élégants, a des exigences modestes, a tendance à ne pas pardonner les erreurs, enjoué, aime mener mais n'aime pas obéir, partenaire fidèle, aime prendre des décisions pour les autres, généreux, a un bon sens de l'humour, est pratique"},"du Lion","Orme "]
[23,8,"238","2003-08-23","du Cèdre ",{"$f":"VLOOKUP(H185,arbres!$A$1:$B$21,2)","v":"CEDRE (la confiance) - D'une rare beauté, sait s'adapter, aime le luxe, jouit d'une bonne santé, loin d'être timide, a tendance à regarder les autres de haut, est sur de lui, déterminé, impatient, aime impressionner les autres, a de nombreux talents, travailleur, d'un optimisme sain, attendra son seul vrai amour, et est capable de prendre des décisions rapidement."},"de la Vierge","Cèdre"]
[23,9,"239","2003-09-23","de l' Olivier ",{"$f":"VLOOKUP(H186,arbres!$A$1:$B$21,2)","v":"OLIVIER (la sagesse) - Aime le soleil, la chaleur et les doux sentiments, équilibré, évite les agressions et la violence, tolérant, enjoué, calme, possède un sens de la justice bien développé, sensible, emphatique, n'éprouve pas de jalousie, aime lire et aime être entouré de gens sophistiqués"},"de la Balance","Olivier"]
[2,4,"24","2003-04-02","du Cormier ",{"$f":"VLOOKUP(H187,arbres!$A$1:$B$21,2)","v":"CORMIER (la délicatesse) - Plein de charme, enjoué, talentueux sans être égoïste aime attirer l'attention, adore la vie, le mouvement, l'agitation et même les complications, est à la fois dépendant et indépendant, fait preuve de bon goût, est artistique, passionné, émotif, est de bonne compagnie, mais ne pardonne pas"},"du Bélier","Cormier"]
[24,1,"241","2003-01-24","de l' Orme ",{"$f":"VLOOKUP(H188,arbres!$A$1:$B$21,2)","v":"ORME (la générosité) - De forme plaisante, porte des vêtements élégants, a des exigences modestes, a tendance à ne pas pardonner les erreurs, enjoué, aime mener mais n'aime pas obéir, partenaire fidèle, aime prendre des décisions pour les autres, généreux, a un bon sens de l'humour, est pratique"},"du Verseau","Orme "]
[24,10,"2410","2003-10-24","du Noyer ",{"$f":"VLOOKUP(H189,arbres!$A$1:$B$21,2)","v":"NOYER (la passion) - Implacable, surprenant et plein de contrastes, souvent narcissique, peut démontrer de l'agressivité, est généreux, de vastes horizons s'ouvrent à lui, peut avoir des réactions inattendues, est spontané, fait preuve d'une ambition sans limite, aucune flexibilité, est un partenaire difficile et peu commun, n'est pas toujours aimé mais est souvent admire, stratège hors pair, très jaloux et passionné, ne fait aucun compromis"},"du Scorpion","Noyer"]
[24,11,"2411","2003-11-24","du Frêne ",{"$f":"VLOOKUP(H190,arbres!$A$1:$B$21,2)","v":"FRENE (l'ambition) - Très séduisant, vif, impulsif, exigeant, ne se préoccupe pas des critiques, ambitieux, intelligent, talentueux, aime jouer avec le destin, peut être narcissique, très fiable et digne de confiance, amant fidèle et prudent, laisse quelquefois sa tête avoir le pas sur son cœur, mais prend le couple très au sérieux."},"du Sagitaire","Frêne"]
[24,12,"2412","2003-12-24","du Pommier ",{"$f":"VLOOKUP(H191,arbres!$A$1:$B$21,2)","v":"POMMIER (l'amour) - Frêle possède beaucoup de charme, a un bon pouvoir de séduction et d'attraction, a une aura plaisante, aime flirter, est aventureux, sensible, toujours en amour, veut aimer et être aimé, partenaire tendre et fidèle, est très généreux, a des talents scientifiques, ne vit que pour aujourd'hui, est un philosophe insouciant et imaginatif"},"du Capricorne","Pommier "]
[24,2,"242","2003-02-24","du Pin ",{"$f":"VLOOKUP(H192,arbres!$A$1:$B$21,2)","v":"PIN (le particulier) - Adore être entouré de gens agréables, très robuste, sait comment rendre la vie confortable, est très actif, naturel, un bon compagnon, rarement amical, devient facilement amoureux, mais sa passion s'éteint vite, renonce facilement, tout est matière aux déceptions jusqu'à ce qu'il rencontre son idéal, est digne de confiance et pratique"},"des Poissons","Pin"]
[24,3,"243","2003-03-24","du Noisetier ",{"$f":"VLOOKUP(H193,arbres!$A$1:$B$21,2)","v":"NOISETIER (l'extraordinaire) - Charmant, peu exigeant, très compréhensif, sait comment faire bonne impression, ardent défenseur des causes sociales, populaire, d'humeur changeante, est un amant capricieux, honnête, un partenaire tolérant, possède un sens précis du jugement"},"du Bélier","Noisetier"]
[24,4,"244","2003-04-24","du Noyer ",{"$f":"VLOOKUP(H194,arbres!$A$1:$B$21,2)","v":"NOYER (la passion) - Implacable, surprenant et plein de contrastes, souvent narcissique, peut démontrer de l'agressivité, est généreux, de vastes horizons s'ouvrent à lui, peut avoir des réactions inattendues, est spontané, fait preuve d'une ambition sans limite, aucune flexibilité, est un partenaire difficile et peu commun, n'est pas toujours aimé mais est souvent admire, stratège hors pair, très jaloux et passionné, ne fait aucun compromis"},"du Taureau","Noyer"]
[24,5,"245","2003-05-24","du Châtaignier ",{"$f":"VLOOKUP(H195,arbres!$A$1:$B$21,2)","v":"CHATAIGNIER (l'honnêteté) - D'une beauté peu commune, ne veut pas impressionner, a un sens de la justice très développé, peu diplomate, s'irrite facilement et est souvent blessé en société en raison de son manque d'estime de lui, quelquefois donne l'impression d'être supérieur, a l'impression de ne pas être compris, n'aime qu'une fois, peut avoir des difficultés à trouver un partenaire. "},"des Gémeaux","Châtaignier"]
[24,6,"246","2003-06-24","du Bouleau ",{"$f":"VLOOKUP(H196,arbres!$A$1:$B$21,2)","v":"CYPRES (la fidélité) - Fort, musclé, adaptable, prend ce que la vie a à offrir, content, optimiste, a soif d'argent et de reconnaissance, déteste la solitude, amant passionné qui ne peut être satisfait, est fidèle, s'emporte facilement, est indiscipliné, pendant et négligent."},"du Cancer","du Bouleau "]
[24,7,"247","2003-07-24","de l' Orme ",{"$f":"VLOOKUP(H197,arbres!$A$1:$B$21,2)","v":"ORME (la générosité) - De forme plaisante, porte des vêtements élégants, a des exigences modestes, a tendance à ne pas pardonner les erreurs, enjoué, aime mener mais n'aime pas obéir, partenaire fidèle, aime prendre des décisions pour les autres, généreux, a un bon sens de l'humour, est pratique"},"du Lion","Orme "]
[24,8,"248","2003-08-24","du Pin ",{"$f":"VLOOKUP(H198,arbres!$A$1:$B$21,2)","v":"PIN (le particulier) - Adore être entouré de gens agréables, très robuste, sait comment rendre la vie confortable, est très actif, naturel, un bon compagnon, rarement amical, devient facilement amoureux, mais sa passion s'éteint vite, renonce facilement, tout est matière aux déceptions jusqu'à ce qu'il rencontre son idéal, est digne de confiance et pratique"},"de la Vierge","Pin"]
[24,9,"249","2003-09-24","du Noisetier ",{"$f":"VLOOKUP(H199,arbres!$A$1:$B$21,2)","v":"NOISETIER (l'extraordinaire) - Charmant, peu exigeant, très compréhensif, sait comment faire bonne impression, ardent défenseur des causes sociales, populaire, d'humeur changeante, est un amant capricieux, honnête, un partenaire tolérant, possède un sens précis du jugement"},"de la Balance","Noisetier"]
[2,5,"25","2003-05-02","du Peuplier ",{"$f":"VLOOKUP(H200,arbres!$A$1:$B$21,2)","v":"PEUPLIER (l'incertitude) - Très décoratif, n'a pas beaucoup confiance en lui, courageux seulement lorsque nécessaire, a besoin d'être entouré de personnes plaisantes et de bonne volonté, très sélectif, souvent solitaire, peut éprouver une grande animosité, possède une nature artistique, est un organisateur, a un penchant pour la philosophie, fiable dans toutes les situations, le couple est très important pour lui"},"du Taureau","Peuplier "]
[{"$f":"DAY(D201)","v":25},{"$f":"MONTH(D201)","v":1},{"$f":"A201&B201","v":"251"},"2003-01-25","du Cyprès ",{"$f":"VLOOKUP(H201,arbres!$A$1:$B$21,2)","v":"CYPRES (la fidélité) - Fort, musclé, adaptable, prend ce que la vie a à offrir, content, optimiste, a soif d'argent et de reconnaissance, déteste la solitude, amant passionné qui ne peut être satisfait, est fidèle, s'emporte facilement, est indiscipliné, pendant et négligent."},"du Verseau","Cyprès "]
[25,10,"2510","2003-10-25","du Noyer ",{"$f":"VLOOKUP(H202,arbres!$A$1:$B$21,2)","v":"NOYER (la passion) - Implacable, surprenant et plein de contrastes, souvent narcissique, peut démontrer de l'agressivité, est généreux, de vastes horizons s'ouvrent à lui, peut avoir des réactions inattendues, est spontané, fait preuve d'une ambition sans limite, aucune flexibilité, est un partenaire difficile et peu commun, n'est pas toujours aimé mais est souvent admire, stratège hors pair, très jaloux et passionné, ne fait aucun compromis"},"du Scorpion","Noyer"]
[25,11,"2511","2003-11-25","du Frêne ",{"$f":"VLOOKUP(H203,arbres!$A$1:$B$21,2)","v":"FRENE (l'ambition) - Très séduisant, vif, impulsif, exigeant, ne se préoccupe pas des critiques, ambitieux, intelligent, talentueux, aime jouer avec le destin, peut être narcissique, très fiable et digne de confiance, amant fidèle et prudent, laisse quelquefois sa tête avoir le pas sur son cœur, mais prend le couple très au sérieux."},"du Sagitaire","Frêne"]
[25,12,"2512","2003-12-25","du Pommier ",{"$f":"VLOOKUP(H204,arbres!$A$1:$B$21,2)","v":"POMMIER (l'amour) - Frêle possède beaucoup de charme, a un bon pouvoir de séduction et d'attraction, a une aura plaisante, aime flirter, est aventureux, sensible, toujours en amour, veut aimer et être aimé, partenaire tendre et fidèle, est très généreux, a des talents scientifiques, ne vit que pour aujourd'hui, est un philosophe insouciant et imaginatif"},"du Capricorne","Pommier "]
[25,2,"252","2003-02-25","du Pin ",{"$f":"VLOOKUP(H205,arbres!$A$1:$B$21,2)","v":"PIN (le particulier) - Adore être entouré de gens agréables, très robuste, sait comment rendre la vie confortable, est très actif, naturel, un bon compagnon, rarement amical, devient facilement amoureux, mais sa passion s'éteint vite, renonce facilement, tout est matière aux déceptions jusqu'à ce qu'il rencontre son idéal, est digne de confiance et pratique"},"des Poissons","Pin"]
[25,3,"253","2003-03-25","du Noisetier ",{"$f":"VLOOKUP(H206,arbres!$A$1:$B$21,2)","v":"NOISETIER (l'extraordinaire) - Charmant, peu exigeant, très compréhensif, sait comment faire bonne impression, ardent défenseur des causes sociales, populaire, d'humeur changeante, est un amant capricieux, honnête, un partenaire tolérant, possède un sens précis du jugement"},"du Bélier","Noisetier"]
[25,4,"254","2003-04-25","du Noyer ",{"$f":"VLOOKUP(H207,arbres!$A$1:$B$21,2)","v":"NOYER (la passion) - Implacable, surprenant et plein de contrastes, souvent narcissique, peut démontrer de l'agressivité, est généreux, de vastes horizons s'ouvrent à lui, peut avoir des réactions inattendues, est spontané, fait preuve d'une ambition sans limite, aucune flexibilité, est un partenaire difficile et peu commun, n'est pas toujours aimé mais est souvent admire, stratège hors pair, très jaloux et passionné, ne fait aucun compromis"},"du Taureau","Noyer"]
[25,5,"255","2003-05-25","du Frêne ",{"$f":"VLOOKUP(H208,arbres!$A$1:$B$21,2)","v":"FRENE (l'ambition) - Très séduisant, vif, impulsif, exigeant, ne se préoccupe pas des critiques, ambitieux, intelligent, talentueux, aime jouer avec le destin, peut être narcissique, très fiable et digne de confiance, amant fidèle et prudent, laisse quelquefois sa tête avoir le pas sur son cœur, mais prend le couple très au sérieux."},"des Gémeaux","Frêne"]
[25,6,"256","2003-06-25","du Pommier ",{"$f":"VLOOKUP(H209,arbres!$A$1:$B$21,2)","v":"POMMIER (l'amour) - Frêle possède beaucoup de charme, a un bon pouvoir de séduction et d'attraction, a une aura plaisante, aime flirter, est aventureux, sensible, toujours en amour, veut aimer et être aimé, partenaire tendre et fidèle, est très généreux, a des talents scientifiques, ne vit que pour aujourd'hui, est un philosophe insouciant et imaginatif"},"du Cancer","Pommier "]
[25,7,"257","2003-07-25","de l' Orme ",{"$f":"VLOOKUP(H210,arbres!$A$1:$B$21,2)","v":"ORME (la générosité) - De forme plaisante, porte des vêtements élégants, a des exigences modestes, a tendance à ne pas pardonner les erreurs, enjoué, aime mener mais n'aime pas obéir, partenaire fidèle, aime prendre des décisions pour les autres, généreux, a un bon sens de l'humour, est pratique"},"du Lion","Orme "]
[25,8,"258","2003-08-25","du Pin ",{"$f":"VLOOKUP(H211,arbres!$A$1:$B$21,2)","v":"PIN (le particulier) - Adore être entouré de gens agréables, très robuste, sait comment rendre la vie confortable, est très actif, naturel, un bon compagnon, rarement amical, devient facilement amoureux, mais sa passion s'éteint vite, renonce facilement, tout est matière aux déceptions jusqu'à ce qu'il rencontre son idéal, est digne de confiance et pratique"},"de la Vierge","Pin"]
[25,9,"259","2003-09-25","du Noisetier ",{"$f":"VLOOKUP(H212,arbres!$A$1:$B$21,2)","v":"NOISETIER (l'extraordinaire) - Charmant, peu exigeant, très compréhensif, sait comment faire bonne impression, ardent défenseur des causes sociales, populaire, d'humeur changeante, est un amant capricieux, honnête, un partenaire tolérant, possède un sens précis du jugement"},"de la Balance","Noisetier"]
[2,6,"26","2003-06-02","du Frêne ",{"$f":"VLOOKUP(H213,arbres!$A$1:$B$21,2)","v":"FRENE (l'ambition) - Très séduisant, vif, impulsif, exigeant, ne se préoccupe pas des critiques, ambitieux, intelligent, talentueux, aime jouer avec le destin, peut être narcissique, très fiable et digne de confiance, amant fidèle et prudent, laisse quelquefois sa tête avoir le pas sur son cœur, mais prend le couple très au sérieux."},"des Gémeaux","Frêne"]
[26,1,"261","2003-01-26","du Cyprès ",{"$f":"VLOOKUP(H214,arbres!$A$1:$B$21,2)","v":"CYPRES (la fidélité) - Fort, musclé, adaptable, prend ce que la vie a à offrir, content, optimiste, a soif d'argent et de reconnaissance, déteste la solitude, amant passionné qui ne peut être satisfait, est fidèle, s'emporte facilement, est indiscipliné, pendant et négligent."},"du Verseau","Cyprès "]
[26,10,"2610","2003-10-26","du Noyer ",{"$f":"VLOOKUP(H215,arbres!$A$1:$B$21,2)","v":"NOYER (la passion) - Implacable, surprenant et plein de contrastes, souvent narcissique, peut démontrer de l'agressivité, est généreux, de vastes horizons s'ouvrent à lui, peut avoir des réactions inattendues, est spontané, fait preuve d'une ambition sans limite, aucune flexibilité, est un partenaire difficile et peu commun, n'est pas toujours aimé mais est souvent admire, stratège hors pair, très jaloux et passionné, ne fait aucun compromis"},"du Scorpion","Noyer"]
[26,11,"2611","2003-11-26","du Frêne ",{"$f":"VLOOKUP(H216,arbres!$A$1:$B$21,2)","v":"FRENE (l'ambition) - Très séduisant, vif, impulsif, exigeant, ne se préoccupe pas des critiques, ambitieux, intelligent, talentueux, aime jouer avec le destin, peut être narcissique, très fiable et digne de confiance, amant fidèle et prudent, laisse quelquefois sa tête avoir le pas sur son cœur, mais prend le couple très au sérieux."},"du Sagitaire","Frêne"]
[26,12,"2612","2003-12-26","du Pommier ",{"$f":"VLOOKUP(H217,arbres!$A$1:$B$21,2)","v":"POMMIER (l'amour) - Frêle possède beaucoup de charme, a un bon pouvoir de séduction et d'attraction, a une aura plaisante, aime flirter, est aventureux, sensible, toujours en amour, veut aimer et être aimé, partenaire tendre et fidèle, est très généreux, a des talents scientifiques, ne vit que pour aujourd'hui, est un philosophe insouciant et imaginatif"},"du Capricorne","Pommier "]
[26,2,"262","2003-02-26","du Pin ",{"$f":"VLOOKUP(H218,arbres!$A$1:$B$21,2)","v":"PIN (le particulier) - Adore être entouré de gens agréables, très robuste, sait comment rendre la vie confortable, est très actif, naturel, un bon compagnon, rarement amical, devient facilement amoureux, mais sa passion s'éteint vite, renonce facilement, tout est matière aux déceptions jusqu'à ce qu'il rencontre son idéal, est digne de confiance et pratique"},"des Poissons","Pin"]
[26,3,"263","2003-03-26","du Noisetier ",{"$f":"VLOOKUP(H219,arbres!$A$1:$B$21,2)","v":"NOISETIER (l'extraordinaire) - Charmant, peu exigeant, très compréhensif, sait comment faire bonne impression, ardent défenseur des causes sociales, populaire, d'humeur changeante, est un amant capricieux, honnête, un partenaire tolérant, possède un sens précis du jugement"},"du Bélier","Noisetier"]
[26,4,"264","2003-04-26","du Noyer ",{"$f":"VLOOKUP(H220,arbres!$A$1:$B$21,2)","v":"NOYER (la passion) - Implacable, surprenant et plein de contrastes, souvent narcissique, peut démontrer de l'agressivité, est généreux, de vastes horizons s'ouvrent à lui, peut avoir des réactions inattendues, est spontané, fait preuve d'une ambition sans limite, aucune flexibilité, est un partenaire difficile et peu commun, n'est pas toujours aimé mais est souvent admire, stratège hors pair, très jaloux et passionné, ne fait aucun compromis"},"du Taureau","Noyer"]
[26,5,"265","2003-05-26","du Frêne ",{"$f":"VLOOKUP(H221,arbres!$A$1:$B$21,2)","v":"FRENE (l'ambition) - Très séduisant, vif, impulsif, exigeant, ne se préoccupe pas des critiques, ambitieux, intelligent, talentueux, aime jouer avec le destin, peut être narcissique, très fiable et digne de confiance, amant fidèle et prudent, laisse quelquefois sa tête avoir le pas sur son cœur, mais prend le couple très au sérieux."},"des Gémeaux","Frêne"]
[26,6,"266","2003-06-26","du Pommier ",{"$f":"VLOOKUP(H222,arbres!$A$1:$B$21,2)","v":"POMMIER (l'amour) - Frêle possède beaucoup de charme, a un bon pouvoir de séduction et d'attraction, a une aura plaisante, aime flirter, est aventureux, sensible, toujours en amour, veut aimer et être aimé, partenaire tendre et fidèle, est très généreux, a des talents scientifiques, ne vit que pour aujourd'hui, est un philosophe insouciant et imaginatif"},"du Cancer","Pommier "]
[26,7,"267","2003-07-26","du Cyprès ",{"$f":"VLOOKUP(H223,arbres!$A$1:$B$21,2)","v":"CYPRES (la fidélité) - Fort, musclé, adaptable, prend ce que la vie a à offrir, content, optimiste, a soif d'argent et de reconnaissance, déteste la solitude, amant passionné qui ne peut être satisfait, est fidèle, s'emporte facilement, est indiscipliné, pendant et négligent."},"du Lion","Cyprès "]
[26,8,"268","2003-08-26","du Pin ",{"$f":"VLOOKUP(H224,arbres!$A$1:$B$21,2)","v":"PIN (le particulier) - Adore être entouré de gens agréables, très robuste, sait comment rendre la vie confortable, est très actif, naturel, un bon compagnon, rarement amical, devient facilement amoureux, mais sa passion s'éteint vite, renonce facilement, tout est matière aux déceptions jusqu'à ce qu'il rencontre son idéal, est digne de confiance et pratique"},"de la Vierge","Pin"]
[26,9,"269","2003-09-26","du Noisetier ",{"$f":"VLOOKUP(H225,arbres!$A$1:$B$21,2)","v":"NOISETIER (l'extraordinaire) - Charmant, peu exigeant, très compréhensif, sait comment faire bonne impression, ardent défenseur des causes sociales, populaire, d'humeur changeante, est un amant capricieux, honnête, un partenaire tolérant, possède un sens précis du jugement"},"de la Balance","Noisetier"]
[2,7,"27","2003-07-02","du Pommier ",{"$f":"VLOOKUP(H226,arbres!$A$1:$B$21,2)","v":"POMMIER (l'amour) - Frêle possède beaucoup de charme, a un bon pouvoir de séduction et d'attraction, a une aura plaisante, aime flirter, est aventureux, sensible, toujours en amour, veut aimer et être aimé, partenaire tendre et fidèle, est très généreux, a des talents scientifiques, ne vit que pour aujourd'hui, est un philosophe insouciant et imaginatif"},"du Cancer","Pommier "]
[27,1,"271","2003-01-27","du Cyprès ",{"$f":"VLOOKUP(H227,arbres!$A$1:$B$21,2)","v":"CYPRES (la fidélité) - Fort, musclé, adaptable, prend ce que la vie a à offrir, content, optimiste, a soif d'argent et de reconnaissance, déteste la solitude, amant passionné qui ne peut être satisfait, est fidèle, s'emporte facilement, est indiscipliné, pendant et négligent."},"du Verseau","Cyprès "]
[27,10,"2710","2003-10-27","du Noyer ",{"$f":"VLOOKUP(H228,arbres!$A$1:$B$21,2)","v":"NOYER (la passion) - Implacable, surprenant et plein de contrastes, souvent narcissique, peut démontrer de l'agressivité, est généreux, de vastes horizons s'ouvrent à lui, peut avoir des réactions inattendues, est spontané, fait preuve d'une ambition sans limite, aucune flexibilité, est un partenaire difficile et peu commun, n'est pas toujours aimé mais est souvent admire, stratège hors pair, très jaloux et passionné, ne fait aucun compromis"},"du Scorpion","Noyer"]
[27,11,"2711","2003-11-27","du Frêne ",{"$f":"VLOOKUP(H229,arbres!$A$1:$B$21,2)","v":"FRENE (l'ambition) - Très séduisant, vif, impulsif, exigeant, ne se préoccupe pas des critiques, ambitieux, intelligent, talentueux, aime jouer avec le destin, peut être narcissique, très fiable et digne de confiance, amant fidèle et prudent, laisse quelquefois sa tête avoir le pas sur son cœur, mais prend le couple très au sérieux."},"du Sagitaire","Frêne"]
[27,12,"2712","2003-12-27","du Pommier ",{"$f":"VLOOKUP(H230,arbres!$A$1:$B$21,2)","v":"POMMIER (l'amour) - Frêle possède beaucoup de charme, a un bon pouvoir de séduction et d'attraction, a une aura plaisante, aime flirter, est aventureux, sensible, toujours en amour, veut aimer et être aimé, partenaire tendre et fidèle, est très généreux, a des talents scientifiques, ne vit que pour aujourd'hui, est un philosophe insouciant et imaginatif"},"du Capricorne","Pommier "]
[27,2,"272","2003-02-27","du Pin ",{"$f":"VLOOKUP(H231,arbres!$A$1:$B$21,2)","v":"PIN (le particulier) - Adore être entouré de gens agréables, très robuste, sait comment rendre la vie confortable, est très actif, naturel, un bon compagnon, rarement amical, devient facilement amoureux, mais sa passion s'éteint vite, renonce facilement, tout est matière aux déceptions jusqu'à ce qu'il rencontre son idéal, est digne de confiance et pratique"},"des Poissons","Pin"]
[27,3,"273","2003-03-27","du Noisetier ",{"$f":"VLOOKUP(H232,arbres!$A$1:$B$21,2)","v":"NOISETIER (l'extraordinaire) - Charmant, peu exigeant, très compréhensif, sait comment faire bonne impression, ardent défenseur des causes sociales, populaire, d'humeur changeante, est un amant capricieux, honnête, un partenaire tolérant, possède un sens précis du jugement"},"du Bélier","Noisetier"]
[27,4,"274","2003-04-27","du Noyer ",{"$f":"VLOOKUP(H233,arbres!$A$1:$B$21,2)","v":"NOYER (la passion) - Implacable, surprenant et plein de contrastes, souvent narcissique, peut démontrer de l'agressivité, est généreux, de vastes horizons s'ouvrent à lui, peut avoir des réactions inattendues, est spontané, fait preuve d'une ambition sans limite, aucune flexibilité, est un partenaire difficile et peu commun, n'est pas toujours aimé mais est souvent admire, stratège hors pair, très jaloux et passionné, ne fait aucun compromis"},"du Taureau","Noyer"]
[27,5,"275","2003-05-27","du Frêne ",{"$f":"VLOOKUP(H234,arbres!$A$1:$B$21,2)","v":"FRENE (l'ambition) - Très séduisant, vif, impulsif, exigeant, ne se préoccupe pas des critiques, ambitieux, intelligent, talentueux, aime jouer avec le destin, peut être narcissique, très fiable et digne de confiance, amant fidèle et prudent, laisse quelquefois sa tête avoir le pas sur son cœur, mais prend le couple très au sérieux."},"des Gémeaux","Frêne"]
[27,6,"276","2003-06-27","du Pommier ",{"$f":"VLOOKUP(H235,arbres!$A$1:$B$21,2)","v":"POMMIER (l'amour) - Frêle possède beaucoup de charme, a un bon pouvoir de séduction et d'attraction, a une aura plaisante, aime flirter, est aventureux, sensible, toujours en amour, veut aimer et être aimé, partenaire tendre et fidèle, est très généreux, a des talents scientifiques, ne vit que pour aujourd'hui, est un philosophe insouciant et imaginatif"},"du Cancer","Pommier "]
[27,7,"277","2003-07-27","du Cyprès ",{"$f":"VLOOKUP(H236,arbres!$A$1:$B$21,2)","v":"CYPRES (la fidélité) - Fort, musclé, adaptable, prend ce que la vie a à offrir, content, optimiste, a soif d'argent et de reconnaissance, déteste la solitude, amant passionné qui ne peut être satisfait, est fidèle, s'emporte facilement, est indiscipliné, pendant et négligent."},"du Lion","Cyprès "]
[27,8,"278","2003-08-27","du Pin ",{"$f":"VLOOKUP(H237,arbres!$A$1:$B$21,2)","v":"PIN (le particulier) - Adore être entouré de gens agréables, très robuste, sait comment rendre la vie confortable, est très actif, naturel, un bon compagnon, rarement amical, devient facilement amoureux, mais sa passion s'éteint vite, renonce facilement, tout est matière aux déceptions jusqu'à ce qu'il rencontre son idéal, est digne de confiance et pratique"},"de la Vierge","Pin"]
[27,9,"279","2003-09-27","du Noisetier ",{"$f":"VLOOKUP(H238,arbres!$A$1:$B$21,2)","v":"NOISETIER (l'extraordinaire) - Charmant, peu exigeant, très compréhensif, sait comment faire bonne impression, ardent défenseur des causes sociales, populaire, d'humeur changeante, est un amant capricieux, honnête, un partenaire tolérant, possède un sens précis du jugement"},"de la Balance","Noisetier"]
[2,8,"28","2003-08-02","du Cyprès ",{"$f":"VLOOKUP(H239,arbres!$A$1:$B$21,2)","v":"CYPRES (la fidélité) - Fort, musclé, adaptable, prend ce que la vie a à offrir, content, optimiste, a soif d'argent et de reconnaissance, déteste la solitude, amant passionné qui ne peut être satisfait, est fidèle, s'emporte facilement, est indiscipliné, pendant et négligent."},"du Lion","Cyprès "]
[28,1,"281","2003-01-28","du Cyprès ",{"$f":"VLOOKUP(H240,arbres!$A$1:$B$21,2)","v":"CYPRES (la fidélité) - Fort, musclé, adaptable, prend ce que la vie a à offrir, content, optimiste, a soif d'argent et de reconnaissance, déteste la solitude, amant passionné qui ne peut être satisfait, est fidèle, s'emporte facilement, est indiscipliné, pendant et négligent."},"du Verseau","Cyprès "]
[28,10,"2810","2003-10-28","du Noyer ",{"$f":"VLOOKUP(H241,arbres!$A$1:$B$21,2)","v":"NOYER (la passion) - Implacable, surprenant et plein de contrastes, souvent narcissique, peut démontrer de l'agressivité, est généreux, de vastes horizons s'ouvrent à lui, peut avoir des réactions inattendues, est spontané, fait preuve d'une ambition sans limite, aucune flexibilité, est un partenaire difficile et peu commun, n'est pas toujours aimé mais est souvent admire, stratège hors pair, très jaloux et passionné, ne fait aucun compromis"},"du Scorpion","Noyer"]
[28,11,"2811","2003-11-28","du Frêne ",{"$f":"VLOOKUP(H242,arbres!$A$1:$B$21,2)","v":"FRENE (l'ambition) - Très séduisant, vif, impulsif, exigeant, ne se préoccupe pas des critiques, ambitieux, intelligent, talentueux, aime jouer avec le destin, peut être narcissique, très fiable et digne de confiance, amant fidèle et prudent, laisse quelquefois sa tête avoir le pas sur son cœur, mais prend le couple très au sérieux."},"du Sagitaire","Frêne"]
[28,12,"2812","2003-12-28","du Pommier ",{"$f":"VLOOKUP(H243,arbres!$A$1:$B$21,2)","v":"POMMIER (l'amour) - Frêle possède beaucoup de charme, a un bon pouvoir de séduction et d'attraction, a une aura plaisante, aime flirter, est aventureux, sensible, toujours en amour, veut aimer et être aimé, partenaire tendre et fidèle, est très généreux, a des talents scientifiques, ne vit que pour aujourd'hui, est un philosophe insouciant et imaginatif"},"du Capricorne","Pommier "]
[28,2,"282","2003-02-28","du Pin ",{"$f":"VLOOKUP(H244,arbres!$A$1:$B$21,2)","v":"PIN (le particulier) - Adore être entouré de gens agréables, très robuste, sait comment rendre la vie confortable, est très actif, naturel, un bon compagnon, rarement amical, devient facilement amoureux, mais sa passion s'éteint vite, renonce facilement, tout est matière aux déceptions jusqu'à ce qu'il rencontre son idéal, est digne de confiance et pratique"},"des Poissons","Pin"]
[28,3,"283","2003-03-28","du Noisetier ",{"$f":"VLOOKUP(H245,arbres!$A$1:$B$21,2)","v":"NOISETIER (l'extraordinaire) - Charmant, peu exigeant, très compréhensif, sait comment faire bonne impression, ardent défenseur des causes sociales, populaire, d'humeur changeante, est un amant capricieux, honnête, un partenaire tolérant, possède un sens précis du jugement"},"du Bélier","Noisetier"]
[28,4,"284","2003-04-28","du Noyer ",{"$f":"VLOOKUP(H246,arbres!$A$1:$B$21,2)","v":"NOYER (la passion) - Implacable, surprenant et plein de contrastes, souvent narcissique, peut démontrer de l'agressivité, est généreux, de vastes horizons s'ouvrent à lui, peut avoir des réactions inattendues, est spontané, fait preuve d'une ambition sans limite, aucune flexibilité, est un partenaire difficile et peu commun, n'est pas toujours aimé mais est souvent admire, stratège hors pair, très jaloux et passionné, ne fait aucun compromis"},"du Taureau","Noyer"]
[28,5,"285","2003-05-28","du Frêne ",{"$f":"VLOOKUP(H247,arbres!$A$1:$B$21,2)","v":"FRENE (l'ambition) - Très séduisant, vif, impulsif, exigeant, ne se préoccupe pas des critiques, ambitieux, intelligent, talentueux, aime jouer avec le destin, peut être narcissique, très fiable et digne de confiance, amant fidèle et prudent, laisse quelquefois sa tête avoir le pas sur son cœur, mais prend le couple très au sérieux."},"des Gémeaux","Frêne"]
[28,6,"286","2003-06-28","du Pommier ",{"$f":"VLOOKUP(H248,arbres!$A$1:$B$21,2)","v":"POMMIER (l'amour) - Frêle possède beaucoup de charme, a un bon pouvoir de séduction et d'attraction, a une aura plaisante, aime flirter, est aventureux, sensible, toujours en amour, veut aimer et être aimé, partenaire tendre et fidèle, est très généreux, a des talents scientifiques, ne vit que pour aujourd'hui, est un philosophe insouciant et imaginatif"},"du Cancer","Pommier "]
[28,7,"287","2003-07-28","du Cyprès ",{"$f":"VLOOKUP(H249,arbres!$A$1:$B$21,2)","v":"CYPRES (la fidélité) - Fort, musclé, adaptable, prend ce que la vie a à offrir, content, optimiste, a soif d'argent et de reconnaissance, déteste la solitude, amant passionné qui ne peut être satisfait, est fidèle, s'emporte facilement, est indiscipliné, pendant et négligent."},"du Lion","Cyprès "]
[28,8,"288","2003-08-28","du Pin ",{"$f":"VLOOKUP(H250,arbres!$A$1:$B$21,2)","v":"PIN (le particulier) - Adore être entouré de gens agréables, très robuste, sait comment rendre la vie confortable, est très actif, naturel, un bon compagnon, rarement amical, devient facilement amoureux, mais sa passion s'éteint vite, renonce facilement, tout est matière aux déceptions jusqu'à ce qu'il rencontre son idéal, est digne de confiance et pratique"},"de la Vierge","Pin"]
[28,9,"289","2003-09-28","du Noisetier ",{"$f":"VLOOKUP(H251,arbres!$A$1:$B$21,2)","v":"NOISETIER (l'extraordinaire) - Charmant, peu exigeant, très compréhensif, sait comment faire bonne impression, ardent défenseur des causes sociales, populaire, d'humeur changeante, est un amant capricieux, honnête, un partenaire tolérant, possède un sens précis du jugement"},"de la Balance","Noisetier"]
[2,9,"29","2003-09-02","du Pin ",{"$f":"VLOOKUP(H252,arbres!$A$1:$B$21,2)","v":"PIN (le particulier) - Adore être entouré de gens agréables, très robuste, sait comment rendre la vie confortable, est très actif, naturel, un bon compagnon, rarement amical, devient facilement amoureux, mais sa passion s'éteint vite, renonce facilement, tout est matière aux déceptions jusqu'à ce qu'il rencontre son idéal, est digne de confiance et pratique"},"de la Vierge","Pin"]
[29,1,"291","2003-01-29","du Cyprès ",{"$f":"VLOOKUP(H253,arbres!$A$1:$B$21,2)","v":"CYPRES (la fidélité) - Fort, musclé, adaptable, prend ce que la vie a à offrir, content, optimiste, a soif d'argent et de reconnaissance, déteste la solitude, amant passionné qui ne peut être satisfait, est fidèle, s'emporte facilement, est indiscipliné, pendant et négligent."},"du Verseau","Cyprès "]
[29,10,"2910","2003-10-29","du Noyer ",{"$f":"VLOOKUP(H254,arbres!$A$1:$B$21,2)","v":"NOYER (la passion) - Implacable, surprenant et plein de contrastes, souvent narcissique, peut démontrer de l'agressivité, est généreux, de vastes horizons s'ouvrent à lui, peut avoir des réactions inattendues, est spontané, fait preuve d'une ambition sans limite, aucune flexibilité, est un partenaire difficile et peu commun, n'est pas toujours aimé mais est souvent admire, stratège hors pair, très jaloux et passionné, ne fait aucun compromis"},"du Scorpion","Noyer"]
[29,11,"2911","2003-11-29","du Frêne ",{"$f":"VLOOKUP(H255,arbres!$A$1:$B$21,2)","v":"FRENE (l'ambition) - Très séduisant, vif, impulsif, exigeant, ne se préoccupe pas des critiques, ambitieux, intelligent, talentueux, aime jouer avec le destin, peut être narcissique, très fiable et digne de confiance, amant fidèle et prudent, laisse quelquefois sa tête avoir le pas sur son cœur, mais prend le couple très au sérieux."},"du Sagitaire","Frêne"]
[29,12,"2912","2003-12-29","du Pommier ",{"$f":"VLOOKUP(H256,arbres!$A$1:$B$21,2)","v":"POMMIER (l'amour) - Frêle possède beaucoup de charme, a un bon pouvoir de séduction et d'attraction, a une aura plaisante, aime flirter, est aventureux, sensible, toujours en amour, veut aimer et être aimé, partenaire tendre et fidèle, est très généreux, a des talents scientifiques, ne vit que pour aujourd'hui, est un philosophe insouciant et imaginatif"},"du Capricorne","Pommier "]
[29,3,"293","2003-03-29","du Noisetier ",{"$f":"VLOOKUP(H257,arbres!$A$1:$B$21,2)","v":"NOISETIER (l'extraordinaire) - Charmant, peu exigeant, très compréhensif, sait comment faire bonne impression, ardent défenseur des causes sociales, populaire, d'humeur changeante, est un amant capricieux, honnête, un partenaire tolérant, possède un sens précis du jugement"},"du Bélier","Noisetier"]
[29,4,"294","2003-04-29","du Noyer ",{"$f":"VLOOKUP(H258,arbres!$A$1:$B$21,2)","v":"NOYER (la passion) - Implacable, surprenant et plein de contrastes, souvent narcissique, peut démontrer de l'agressivité, est généreux, de vastes horizons s'ouvrent à lui, peut avoir des réactions inattendues, est spontané, fait preuve d'une ambition sans limite, aucune flexibilité, est un partenaire difficile et peu commun, n'est pas toujours aimé mais est souvent admire, stratège hors pair, très jaloux et passionné, ne fait aucun compromis"},"du Taureau","Noyer"]
[29,5,"295","2003-05-29","du Frêne ",{"$f":"VLOOKUP(H259,arbres!$A$1:$B$21,2)","v":"FRENE (l'ambition) - Très séduisant, vif, impulsif, exigeant, ne se préoccupe pas des critiques, ambitieux, intelligent, talentueux, aime jouer avec le destin, peut être narcissique, très fiable et digne de confiance, amant fidèle et prudent, laisse quelquefois sa tête avoir le pas sur son cœur, mais prend le couple très au sérieux."},"des Gémeaux","Frêne"]
[29,6,"296","2003-06-29","du Pommier ",{"$f":"VLOOKUP(H260,arbres!$A$1:$B$21,2)","v":"POMMIER (l'amour) - Frêle possède beaucoup de charme, a un bon pouvoir de séduction et d'attraction, a une aura plaisante, aime flirter, est aventureux, sensible, toujours en amour, veut aimer et être aimé, partenaire tendre et fidèle, est très généreux, a des talents scientifiques, ne vit que pour aujourd'hui, est un philosophe insouciant et imaginatif"},"du Cancer","Pommier "]
[29,7,"297","2003-07-29","du Cyprès ",{"$f":"VLOOKUP(H261,arbres!$A$1:$B$21,2)","v":"CYPRES (la fidélité) - Fort, musclé, adaptable, prend ce que la vie a à offrir, content, optimiste, a soif d'argent et de reconnaissance, déteste la solitude, amant passionné qui ne peut être satisfait, est fidèle, s'emporte facilement, est indiscipliné, pendant et négligent."},"du Lion","Cyprès "]
[29,8,"298","2003-08-29","du Pin ",{"$f":"VLOOKUP(H262,arbres!$A$1:$B$21,2)","v":"PIN (le particulier) - Adore être entouré de gens agréables, très robuste, sait comment rendre la vie confortable, est très actif, naturel, un bon compagnon, rarement amical, devient facilement amoureux, mais sa passion s'éteint vite, renonce facilement, tout est matière aux déceptions jusqu'à ce qu'il rencontre son idéal, est digne de confiance et pratique"},"de la Vierge","Pin"]
[29,9,"299","2003-09-29","du Noisetier ",{"$f":"VLOOKUP(H263,arbres!$A$1:$B$21,2)","v":"NOISETIER (l'extraordinaire) - Charmant, peu exigeant, très compréhensif, sait comment faire bonne impression, ardent défenseur des causes sociales, populaire, d'humeur changeante, est un amant capricieux, honnête, un partenaire tolérant, possède un sens précis du jugement"},"de la Balance","Noisetier"]
[30,1,"301","2003-01-30","du Cyprès ",{"$f":"VLOOKUP(H264,arbres!$A$1:$B$21,2)","v":"CYPRES (la fidélité) - Fort, musclé, adaptable, prend ce que la vie a à offrir, content, optimiste, a soif d'argent et de reconnaissance, déteste la solitude, amant passionné qui ne peut être satisfait, est fidèle, s'emporte facilement, est indiscipliné, pendant et négligent."},"du Verseau","Cyprès "]
[{"$f":"DAY(D265)","v":30},{"$f":"MONTH(D265)","v":10},{"$f":"A265&B265","v":"3010"},"2003-10-30","du Noyer ",{"$f":"VLOOKUP(H265,arbres!$A$1:$B$21,2)","v":"NOYER (la passion) - Implacable, surprenant et plein de contrastes, souvent narcissique, peut démontrer de l'agressivité, est généreux, de vastes horizons s'ouvrent à lui, peut avoir des réactions inattendues, est spontané, fait preuve d'une ambition sans limite, aucune flexibilité, est un partenaire difficile et peu commun, n'est pas toujours aimé mais est souvent admire, stratège hors pair, très jaloux et passionné, ne fait aucun compromis"},"du Scorpion","Noyer"]
[30,11,"3011","2003-11-30","du Frêne ",{"$f":"VLOOKUP(H266,arbres!$A$1:$B$21,2)","v":"FRENE (l'ambition) - Très séduisant, vif, impulsif, exigeant, ne se préoccupe pas des critiques, ambitieux, intelligent, talentueux, aime jouer avec le destin, peut être narcissique, très fiable et digne de confiance, amant fidèle et prudent, laisse quelquefois sa tête avoir le pas sur son cœur, mais prend le couple très au sérieux."},"du Sagitaire","Frêne"]
[30,12,"3012","2003-12-30","du Pommier ",{"$f":"VLOOKUP(H267,arbres!$A$1:$B$21,2)","v":"POMMIER (l'amour) - Frêle possède beaucoup de charme, a un bon pouvoir de séduction et d'attraction, a une aura plaisante, aime flirter, est aventureux, sensible, toujours en amour, veut aimer et être aimé, partenaire tendre et fidèle, est très généreux, a des talents scientifiques, ne vit que pour aujourd'hui, est un philosophe insouciant et imaginatif"},"du Capricorne","Pommier "]
[30,3,"303","2003-03-30","du Noisetier ",{"$f":"VLOOKUP(H268,arbres!$A$1:$B$21,2)","v":"NOISETIER (l'extraordinaire) - Charmant, peu exigeant, très compréhensif, sait comment faire bonne impression, ardent défenseur des causes sociales, populaire, d'humeur changeante, est un amant capricieux, honnête, un partenaire tolérant, possède un sens précis du jugement"},"du Bélier","Noisetier"]
[30,4,"304","2003-04-30","du Noyer ",{"$f":"VLOOKUP(H269,arbres!$A$1:$B$21,2)","v":"NOYER (la passion) - Implacable, surprenant et plein de contrastes, souvent narcissique, peut démontrer de l'agressivité, est généreux, de vastes horizons s'ouvrent à lui, peut avoir des réactions inattendues, est spontané, fait preuve d'une ambition sans limite, aucune flexibilité, est un partenaire difficile et peu commun, n'est pas toujours aimé mais est souvent admire, stratège hors pair, très jaloux et passionné, ne fait aucun compromis"},"du Taureau","Noyer"]
[30,5,"305","2003-05-30","du Frêne ",{"$f":"VLOOKUP(H270,arbres!$A$1:$B$21,2)","v":"FRENE (l'ambition) - Très séduisant, vif, impulsif, exigeant, ne se préoccupe pas des critiques, ambitieux, intelligent, talentueux, aime jouer avec le destin, peut être narcissique, très fiable et digne de confiance, amant fidèle et prudent, laisse quelquefois sa tête avoir le pas sur son cœur, mais prend le couple très au sérieux."},"des Gémeaux","Frêne"]
[30,6,"306","2003-06-30","du Pommier ",{"$f":"VLOOKUP(H271,arbres!$A$1:$B$21,2)","v":"POMMIER (l'amour) - Frêle possède beaucoup de charme, a un bon pouvoir de séduction et d'attraction, a une aura plaisante, aime flirter, est aventureux, sensible, toujours en amour, veut aimer et être aimé, partenaire tendre et fidèle, est très généreux, a des talents scientifiques, ne vit que pour aujourd'hui, est un philosophe insouciant et imaginatif"},"du Cancer","Pommier "]
[30,7,"307","2003-07-30","du Cyprès ",{"$f":"VLOOKUP(H272,arbres!$A$1:$B$21,2)","v":"CYPRES (la fidélité) - Fort, musclé, adaptable, prend ce que la vie a à offrir, content, optimiste, a soif d'argent et de reconnaissance, déteste la solitude, amant passionné qui ne peut être satisfait, est fidèle, s'emporte facilement, est indiscipliné, pendant et négligent."},"du Lion","Cyprès "]
[30,8,"308","2003-08-30","du Pin ",{"$f":"VLOOKUP(H273,arbres!$A$1:$B$21,2)","v":"PIN (le particulier) - Adore être entouré de gens agréables, très robuste, sait comment rendre la vie confortable, est très actif, naturel, un bon compagnon, rarement amical, devient facilement amoureux, mais sa passion s'éteint vite, renonce facilement, tout est matière aux déceptions jusqu'à ce qu'il rencontre son idéal, est digne de confiance et pratique"},"de la Vierge","Pin"]
[30,9,"309","2003-09-30","du Noisetier ",{"$f":"VLOOKUP(H274,arbres!$A$1:$B$21,2)","v":"NOISETIER (l'extraordinaire) - Charmant, peu exigeant, très compréhensif, sait comment faire bonne impression, ardent défenseur des causes sociales, populaire, d'humeur changeante, est un amant capricieux, honnête, un partenaire tolérant, possède un sens précis du jugement"},"de la Balance","Noisetier"]
[3,1,"31","2003-01-03","du Sapin ",{"$f":"VLOOKUP(H275,arbres!$A$1:$B$21,2)","v":"SAPIN (le mystérieux) - Fait preuve d'un goût extraordinaire, est digne, sophistique, adore tout ce qui est beau, est d'humeur changeante, entêté, a une tendance à l'égoïsme, mais est attentif aux personnes qui sont proches de lui, est plutôt modeste, très ambitieux, talentueux, travailleur, un amant insatisfait, a plusieurs amis, plusieurs ennemis, on peut compter sur lui"},"du Capricorne","Sapin"]
[3,10,"310","2003-10-03","du Noisetier ",{"$f":"VLOOKUP(H276,arbres!$A$1:$B$21,2)","v":"NOISETIER (l'extraordinaire) - Charmant, peu exigeant, très compréhensif, sait comment faire bonne impression, ardent défenseur des causes sociales, populaire, d'humeur changeante, est un amant capricieux, honnête, un partenaire tolérant, possède un sens précis du jugement"},"de la Balance","Noisetier"]
[31,1,"311","2003-01-31","du Cyprès ",{"$f":"VLOOKUP(H277,arbres!$A$1:$B$21,2)","v":"CYPRES (la fidélité) - Fort, musclé, adaptable, prend ce que la vie a à offrir, content, optimiste, a soif d'argent et de reconnaissance, déteste la solitude, amant passionné qui ne peut être satisfait, est fidèle, s'emporte facilement, est indiscipliné, pendant et négligent."},"du Verseau","Cyprès "]
[3,11,"311","2003-11-03","du Noyer ",{"$f":"VLOOKUP(H278,arbres!$A$1:$B$21,2)","v":"NOYER (la passion) - Implacable, surprenant et plein de contrastes, souvent narcissique, peut démontrer de l'agressivité, est généreux, de vastes horizons s'ouvrent à lui, peut avoir des réactions inattendues, est spontané, fait preuve d'une ambition sans limite, aucune flexibilité, est un partenaire difficile et peu commun, n'est pas toujours aimé mais est souvent admire, stratège hors pair, très jaloux et passionné, ne fait aucun compromis"},"du Scorpion","Noyer"]
[31,10,"3110","2003-10-31","du Noyer ",{"$f":"VLOOKUP(H279,arbres!$A$1:$B$21,2)","v":"NOYER (la passion) - Implacable, surprenant et plein de contrastes, souvent narcissique, peut démontrer de l'agressivité, est généreux, de vastes horizons s'ouvrent à lui, peut avoir des réactions inattendues, est spontané, fait preuve d'une ambition sans limite, aucune flexibilité, est un partenaire difficile et peu commun, n'est pas toujours aimé mais est souvent admire, stratège hors pair, très jaloux et passionné, ne fait aucun compromis"},"du Scorpion","Noyer"]
[31,12,"3112","2003-12-31","du Pommier ",{"$f":"VLOOKUP(H280,arbres!$A$1:$B$21,2)","v":"POMMIER (l'amour) - Frêle possède beaucoup de charme, a un bon pouvoir de séduction et d'attraction, a une aura plaisante, aime flirter, est aventureux, sensible, toujours en amour, veut aimer et être aimé, partenaire tendre et fidèle, est très généreux, a des talents scientifiques, ne vit que pour aujourd'hui, est un philosophe insouciant et imaginatif"},"du Capricorne","Pommier "]
[3,12,"312","2003-12-03","du Charme de la Caroline ",{"$f":"VLOOKUP(H281,arbres!$A$1:$B$21,2)","v":"CHARME DE LA CAROLINE (le bon goût) - D'une beauté affranchissante, fait attention à son apparence et à sa condition physique, fait preuve de bon goût, n'est pas égoïste, fait en sorte que sa vie soit aussi confortable que possible, mène une vie raisonnable et disciplinée, recherche la gentillesse et la reconnaissance chez un partenaire de vie, rêve d'amants exceptionnels, est quelquefois heureux de ses sentiments, a peu confiance dans la plupart des gens, n'est jamais certain de ses décisions, est très consciencieux."},"du Sagitaire","Charme de la Caroline"]
[31,3,"313","2003-03-31","du Noisetier ",{"$f":"VLOOKUP(H282,arbres!$A$1:$B$21,2)","v":"NOISETIER (l'extraordinaire) - Charmant, peu exigeant, très compréhensif, sait comment faire bonne impression, ardent défenseur des causes sociales, populaire, d'humeur changeante, est un amant capricieux, honnête, un partenaire tolérant, possède un sens précis du jugement"},"du Bélier","Noisetier"]
[31,5,"315","2003-05-31","du Frêne ",{"$f":"VLOOKUP(H283,arbres!$A$1:$B$21,2)","v":"FRENE (l'ambition) - Très séduisant, vif, impulsif, exigeant, ne se préoccupe pas des critiques, ambitieux, intelligent, talentueux, aime jouer avec le destin, peut être narcissique, très fiable et digne de confiance, amant fidèle et prudent, laisse quelquefois sa tête avoir le pas sur son cœur, mais prend le couple très au sérieux."},"des Gémeaux","Frêne"]
[31,7,"317","2003-07-31","du Cyprès ",{"$f":"VLOOKUP(H284,arbres!$A$1:$B$21,2)","v":"CYPRES (la fidélité) - Fort, musclé, adaptable, prend ce que la vie a à offrir, content, optimiste, a soif d'argent et de reconnaissance, déteste la solitude, amant passionné qui ne peut être satisfait, est fidèle, s'emporte facilement, est indiscipliné, pendant et négligent."},"du Lion","Cyprès "]
[31,8,"318","2003-08-31","du Pin ",{"$f":"VLOOKUP(H285,arbres!$A$1:$B$21,2)","v":"PIN (le particulier) - Adore être entouré de gens agréables, très robuste, sait comment rendre la vie confortable, est très actif, naturel, un bon compagnon, rarement amical, devient facilement amoureux, mais sa passion s'éteint vite, renonce facilement, tout est matière aux déceptions jusqu'à ce qu'il rencontre son idéal, est digne de confiance et pratique"},"de la Vierge","Pin"]
[3,2,"32","2003-02-03","du Cyprès ",{"$f":"VLOOKUP(H286,arbres!$A$1:$B$21,2)","v":"CYPRES (la fidélité) - Fort, musclé, adaptable, prend ce que la vie a à offrir, content, optimiste, a soif d'argent et de reconnaissance, déteste la solitude, amant passionné qui ne peut être satisfait, est fidèle, s'emporte facilement, est indiscipliné, pendant et négligent."},"du Verseau","Cyprès "]
[3,3,"33","2003-03-03","du Saule pleureur ",{"$f":"VLOOKUP(H287,arbres!$A$1:$B$21,2)","v":"SAULE PLEUREUR (la mélancolie) - Beau mais plein de mélancolie, séduisant, très emphatique, aime tout ce qui est beau et de bon goût, aime voyager, est rêveur, agité, capricieux, honnête, peut être influencé mais il n'est pas facile à vivre, exigeant, bonne intuition, souffre en amour mais trouve quelquefois un partenaire qui lui sert de point d'ancrage"},"des Poissons","Saule pleureur"]
[3,4,"34","2003-04-03","du Cormier ",{"$f":"VLOOKUP(H288,arbres!$A$1:$B$21,2)","v":"CORMIER (la délicatesse) - Plein de charme, enjoué, talentueux sans être égoïste aime attirer l'attention, adore la vie, le mouvement, l'agitation et même les complications, est à la fois dépendant et indépendant, fait preuve de bon goût, est artistique, passionné, émotif, est de bonne compagnie, mais ne pardonne pas"},"du Bélier","Cormier"]
[3,5,"35","2003-05-03","du Peuplier ",{"$f":"VLOOKUP(H289,arbres!$A$1:$B$21,2)","v":"PEUPLIER (l'incertitude) - Très décoratif, n'a pas beaucoup confiance en lui, courageux seulement lorsque nécessaire, a besoin d'être entouré de personnes plaisantes et de bonne volonté, très sélectif, souvent solitaire, peut éprouver une grande animosité, possède une nature artistique, est un organisateur, a un penchant pour la philosophie, fiable dans toutes les situations, le couple est très important pour lui"},"du Taureau","Peuplier "]
[3,6,"36","2003-06-03","du Frêne ",{"$f":"VLOOKUP(H290,arbres!$A$1:$B$21,2)","v":"FRENE (l'ambition) - Très séduisant, vif, impulsif, exigeant, ne se préoccupe pas des critiques, ambitieux, intelligent, talentueux, aime jouer avec le destin, peut être narcissique, très fiable et digne de confiance, amant fidèle et prudent, laisse quelquefois sa tête avoir le pas sur son cœur, mais prend le couple très au sérieux."},"des Gémeaux","Frêne"]
[3,7,"37","2003-07-03","du Pommier ",{"$f":"VLOOKUP(H291,arbres!$A$1:$B$21,2)","v":"POMMIER (l'amour) - Frêle possède beaucoup de charme, a un bon pouvoir de séduction et d'attraction, a une aura plaisante, aime flirter, est aventureux, sensible, toujours en amour, veut aimer et être aimé, partenaire tendre et fidèle, est très généreux, a des talents scientifiques, ne vit que pour aujourd'hui, est un philosophe insouciant et imaginatif"},"du Cancer","Pommier "]
[3,8,"38","2003-08-03","du Cyprès ",{"$f":"VLOOKUP(H292,arbres!$A$1:$B$21,2)","v":"CYPRES (la fidélité) - Fort, musclé, adaptable, prend ce que la vie a à offrir, content, optimiste, a soif d'argent et de reconnaissance, déteste la solitude, amant passionné qui ne peut être satisfait, est fidèle, s'emporte facilement, est indiscipliné, pendant et négligent."},"du Lion","Cyprès "]
[3,9,"39","2003-09-03","du Saule pleureur ",{"$f":"VLOOKUP(H293,arbres!$A$1:$B$21,2)","v":"SAULE PLEUREUR (la mélancolie) - Beau mais plein de mélancolie, séduisant, très emphatique, aime tout ce qui est beau et de bon goût, aime voyager, est rêveur, agité, capricieux, honnête, peut être influencé mais il n'est pas facile à vivre, exigeant, bonne intuition, souffre en amour mais trouve quelquefois un partenaire qui lui sert de point d'ancrage"},"de la Vierge","Saule pleureur"]
[4,1,"41","2003-01-04","du Sapin ",{"$f":"VLOOKUP(H294,arbres!$A$1:$B$21,2)","v":"SAPIN (le mystérieux) - Fait preuve d'un goût extraordinaire, est digne, sophistique, adore tout ce qui est beau, est d'humeur changeante, entêté, a une tendance à l'égoïsme, mais est attentif aux personnes qui sont proches de lui, est plutôt modeste, très ambitieux, talentueux, travailleur, un amant insatisfait, a plusieurs amis, plusieurs ennemis, on peut compter sur lui"},"du Capricorne","Sapin"]
[4,10,"410","2003-10-04","du Cormier ",{"$f":"VLOOKUP(H295,arbres!$A$1:$B$21,2)","v":"CORMIER (la délicatesse) - Plein de charme, enjoué, talentueux sans être égoïste aime attirer l'attention, adore la vie, le mouvement, l'agitation et même les complications, est à la fois dépendant et indépendant, fait preuve de bon goût, est artistique, passionné, émotif, est de bonne compagnie, mais ne pardonne pas"},"de la Balance","Cormier"]
[4,11,"411","2003-11-04","du Noyer ",{"$f":"VLOOKUP(H296,arbres!$A$1:$B$21,2)","v":"NOYER (la passion) - Implacable, surprenant et plein de contrastes, souvent narcissique, peut démontrer de l'agressivité, est généreux, de vastes horizons s'ouvrent à lui, peut avoir des réactions inattendues, est spontané, fait preuve d'une ambition sans limite, aucune flexibilité, est un partenaire difficile et peu commun, n'est pas toujours aimé mais est souvent admire, stratège hors pair, très jaloux et passionné, ne fait aucun compromis"},"du Scorpion","Noyer"]
[4,12,"412","2003-12-04","du Charme de la Caroline ",{"$f":"VLOOKUP(H297,arbres!$A$1:$B$21,2)","v":"CHARME DE LA CAROLINE (le bon goût) - D'une beauté affranchissante, fait attention à son apparence et à sa condition physique, fait preuve de bon goût, n'est pas égoïste, fait en sorte que sa vie soit aussi confortable que possible, mène une vie raisonnable et disciplinée, recherche la gentillesse et la reconnaissance chez un partenaire de vie, rêve d'amants exceptionnels, est quelquefois heureux de ses sentiments, a peu confiance dans la plupart des gens, n'est jamais certain de ses décisions, est très consciencieux."},"du Sagitaire","Charme de la Caroline"]
[4,2,"42","2003-02-04","du Peuplier ",{"$f":"VLOOKUP(H298,arbres!$A$1:$B$21,2)","v":"PEUPLIER (l'incertitude) - Très décoratif, n'a pas beaucoup confiance en lui, courageux seulement lorsque nécessaire, a besoin d'être entouré de personnes plaisantes et de bonne volonté, très sélectif, souvent solitaire, peut éprouver une grande animosité, possède une nature artistique, est un organisateur, a un penchant pour la philosophie, fiable dans toutes les situations, le couple est très important pour lui"},"du Verseau","Peuplier "]
[4,3,"43","2003-03-04","du Saule pleureur ",{"$f":"VLOOKUP(H299,arbres!$A$1:$B$21,2)","v":"SAULE PLEUREUR (la mélancolie) - Beau mais plein de mélancolie, séduisant, très emphatique, aime tout ce qui est beau et de bon goût, aime voyager, est rêveur, agité, capricieux, honnête, peut être influencé mais il n'est pas facile à vivre, exigeant, bonne intuition, souffre en amour mais trouve quelquefois un partenaire qui lui sert de point d'ancrage"},"des Poissons","Saule pleureur"]
[4,4,"44","2003-04-04","du Cormier ",{"$f":"VLOOKUP(H300,arbres!$A$1:$B$21,2)","v":"CORMIER (la délicatesse) - Plein de charme, enjoué, talentueux sans être égoïste aime attirer l'attention, adore la vie, le mouvement, l'agitation et même les complications, est à la fois dépendant et indépendant, fait preuve de bon goût, est artistique, passionné, émotif, est de bonne compagnie, mais ne pardonne pas"},"du Bélier","Cormier"]
[4,5,"45","2003-05-04","du Peuplier ",{"$f":"VLOOKUP(H301,arbres!$A$1:$B$21,2)","v":"PEUPLIER (l'incertitude) - Très décoratif, n'a pas beaucoup confiance en lui, courageux seulement lorsque nécessaire, a besoin d'être entouré de personnes plaisantes et de bonne volonté, très sélectif, souvent solitaire, peut éprouver une grande animosité, possède une nature artistique, est un organisateur, a un penchant pour la philosophie, fiable dans toutes les situations, le couple est très important pour lui"},"du Taureau","Peuplier "]
[4,6,"46","2003-06-04","du Charme de la Caroline ",{"$f":"VLOOKUP(H302,arbres!$A$1:$B$21,2)","v":"CHARME DE LA CAROLINE (le bon goût) - D'une beauté affranchissante, fait attention à son apparence et à sa condition physique, fait preuve de bon goût, n'est pas égoïste, fait en sorte que sa vie soit aussi confortable que possible, mène une vie raisonnable et disciplinée, recherche la gentillesse et la reconnaissance chez un partenaire de vie, rêve d'amants exceptionnels, est quelquefois heureux de ses sentiments, a peu confiance dans la plupart des gens, n'est jamais certain de ses décisions, est très consciencieux."},"des Gémeaux","Charme de la Caroline"]
[4,7,"47","2003-07-04","du Pommier ",{"$f":"VLOOKUP(H303,arbres!$A$1:$B$21,2)","v":"POMMIER (l'amour) - Frêle possède beaucoup de charme, a un bon pouvoir de séduction et d'attraction, a une aura plaisante, aime flirter, est aventureux, sensible, toujours en amour, veut aimer et être aimé, partenaire tendre et fidèle, est très généreux, a des talents scientifiques, ne vit que pour aujourd'hui, est un philosophe insouciant et imaginatif"},"du Cancer","Pommier "]
[4,8,"48","2003-08-04","du Cyprès ",{"$f":"VLOOKUP(H304,arbres!$A$1:$B$21,2)","v":"CYPRES (la fidélité) - Fort, musclé, adaptable, prend ce que la vie a à offrir, content, optimiste, a soif d'argent et de reconnaissance, déteste la solitude, amant passionné qui ne peut être satisfait, est fidèle, s'emporte facilement, est indiscipliné, pendant et négligent."},"du Lion","Cyprès "]
[4,9,"49","2003-09-04","du Saule pleureur ",{"$f":"VLOOKUP(H305,arbres!$A$1:$B$21,2)","v":"SAULE PLEUREUR (la mélancolie) - Beau mais plein de mélancolie, séduisant, très emphatique, aime tout ce qui est beau et de bon goût, aime voyager, est rêveur, agité, capricieux, honnête, peut être influencé mais il n'est pas facile à vivre, exigeant, bonne intuition, souffre en amour mais trouve quelquefois un partenaire qui lui sert de point d'ancrage"},"de la Vierge","Saule pleureur"]
[5,1,"51","2003-01-05","du Sapin ",{"$f":"VLOOKUP(H306,arbres!$A$1:$B$21,2)","v":"SAPIN (le mystérieux) - Fait preuve d'un goût extraordinaire, est digne, sophistique, adore tout ce qui est beau, est d'humeur changeante, entêté, a une tendance à l'égoïsme, mais est attentif aux personnes qui sont proches de lui, est plutôt modeste, très ambitieux, talentueux, travailleur, un amant insatisfait, a plusieurs amis, plusieurs ennemis, on peut compter sur lui"},"du Capricorne","Sapin"]
[5,10,"510","2003-10-05","du Cormier ",{"$f":"VLOOKUP(H307,arbres!$A$1:$B$21,2)","v":"CORMIER (la délicatesse) - Plein de charme, enjoué, talentueux sans être égoïste aime attirer l'attention, adore la vie, le mouvement, l'agitation et même les complications, est à la fois dépendant et indépendant, fait preuve de bon goût, est artistique, passionné, émotif, est de bonne compagnie, mais ne pardonne pas"},"de la Balance","Cormier"]
[5,11,"511","2003-11-05","du Noyer ",{"$f":"VLOOKUP(H308,arbres!$A$1:$B$21,2)","v":"NOYER (la passion) - Implacable, surprenant et plein de contrastes, souvent narcissique, peut démontrer de l'agressivité, est généreux, de vastes horizons s'ouvrent à lui, peut avoir des réactions inattendues, est spontané, fait preuve d'une ambition sans limite, aucune flexibilité, est un partenaire difficile et peu commun, n'est pas toujours aimé mais est souvent admire, stratège hors pair, très jaloux et passionné, ne fait aucun compromis"},"du Scorpion","Noyer"]
[5,12,"512","2003-12-05","du Charme de la Caroline ",{"$f":"VLOOKUP(H309,arbres!$A$1:$B$21,2)","v":"CHARME DE LA CAROLINE (le bon goût) - D'une beauté affranchissante, fait attention à son apparence et à sa condition physique, fait preuve de bon goût, n'est pas égoïste, fait en sorte que sa vie soit aussi confortable que possible, mène une vie raisonnable et disciplinée, recherche la gentillesse et la reconnaissance chez un partenaire de vie, rêve d'amants exceptionnels, est quelquefois heureux de ses sentiments, a peu confiance dans la plupart des gens, n'est jamais certain de ses décisions, est très consciencieux."},"du Sagitaire","Charme de la Caroline"]
[5,2,"52","2003-02-05","du Peuplier ",{"$f":"VLOOKUP(H310,arbres!$A$1:$B$21,2)","v":"PEUPLIER (l'incertitude) - Très décoratif, n'a pas beaucoup confiance en lui, courageux seulement lorsque nécessaire, a besoin d'être entouré de personnes plaisantes et de bonne volonté, très sélectif, souvent solitaire, peut éprouver une grande animosité, possède une nature artistique, est un organisateur, a un penchant pour la philosophie, fiable dans toutes les situations, le couple est très important pour lui"},"du Verseau","Peuplier "]
[5,3,"53","2003-03-05","du Saule pleureur ",{"$f":"VLOOKUP(H311,arbres!$A$1:$B$21,2)","v":"SAULE PLEUREUR (la mélancolie) - Beau mais plein de mélancolie, séduisant, très emphatique, aime tout ce qui est beau et de bon goût, aime voyager, est rêveur, agité, capricieux, honnête, peut être influencé mais il n'est pas facile à vivre, exigeant, bonne intuition, souffre en amour mais trouve quelquefois un partenaire qui lui sert de point d'ancrage"},"des Poissons","Saule pleureur"]
[5,4,"54","2003-04-05","du Cormier ",{"$f":"VLOOKUP(H312,arbres!$A$1:$B$21,2)","v":"CORMIER (la délicatesse) - Plein de charme, enjoué, talentueux sans être égoïste aime attirer l'attention, adore la vie, le mouvement, l'agitation et même les complications, est à la fois dépendant et indépendant, fait preuve de bon goût, est artistique, passionné, émotif, est de bonne compagnie, mais ne pardonne pas"},"du Bélier","Cormier"]
[5,5,"55","2003-05-05","du Peuplier ",{"$f":"VLOOKUP(H313,arbres!$A$1:$B$21,2)","v":"PEUPLIER (l'incertitude) - Très décoratif, n'a pas beaucoup confiance en lui, courageux seulement lorsque nécessaire, a besoin d'être entouré de personnes plaisantes et de bonne volonté, très sélectif, souvent solitaire, peut éprouver une grande animosité, possède une nature artistique, est un organisateur, a un penchant pour la philosophie, fiable dans toutes les situations, le couple est très important pour lui"},"du Taureau","Peuplier "]
[5,6,"56","2003-06-05","du Charme de la Caroline ",{"$f":"VLOOKUP(H314,arbres!$A$1:$B$21,2)","v":"CHARME DE LA CAROLINE (le bon goût) - D'une beauté affranchissante, fait attention à son apparence et à sa condition physique, fait preuve de bon goût, n'est pas égoïste, fait en sorte que sa vie soit aussi confortable que possible, mène une vie raisonnable et disciplinée, recherche la gentillesse et la reconnaissance chez un partenaire de vie, rêve d'amants exceptionnels, est quelquefois heureux de ses sentiments, a peu confiance dans la plupart des gens, n'est jamais certain de ses décisions, est très consciencieux."},"des Gémeaux","Charme de la Caroline"]
[5,7,"57","2003-07-05","du Sapin ",{"$f":"VLOOKUP(H315,arbres!$A$1:$B$21,2)","v":"SAPIN (le mystérieux) - Fait preuve d'un goût extraordinaire, est digne, sophistique, adore tout ce qui est beau, est d'humeur changeante, entêté, a une tendance à l'égoïsme, mais est attentif aux personnes qui sont proches de lui, est plutôt modeste, très ambitieux, talentueux, travailleur, un amant insatisfait, a plusieurs amis, plusieurs ennemis, on peut compter sur lui"},"du Cancer","Sapin"]
[5,8,"58","2003-08-05","du Peuplier ",{"$f":"VLOOKUP(H316,arbres!$A$1:$B$21,2)","v":"PEUPLIER (l'incertitude) - Très décoratif, n'a pas beaucoup confiance en lui, courageux seulement lorsque nécessaire, a besoin d'être entouré de personnes plaisantes et de bonne volonté, très sélectif, souvent solitaire, peut éprouver une grande animosité, possède une nature artistique, est un organisateur, a un penchant pour la philosophie, fiable dans toutes les situations, le couple est très important pour lui"},"du Lion","Peuplier "]
[5,9,"59","2003-09-05","du Saule pleureur ",{"$f":"VLOOKUP(H317,arbres!$A$1:$B$21,2)","v":"SAULE PLEUREUR (la mélancolie) - Beau mais plein de mélancolie, séduisant, très emphatique, aime tout ce qui est beau et de bon goût, aime voyager, est rêveur, agité, capricieux, honnête, peut être influencé mais il n'est pas facile à vivre, exigeant, bonne intuition, souffre en amour mais trouve quelquefois un partenaire qui lui sert de point d'ancrage"},"de la Vierge","Saule pleureur"]
[6,1,"61","2003-01-06","du Sapin ",{"$f":"VLOOKUP(H318,arbres!$A$1:$B$21,2)","v":"SAPIN (le mystérieux) - Fait preuve d'un goût extraordinaire, est digne, sophistique, adore tout ce qui est beau, est d'humeur changeante, entêté, a une tendance à l'égoïsme, mais est attentif aux personnes qui sont proches de lui, est plutôt modeste, très ambitieux, talentueux, travailleur, un amant insatisfait, a plusieurs amis, plusieurs ennemis, on peut compter sur lui"},"du Capricorne","Sapin"]
[6,10,"610","2003-10-06","du Cormier ",{"$f":"VLOOKUP(H319,arbres!$A$1:$B$21,2)","v":"CORMIER (la délicatesse) - Plein de charme, enjoué, talentueux sans être égoïste aime attirer l'attention, adore la vie, le mouvement, l'agitation et même les complications, est à la fois dépendant et indépendant, fait preuve de bon goût, est artistique, passionné, émotif, est de bonne compagnie, mais ne pardonne pas"},"de la Balance","Cormier"]
[6,11,"611","2003-11-06","du Noyer ",{"$f":"VLOOKUP(H320,arbres!$A$1:$B$21,2)","v":"NOYER (la passion) - Implacable, surprenant et plein de contrastes, souvent narcissique, peut démontrer de l'agressivité, est généreux, de vastes horizons s'ouvrent à lui, peut avoir des réactions inattendues, est spontané, fait preuve d'une ambition sans limite, aucune flexibilité, est un partenaire difficile et peu commun, n'est pas toujours aimé mais est souvent admire, stratège hors pair, très jaloux et passionné, ne fait aucun compromis"},"du Scorpion","Noyer"]
[6,12,"612","2003-12-06","du Charme de la Caroline ",{"$f":"VLOOKUP(H321,arbres!$A$1:$B$21,2)","v":"CHARME DE LA CAROLINE (le bon goût) - D'une beauté affranchissante, fait attention à son apparence et à sa condition physique, fait preuve de bon goût, n'est pas égoïste, fait en sorte que sa vie soit aussi confortable que possible, mène une vie raisonnable et disciplinée, recherche la gentillesse et la reconnaissance chez un partenaire de vie, rêve d'amants exceptionnels, est quelquefois heureux de ses sentiments, a peu confiance dans la plupart des gens, n'est jamais certain de ses décisions, est très consciencieux."},"du Sagitaire","Charme de la Caroline"]
[6,2,"62","2003-02-06","du Peuplier ",{"$f":"VLOOKUP(H322,arbres!$A$1:$B$21,2)","v":"PEUPLIER (l'incertitude) - Très décoratif, n'a pas beaucoup confiance en lui, courageux seulement lorsque nécessaire, a besoin d'être entouré de personnes plaisantes et de bonne volonté, très sélectif, souvent solitaire, peut éprouver une grande animosité, possède une nature artistique, est un organisateur, a un penchant pour la philosophie, fiable dans toutes les situations, le couple est très important pour lui"},"du Verseau","Peuplier "]
[6,3,"63","2003-03-06","du Saule pleureur ",{"$f":"VLOOKUP(H323,arbres!$A$1:$B$21,2)","v":"SAULE PLEUREUR (la mélancolie) - Beau mais plein de mélancolie, séduisant, très emphatique, aime tout ce qui est beau et de bon goût, aime voyager, est rêveur, agité, capricieux, honnête, peut être influencé mais il n'est pas facile à vivre, exigeant, bonne intuition, souffre en amour mais trouve quelquefois un partenaire qui lui sert de point d'ancrage"},"des Poissons","Saule pleureur"]
[6,4,"64","2003-04-06","du Cormier ",{"$f":"VLOOKUP(H324,arbres!$A$1:$B$21,2)","v":"CORMIER (la délicatesse) - Plein de charme, enjoué, talentueux sans être égoïste aime attirer l'attention, adore la vie, le mouvement, l'agitation et même les complications, est à la fois dépendant et indépendant, fait preuve de bon goût, est artistique, passionné, émotif, est de bonne compagnie, mais ne pardonne pas"},"du Bélier","Cormier"]
[6,5,"65","2003-05-06","du Peuplier ",{"$f":"VLOOKUP(H325,arbres!$A$1:$B$21,2)","v":"PEUPLIER (l'incertitude) - Très décoratif, n'a pas beaucoup confiance en lui, courageux seulement lorsque nécessaire, a besoin d'être entouré de personnes plaisantes et de bonne volonté, très sélectif, souvent solitaire, peut éprouver une grande animosité, possède une nature artistique, est un organisateur, a un penchant pour la philosophie, fiable dans toutes les situations, le couple est très important pour lui"},"du Taureau","Peuplier "]
[6,6,"66","2003-06-06","du Charme de la Caroline ",{"$f":"VLOOKUP(H326,arbres!$A$1:$B$21,2)","v":"CHARME DE LA CAROLINE (le bon goût) - D'une beauté affranchissante, fait attention à son apparence et à sa condition physique, fait preuve de bon goût, n'est pas égoïste, fait en sorte que sa vie soit aussi confortable que possible, mène une vie raisonnable et disciplinée, recherche la gentillesse et la reconnaissance chez un partenaire de vie, rêve d'amants exceptionnels, est quelquefois heureux de ses sentiments, a peu confiance dans la plupart des gens, n'est jamais certain de ses décisions, est très consciencieux."},"des Gémeaux","Charme de la Caroline"]
[6,7,"67","2003-07-06","du Sapin ",{"$f":"VLOOKUP(H327,arbres!$A$1:$B$21,2)","v":"SAPIN (le mystérieux) - Fait preuve d'un goût extraordinaire, est digne, sophistique, adore tout ce qui est beau, est d'humeur changeante, entêté, a une tendance à l'égoïsme, mais est attentif aux personnes qui sont proches de lui, est plutôt modeste, très ambitieux, talentueux, travailleur, un amant insatisfait, a plusieurs amis, plusieurs ennemis, on peut compter sur lui"},"du Cancer","Sapin"]
[6,8,"68","2003-08-06","du Peuplier ",{"$f":"VLOOKUP(H328,arbres!$A$1:$B$21,2)","v":"PEUPLIER (l'incertitude) - Très décoratif, n'a pas beaucoup confiance en lui, courageux seulement lorsque nécessaire, a besoin d'être entouré de personnes plaisantes et de bonne volonté, très sélectif, souvent solitaire, peut éprouver une grande animosité, possède une nature artistique, est un organisateur, a un penchant pour la philosophie, fiable dans toutes les situations, le couple est très important pour lui"},"du Lion","Peuplier "]
[{"$f":"DAY(D329)","v":6},{"$f":"MONTH(D329)","v":9},{"$f":"A329&B329","v":"69"},"2003-09-06","du Saule pleureur ",{"$f":"VLOOKUP(H329,arbres!$A$1:$B$21,2)","v":"SAULE PLEUREUR (la mélancolie) - Beau mais plein de mélancolie, séduisant, très emphatique, aime tout ce qui est beau et de bon goût, aime voyager, est rêveur, agité, capricieux, honnête, peut être influencé mais il n'est pas facile à vivre, exigeant, bonne intuition, souffre en amour mais trouve quelquefois un partenaire qui lui sert de point d'ancrage"},"de la Vierge","Saule pleureur"]
[7,1,"71","2003-01-07","du Sapin ",{"$f":"VLOOKUP(H330,arbres!$A$1:$B$21,2)","v":"SAPIN (le mystérieux) - Fait preuve d'un goût extraordinaire, est digne, sophistique, adore tout ce qui est beau, est d'humeur changeante, entêté, a une tendance à l'égoïsme, mais est attentif aux personnes qui sont proches de lui, est plutôt modeste, très ambitieux, talentueux, travailleur, un amant insatisfait, a plusieurs amis, plusieurs ennemis, on peut compter sur lui"},"du Capricorne","Sapin"]
[7,10,"710","2003-10-07","du Cormier ",{"$f":"VLOOKUP(H331,arbres!$A$1:$B$21,2)","v":"CORMIER (la délicatesse) - Plein de charme, enjoué, talentueux sans être égoïste aime attirer l'attention, adore la vie, le mouvement, l'agitation et même les complications, est à la fois dépendant et indépendant, fait preuve de bon goût, est artistique, passionné, émotif, est de bonne compagnie, mais ne pardonne pas"},"de la Balance","Cormier"]
[7,11,"711","2003-11-07","du Noyer ",{"$f":"VLOOKUP(H332,arbres!$A$1:$B$21,2)","v":"NOYER (la passion) - Implacable, surprenant et plein de contrastes, souvent narcissique, peut démontrer de l'agressivité, est généreux, de vastes horizons s'ouvrent à lui, peut avoir des réactions inattendues, est spontané, fait preuve d'une ambition sans limite, aucune flexibilité, est un partenaire difficile et peu commun, n'est pas toujours aimé mais est souvent admire, stratège hors pair, très jaloux et passionné, ne fait aucun compromis"},"du Scorpion","Noyer"]
[7,12,"712","2003-12-07","du Charme de la Caroline ",{"$f":"VLOOKUP(H333,arbres!$A$1:$B$21,2)","v":"CHARME DE LA CAROLINE (le bon goût) - D'une beauté affranchissante, fait attention à son apparence et à sa condition physique, fait preuve de bon goût, n'est pas égoïste, fait en sorte que sa vie soit aussi confortable que possible, mène une vie raisonnable et disciplinée, recherche la gentillesse et la reconnaissance chez un partenaire de vie, rêve d'amants exceptionnels, est quelquefois heureux de ses sentiments, a peu confiance dans la plupart des gens, n'est jamais certain de ses décisions, est très consciencieux."},"du Sagitaire","Charme de la Caroline"]
[7,2,"72","2003-02-07","du Peuplier ",{"$f":"VLOOKUP(H334,arbres!$A$1:$B$21,2)","v":"PEUPLIER (l'incertitude) - Très décoratif, n'a pas beaucoup confiance en lui, courageux seulement lorsque nécessaire, a besoin d'être entouré de personnes plaisantes et de bonne volonté, très sélectif, souvent solitaire, peut éprouver une grande animosité, possède une nature artistique, est un organisateur, a un penchant pour la philosophie, fiable dans toutes les situations, le couple est très important pour lui"},"du Verseau","Peuplier "]
[7,3,"73","2003-03-07","du Saule pleureur ",{"$f":"VLOOKUP(H335,arbres!$A$1:$B$21,2)","v":"SAULE PLEUREUR (la mélancolie) - Beau mais plein de mélancolie, séduisant, très emphatique, aime tout ce qui est beau et de bon goût, aime voyager, est rêveur, agité, capricieux, honnête, peut être influencé mais il n'est pas facile à vivre, exigeant, bonne intuition, souffre en amour mais trouve quelquefois un partenaire qui lui sert de point d'ancrage"},"des Poissons","Saule pleureur"]
[7,4,"74","2003-04-07","du Cormier ",{"$f":"VLOOKUP(H336,arbres!$A$1:$B$21,2)","v":"CORMIER (la délicatesse) - Plein de charme, enjoué, talentueux sans être égoïste aime attirer l'attention, adore la vie, le mouvement, l'agitation et même les complications, est à la fois dépendant et indépendant, fait preuve de bon goût, est artistique, passionné, émotif, est de bonne compagnie, mais ne pardonne pas"},"du Bélier","Cormier"]
[7,5,"75","2003-05-07","du Peuplier ",{"$f":"VLOOKUP(H337,arbres!$A$1:$B$21,2)","v":"PEUPLIER (l'incertitude) - Très décoratif, n'a pas beaucoup confiance en lui, courageux seulement lorsque nécessaire, a besoin d'être entouré de personnes plaisantes et de bonne volonté, très sélectif, souvent solitaire, peut éprouver une grande animosité, possède une nature artistique, est un organisateur, a un penchant pour la philosophie, fiable dans toutes les situations, le couple est très important pour lui"},"du Taureau","Peuplier "]
[7,6,"76","2003-06-07","du Charme de la Caroline ",{"$f":"VLOOKUP(H338,arbres!$A$1:$B$21,2)","v":"CHARME DE LA CAROLINE (le bon goût) - D'une beauté affranchissante, fait attention à son apparence et à sa condition physique, fait preuve de bon goût, n'est pas égoïste, fait en sorte que sa vie soit aussi confortable que possible, mène une vie raisonnable et disciplinée, recherche la gentillesse et la reconnaissance chez un partenaire de vie, rêve d'amants exceptionnels, est quelquefois heureux de ses sentiments, a peu confiance dans la plupart des gens, n'est jamais certain de ses décisions, est très consciencieux."},"des Gémeaux","Charme de la Caroline"]
[7,7,"77","2003-07-07","du Sapin ",{"$f":"VLOOKUP(H339,arbres!$A$1:$B$21,2)","v":"SAPIN (le mystérieux) - Fait preuve d'un goût extraordinaire, est digne, sophistique, adore tout ce qui est beau, est d'humeur changeante, entêté, a une tendance à l'égoïsme, mais est attentif aux personnes qui sont proches de lui, est plutôt modeste, très ambitieux, talentueux, travailleur, un amant insatisfait, a plusieurs amis, plusieurs ennemis, on peut compter sur lui"},"du Cancer","Sapin"]
[7,8,"78","2003-08-07","du Peuplier ",{"$f":"VLOOKUP(H340,arbres!$A$1:$B$21,2)","v":"PEUPLIER (l'incertitude) - Très décoratif, n'a pas beaucoup confiance en lui, courageux seulement lorsque nécessaire, a besoin d'être entouré de personnes plaisantes et de bonne volonté, très sélectif, souvent solitaire, peut éprouver une grande animosité, possède une nature artistique, est un organisateur, a un penchant pour la philosophie, fiable dans toutes les situations, le couple est très important pour lui"},"du Lion","Peuplier "]
[7,9,"79","2003-09-07","du Saule pleureur ",{"$f":"VLOOKUP(H341,arbres!$A$1:$B$21,2)","v":"SAULE PLEUREUR (la mélancolie) - Beau mais plein de mélancolie, séduisant, très emphatique, aime tout ce qui est beau et de bon goût, aime voyager, est rêveur, agité, capricieux, honnête, peut être influencé mais il n'est pas facile à vivre, exigeant, bonne intuition, souffre en amour mais trouve quelquefois un partenaire qui lui sert de point d'ancrage"},"de la Vierge","Saule pleureur"]
[8,1,"81","2003-01-08","du Sapin ",{"$f":"VLOOKUP(H342,arbres!$A$1:$B$21,2)","v":"SAPIN (le mystérieux) - Fait preuve d'un goût extraordinaire, est digne, sophistique, adore tout ce qui est beau, est d'humeur changeante, entêté, a une tendance à l'égoïsme, mais est attentif aux personnes qui sont proches de lui, est plutôt modeste, très ambitieux, talentueux, travailleur, un amant insatisfait, a plusieurs amis, plusieurs ennemis, on peut compter sur lui"},"du Capricorne","Sapin"]
[8,10,"810","2003-10-08","du Cormier ",{"$f":"VLOOKUP(H343,arbres!$A$1:$B$21,2)","v":"CORMIER (la délicatesse) - Plein de charme, enjoué, talentueux sans être égoïste aime attirer l'attention, adore la vie, le mouvement, l'agitation et même les complications, est à la fois dépendant et indépendant, fait preuve de bon goût, est artistique, passionné, émotif, est de bonne compagnie, mais ne pardonne pas"},"de la Balance","Cormier"]
[8,11,"811","2003-11-08","du Noyer ",{"$f":"VLOOKUP(H344,arbres!$A$1:$B$21,2)","v":"NOYER (la passion) - Implacable, surprenant et plein de contrastes, souvent narcissique, peut démontrer de l'agressivité, est généreux, de vastes horizons s'ouvrent à lui, peut avoir des réactions inattendues, est spontané, fait preuve d'une ambition sans limite, aucune flexibilité, est un partenaire difficile et peu commun, n'est pas toujours aimé mais est souvent admire, stratège hors pair, très jaloux et passionné, ne fait aucun compromis"},"du Scorpion","Noyer"]
[8,12,"812","2003-12-08","du Charme de la Caroline ",{"$f":"VLOOKUP(H345,arbres!$A$1:$B$21,2)","v":"CHARME DE LA CAROLINE (le bon goût) - D'une beauté affranchissante, fait attention à son apparence et à sa condition physique, fait preuve de bon goût, n'est pas égoïste, fait en sorte que sa vie soit aussi confortable que possible, mène une vie raisonnable et disciplinée, recherche la gentillesse et la reconnaissance chez un partenaire de vie, rêve d'amants exceptionnels, est quelquefois heureux de ses sentiments, a peu confiance dans la plupart des gens, n'est jamais certain de ses décisions, est très consciencieux."},"du Sagitaire","Charme de la Caroline"]
[8,2,"82","2003-02-08","du Peuplier ",{"$f":"VLOOKUP(H346,arbres!$A$1:$B$21,2)","v":"PEUPLIER (l'incertitude) - Très décoratif, n'a pas beaucoup confiance en lui, courageux seulement lorsque nécessaire, a besoin d'être entouré de personnes plaisantes et de bonne volonté, très sélectif, souvent solitaire, peut éprouver une grande animosité, possède une nature artistique, est un organisateur, a un penchant pour la philosophie, fiable dans toutes les situations, le couple est très important pour lui"},"du Verseau","Peuplier "]
[8,3,"83","2003-03-08","du Saule pleureur ",{"$f":"VLOOKUP(H347,arbres!$A$1:$B$21,2)","v":"SAULE PLEUREUR (la mélancolie) - Beau mais plein de mélancolie, séduisant, très emphatique, aime tout ce qui est beau et de bon goût, aime voyager, est rêveur, agité, capricieux, honnête, peut être influencé mais il n'est pas facile à vivre, exigeant, bonne intuition, souffre en amour mais trouve quelquefois un partenaire qui lui sert de point d'ancrage"},"des Poissons","Saule pleureur"]
[8,4,"84","2003-04-08","du Cormier ",{"$f":"VLOOKUP(H348,arbres!$A$1:$B$21,2)","v":"CORMIER (la délicatesse) - Plein de charme, enjoué, talentueux sans être égoïste aime attirer l'attention, adore la vie, le mouvement, l'agitation et même les complications, est à la fois dépendant et indépendant, fait preuve de bon goût, est artistique, passionné, émotif, est de bonne compagnie, mais ne pardonne pas"},"du Bélier","Cormier"]
[8,5,"85","2003-05-08","du Peuplier ",{"$f":"VLOOKUP(H349,arbres!$A$1:$B$21,2)","v":"PEUPLIER (l'incertitude) - Très décoratif, n'a pas beaucoup confiance en lui, courageux seulement lorsque nécessaire, a besoin d'être entouré de personnes plaisantes et de bonne volonté, très sélectif, souvent solitaire, peut éprouver une grande animosité, possède une nature artistique, est un organisateur, a un penchant pour la philosophie, fiable dans toutes les situations, le couple est très important pour lui"},"du Taureau","Peuplier "]
[8,6,"86","2003-06-08","du Charme de la Caroline ",{"$f":"VLOOKUP(H350,arbres!$A$1:$B$21,2)","v":"CHARME DE LA CAROLINE (le bon goût) - D'une beauté affranchissante, fait attention à son apparence et à sa condition physique, fait preuve de bon goût, n'est pas égoïste, fait en sorte que sa vie soit aussi confortable que possible, mène une vie raisonnable et disciplinée, recherche la gentillesse et la reconnaissance chez un partenaire de vie, rêve d'amants exceptionnels, est quelquefois heureux de ses sentiments, a peu confiance dans la plupart des gens, n'est jamais certain de ses décisions, est très consciencieux."},"des Gémeaux","Charme de la Caroline"]
[8,7,"87","2003-07-08","du Sapin ",{"$f":"VLOOKUP(H351,arbres!$A$1:$B$21,2)","v":"SAPIN (le mystérieux) - Fait preuve d'un goût extraordinaire, est digne, sophistique, adore tout ce qui est beau, est d'humeur changeante, entêté, a une tendance à l'égoïsme, mais est attentif aux personnes qui sont proches de lui, est plutôt modeste, très ambitieux, talentueux, travailleur, un amant insatisfait, a plusieurs amis, plusieurs ennemis, on peut compter sur lui"},"du Cancer","Sapin"]
[8,8,"88","2003-08-08","du Peuplier ",{"$f":"VLOOKUP(H352,arbres!$A$1:$B$21,2)","v":"PEUPLIER (l'incertitude) - Très décoratif, n'a pas beaucoup confiance en lui, courageux seulement lorsque nécessaire, a besoin d'être entouré de personnes plaisantes et de bonne volonté, très sélectif, souvent solitaire, peut éprouver une grande animosité, possède une nature artistique, est un organisateur, a un penchant pour la philosophie, fiable dans toutes les situations, le couple est très important pour lui"},"du Lion","Peuplier "]
[8,9,"89","2003-09-08","du Saule pleureur ",{"$f":"VLOOKUP(H353,arbres!$A$1:$B$21,2)","v":"SAULE PLEUREUR (la mélancolie) - Beau mais plein de mélancolie, séduisant, très emphatique, aime tout ce qui est beau et de bon goût, aime voyager, est rêveur, agité, capricieux, honnête, peut être influencé mais il n'est pas facile à vivre, exigeant, bonne intuition, souffre en amour mais trouve quelquefois un partenaire qui lui sert de point d'ancrage"},"de la Vierge","Saule pleureur"]
[9,1,"91","2003-01-09","du Sapin ",{"$f":"VLOOKUP(H354,arbres!$A$1:$B$21,2)","v":"SAPIN (le mystérieux) - Fait preuve d'un goût extraordinaire, est digne, sophistique, adore tout ce qui est beau, est d'humeur changeante, entêté, a une tendance à l'égoïsme, mais est attentif aux personnes qui sont proches de lui, est plutôt modeste, très ambitieux, talentueux, travailleur, un amant insatisfait, a plusieurs amis, plusieurs ennemis, on peut compter sur lui"},"du Capricorne","Sapin"]
[9,10,"910","2003-10-09","du Cormier ",{"$f":"VLOOKUP(H355,arbres!$A$1:$B$21,2)","v":"CORMIER (la délicatesse) - Plein de charme, enjoué, talentueux sans être égoïste aime attirer l'attention, adore la vie, le mouvement, l'agitation et même les complications, est à la fois dépendant et indépendant, fait preuve de bon goût, est artistique, passionné, émotif, est de bonne compagnie, mais ne pardonne pas"},"de la Balance","Cormier"]
[9,11,"911","2003-11-09","du Noyer ",{"$f":"VLOOKUP(H356,arbres!$A$1:$B$21,2)","v":"NOYER (la passion) - Implacable, surprenant et plein de contrastes, souvent narcissique, peut démontrer de l'agressivité, est généreux, de vastes horizons s'ouvrent à lui, peut avoir des réactions inattendues, est spontané, fait preuve d'une ambition sans limite, aucune flexibilité, est un partenaire difficile et peu commun, n'est pas toujours aimé mais est souvent admire, stratège hors pair, très jaloux et passionné, ne fait aucun compromis"},"du Scorpion","Noyer"]
[9,12,"912","2003-12-09","du Charme de la Caroline ",{"$f":"VLOOKUP(H357,arbres!$A$1:$B$21,2)","v":"CHARME DE LA CAROLINE (le bon goût) - D'une beauté affranchissante, fait attention à son apparence et à sa condition physique, fait preuve de bon goût, n'est pas égoïste, fait en sorte que sa vie soit aussi confortable que possible, mène une vie raisonnable et disciplinée, recherche la gentillesse et la reconnaissance chez un partenaire de vie, rêve d'amants exceptionnels, est quelquefois heureux de ses sentiments, a peu confiance dans la plupart des gens, n'est jamais certain de ses décisions, est très consciencieux."},"du Sagitaire","Charme de la Caroline"]
[9,2,"92","2003-02-09","du Cèdre ",{"$f":"VLOOKUP(H358,arbres!$A$1:$B$21,2)","v":"CEDRE (la confiance) - D'une rare beauté, sait s'adapter, aime le luxe, jouit d'une bonne santé, loin d'être timide, a tendance à regarder les autres de haut, est sur de lui, déterminé, impatient, aime impressionner les autres, a de nombreux talents, travailleur, d'un optimisme sain, attendra son seul vrai amour, et est capable de prendre des décisions rapidement."},"du Verseau","Cèdre"]
[9,3,"93","2003-03-09","du Saule pleureur ",{"$f":"VLOOKUP(H359,arbres!$A$1:$B$21,2)","v":"SAULE PLEUREUR (la mélancolie) - Beau mais plein de mélancolie, séduisant, très emphatique, aime tout ce qui est beau et de bon goût, aime voyager, est rêveur, agité, capricieux, honnête, peut être influencé mais il n'est pas facile à vivre, exigeant, bonne intuition, souffre en amour mais trouve quelquefois un partenaire qui lui sert de point d'ancrage"},"des Poissons","Saule pleureur"]
[9,4,"94","2003-04-09","du Cormier ",{"$f":"VLOOKUP(H360,arbres!$A$1:$B$21,2)","v":"CORMIER (la délicatesse) - Plein de charme, enjoué, talentueux sans être égoïste aime attirer l'attention, adore la vie, le mouvement, l'agitation et même les complications, est à la fois dépendant et indépendant, fait preuve de bon goût, est artistique, passionné, émotif, est de bonne compagnie, mais ne pardonne pas"},"du Bélier","Cormier"]
[9,5,"95","2003-05-09","du Peuplier ",{"$f":"VLOOKUP(H361,arbres!$A$1:$B$21,2)","v":"PEUPLIER (l'incertitude) - Très décoratif, n'a pas beaucoup confiance en lui, courageux seulement lorsque nécessaire, a besoin d'être entouré de personnes plaisantes et de bonne volonté, très sélectif, souvent solitaire, peut éprouver une grande animosité, possède une nature artistique, est un organisateur, a un penchant pour la philosophie, fiable dans toutes les situations, le couple est très important pour lui"},"du Taureau","Peuplier "]
[9,6,"96","2003-06-09","du Charme de la Caroline ",{"$f":"VLOOKUP(H362,arbres!$A$1:$B$21,2)","v":"CHARME DE LA CAROLINE (le bon goût) - D'une beauté affranchissante, fait attention à son apparence et à sa condition physique, fait preuve de bon goût, n'est pas égoïste, fait en sorte que sa vie soit aussi confortable que possible, mène une vie raisonnable et disciplinée, recherche la gentillesse et la reconnaissance chez un partenaire de vie, rêve d'amants exceptionnels, est quelquefois heureux de ses sentiments, a peu confiance dans la plupart des gens, n'est jamais certain de ses décisions, est très consciencieux."},"des Gémeaux","Charme de la Caroline"]
[9,7,"97","2003-07-09","du Sapin ",{"$f":"VLOOKUP(H363,arbres!$A$1:$B$21,2)","v":"SAPIN (le mystérieux) - Fait preuve d'un goût extraordinaire, est digne, sophistique, adore tout ce qui est beau, est d'humeur changeante, entêté, a une tendance à l'égoïsme, mais est attentif aux personnes qui sont proches de lui, est plutôt modeste, très ambitieux, talentueux, travailleur, un amant insatisfait, a plusieurs amis, plusieurs ennemis, on peut compter sur lui"},"du Cancer","Sapin"]
[9,8,"98","2003-08-09","du Peuplier ",{"$f":"VLOOKUP(H364,arbres!$A$1:$B$21,2)","v":"PEUPLIER (l'incertitude) - Très décoratif, n'a pas beaucoup confiance en lui, courageux seulement lorsque nécessaire, a besoin d'être entouré de personnes plaisantes et de bonne volonté, très sélectif, souvent solitaire, peut éprouver une grande animosité, possède une nature artistique, est un organisateur, a un penchant pour la philosophie, fiable dans toutes les situations, le couple est très important pour lui"},"du Lion","Peuplier "]
[9,9,"99","2003-09-09","du Saule pleureur ",{"$f":"VLOOKUP(H365,arbres!$A$1:$B$21,2)","v":"SAULE PLEUREUR (la mélancolie) - Beau mais plein de mélancolie, séduisant, très emphatique, aime tout ce qui est beau et de bon goût, aime voyager, est rêveur, agité, capricieux, honnête, peut être influencé mais il n'est pas facile à vivre, exigeant, bonne intuition, souffre en amour mais trouve quelquefois un partenaire qui lui sert de point d'ancrage"},"de la Vierge","Saule pleureur"]

{"sheet":"arbres","index":4,"n_rows":21,"n_cols":2,"rows_kept":21,"cut":false,"hidden":false,"merged":[]}
["BOULEAU","BOULEAU (l'inspiration) - enjoué, séduisant, élégant, amical, sans prétention, modeste, n'aime pas les excès, a en horreur la vulgarité, aime la vie dans la nature et le calme, n'est pas très passionné, regorge d'imagination, a peu d'ambition, créé une atmosphère calme et satisfaisante."]
["CEDRE","CEDRE (la confiance) - D'une rare beauté, sait s'adapter, aime le luxe, jouit d'une bonne santé, loin d'être timide, a tendance à regarder les autres de haut, est sur de lui, déterminé, impatient, aime impressionner les autres, a de nombreux talents, travailleur, d'un optimisme sain, attendra son seul vrai amour, et est capable de prendre des décisions rapidement."]
["CHARME DE LA CAROLINE","CHARME DE LA CAROLINE (le bon goût) - D'une beauté affranchissante, fait attention à son apparence et à sa condition physique, fait preuve de bon goût, n'est pas égoïste, fait en sorte que sa vie soit aussi confortable que possible, mène une vie raisonnable et disciplinée, recherche la gentillesse et la reconnaissance chez un partenaire de vie, rêve d'amants exceptionnels, est quelquefois heureux de ses sentiments, a peu confiance dans la plupart des gens, n'est jamais certain de ses décisions, est très consciencieux."]
["CHATAIGNIER","CHATAIGNIER (l'honnêteté) - D'une beauté peu commune, ne veut pas impressionner, a un sens de la justice très développé, peu diplomate, s'irrite facilement et est souvent blessé en société en raison de son manque d'estime de lui, quelquefois donne l'impression d'être supérieur, a l'impression de ne pas être compris, n'aime qu'une fois, peut avoir des difficultés à trouver un partenaire. "]
["CHENE","CHENE (le brave) - De nature robuste, courageux, fort, implacable, indépendant, raisonnable, n'aime pas le changement, aime garder les pieds sur terre, est une personne d'action"]
["CORMIER","CORMIER (la délicatesse) - Plein de charme, enjoué, talentueux sans être égoïste aime attirer l'attention, adore la vie, le mouvement, l'agitation et même les complications, est à la fois dépendant et indépendant, fait preuve de bon goût, est artistique, passionné, émotif, est de bonne compagnie, mais ne pardonne pas"]
["CYPRES","CYPRES (la fidélité) - Fort, musclé, adaptable, prend ce que la vie a à offrir, content, optimiste, a soif d'argent et de reconnaissance, déteste la solitude, amant passionné qui ne peut être satisfait, est fidèle, s'emporte facilement, est indiscipliné, pendant et négligent."]
["ÉRABLE","ÉRABLE (l'indépendance d'esprit) - Sort de l'ordinaire, débordant d'imagination et d'originalité, timide et réservé, ambitieux, fier, sûr de lui, désire ardemment vivre de nouvelles expériences, est quelquefois nerveux, possède plusieurs complexités, a une bonne mémoire, apprend facilement, a une vie amoureuse compliquée, désire impressionner."]
["FIGUIER","FIGUIER (la sensibilité) - Très fort, un peu entêté, indépendant, ne tolère pas les contradictions ou les controverses, adore la vie, sa famille, les enfants et  les animaux, un peu volage en société, a un bon sens de l'humour, aime l'oisiveté et la paresse, possède des talents et une intelligence pratiques."]
["FRENE","FRENE (l'ambition) - Très séduisant, vif, impulsif, exigeant, ne se préoccupe pas des critiques, ambitieux, intelligent, talentueux, aime jouer avec le destin, peut être narcissique, très fiable et digne de confiance, amant fidèle et prudent, laisse quelquefois sa tête avoir le pas sur son cœur, mais prend le couple très au sérieux."]
["HETRE","HETRE (le créatif) - Fait preuve de bon goût, s'inquiète de son apparence, matérialiste, démontre un bon sens de l'organisation en ce qui concerne sa vie et sa carrière, est économe, bon dirigeant, raisonnable, ne prend pas de risques inutiles, excellent compagnon de vie, se passionne pour tout ce qui permet de garder la forme (diètes, sports, etc...)."]
["NOISETIER","NOISETIER (l'extraordinaire) - Charmant, peu exigeant, très compréhensif, sait comment faire bonne impression, ardent défenseur des causes sociales, populaire, d'humeur changeante, est un amant capricieux, honnête, un partenaire tolérant, possède un sens précis du jugement"]
["NOYER","NOYER (la passion) - Implacable, surprenant et plein de contrastes, souvent narcissique, peut démontrer de l'agressivité, est généreux, de vastes horizons s'ouvrent à lui, peut avoir des réactions inattendues, est spontané, fait preuve d'une ambition sans limite, aucune flexibilité, est un partenaire difficile et peu commun, n'est pas toujours aimé mais est souvent admire, stratège hors pair, très jaloux et passionné, ne fait aucun compromis"]
["OLIVIER","OLIVIER (la sagesse) - Aime le soleil, la chaleur et les doux sentiments, équilibré, évite les agressions et la violence, tolérant, enjoué, calme, possède un sens de la justice bien développé, sensible, emphatique, n'éprouve pas de jalousie, aime lire et aime être entouré de gens sophistiqués"]
["ORME","ORME (la générosité) - De forme plaisante, porte des vêtements élégants, a des exigences modestes, a tendance à ne pas pardonner les erreurs, enjoué, aime mener mais n'aime pas obéir, partenaire fidèle, aime prendre des décisions pour les autres, généreux, a un bon sens de l'humour, est pratique"]
["PEUPLIER","PEUPLIER (l'incertitude) - Très décoratif, n'a pas beaucoup confiance en lui, courageux seulement lorsque nécessaire, a besoin d'être entouré de personnes plaisantes et de bonne volonté, très sélectif, souvent solitaire, peut éprouver une grande animosité, possède une nature artistique, est un organisateur, a un penchant pour la philosophie, fiable dans toutes les situations, le couple est très important pour lui"]
["PIN","PIN (le particulier) - Adore être entouré de gens agréables, très robuste, sait comment rendre la vie confortable, est très actif, naturel, un bon compagnon, rarement amical, devient facilement amoureux, mais sa passion s'éteint vite, renonce facilement, tout est matière aux déceptions jusqu'à ce qu'il rencontre son idéal, est digne de confiance et pratique"]
["POMMIER","POMMIER (l'amour) - Frêle possède beaucoup de charme, a un bon pouvoir de séduction et d'attraction, a une aura plaisante, aime flirter, est aventureux, sensible, toujours en amour, veut aimer et être aimé, partenaire tendre et fidèle, est très généreux, a des talents scientifiques, ne vit que pour aujourd'hui, est un philosophe insouciant et imaginatif"]
["SAPIN","SAPIN (le mystérieux) - Fait preuve d'un goût extraordinaire, est digne, sophistique, adore tout ce qui est beau, est d'humeur changeante, entêté, a une tendance à l'égoïsme, mais est attentif aux personnes qui sont proches de lui, est plutôt modeste, très ambitieux, talentueux, travailleur, un amant insatisfait, a plusieurs amis, plusieurs ennemis, on peut compter sur lui"]
["SAULE PLEUREUR","SAULE PLEUREUR (la mélancolie) - Beau mais plein de mélancolie, séduisant, très emphatique, aime tout ce qui est beau et de bon goût, aime voyager, est rêveur, agité, capricieux, honnête, peut être influencé mais il n'est pas facile à vivre, exigeant, bonne intuition, souffre en amour mais trouve quelquefois un partenaire qui lui sert de point d'ancrage"]
["TILLEUL","TILLEUL (le doute) - Accepte calmement les leçons parfois difficiles que lui impose la vie, déteste la bagarre, le stress et le travail, n'aime pas la paresse et  l'inaction, est doux et se laisse fléchir facilement, fait des sacrifices pour ses amis, a plusieurs talents mais n'a pas la ténacité nécessaire pour les développer, se plaint et gémit souvent, est très jaloux mais est aussi loyal"]